Workbook

Sheet Round(1)
A1: =ROW()&")" -> 1) | B1: When you multiply or Divide Decimals AND you are required to Round your answer AND you will use the calculation in subsiquent formulas, you must use the ROUND function
A2: =ROW()&")" -> 2) | B2: The second argument in the ROUND function: 0 means round to the ones position
A3: =ROW()&")" -> 3) | B3: The second argument in the ROUND function: 2 means round to the penny
A4: =ROW()&")" -> 4) | B4: The second argument in the ROUND function: -3 means round to the thousands position
B6: Taxable Earnings | C6: Deduction | E6: Your boss will verify if your pennies are added correctly
B7: 2322 | C7: =ROUND(B7*C$12,2) -> 143.96 | E7: ="Type in what you see in cell "&ADDRESS(ROW(C7),COLUMN(C7),4) -> Type in what you see in cell C7
B8: 1201.5 | C8: 74.49 | E8: ="Type in what you see in cell "&ADDRESS(ROW(C8),COLUMN(C8),4) -> Type in what you see in cell C8
C9: =SUM(C7:C8) -> 218.45 | E9: Add, to verify if rounding was done!
C11: =C6&" %" -> Deduction % | E11: Description | F11: Number | G11: ROUND function | H11: 2nd argument
C12: 0.062 | E12: Round to the ones position: | F12: 1625.56985 | H12: 0
E13: Round to the penny: | F13: 1625.56985 | H13: 2
E14: Round to the thousands position: | F14: 1625.56985 | H14: -3

Sheet Round(1an)
A1: =ROW()&")" -> 1) | B1: When you multiply or Divide Decimals AND you are required to Round your answer AND you will use the calculation in subsiquent formulas, you must use the ROUND function
A2: =ROW()&")" -> 2) | B2: The second argument in the ROUND function: 0 means round to the ones position
A3: =ROW()&")" -> 3) | B3: The second argument in the ROUND function: 2 means round to the penny
A4: =ROW()&")" -> 4) | B4: The second argument in the ROUND function: -3 means round to the thousands position
B6: Taxable Earnings | C6: Deduction | E6: Your boss will verify if your pennies are added correctly
B7: 2322 | C7: =ROUND(B7*C$12,2) -> 143.96 | E7: ="Type in what you see in cell "&ADDRESS(ROW(C7),COLUMN(C7),4) -> Type in what you see in cell C7 | F7: 143.96
B8: 1201.5 | C8: =ROUND(B8*C$12,2) -> 74.49 | E8: ="Type in what you see in cell "&ADDRESS(ROW(C8),COLUMN(C8),4) -> Type in what you see in cell C8 | F8: 74.49
C9: =SUM(C7:C8) -> 218.45 | E9: Add, to verify if rounding was done! | F9: =SUM(F7:F8) -> 218.45
C11: =C6&" %" -> Deduction % | E11: Description | F11: Number | G11: ROUND function | H11: 2nd argument
C12: 0.062 | E12: Round to the ones position: | F12: 1625.56985 | G12: =ROUND(F12,H12) -> 1626 | H12: 0
E13: Round to the penny: | F13: 1625.56985 | G13: =ROUND(F13,H13) -> 1625.57 | H13: 2
E14: Round to the thousands position: | F14: 1625.56985 | G14: =ROUND(F14,H14) -> 2000 | H14: -3

Sheet Round(2)
A1: ROUND | B1: follows rounding rules | D1: 2.156
A2: ROUNDDOWN | B2: Always rounds down | D2: 2.156
A3: ROUNDUP | B3: Always rounds up | D3: 2.151
A4: EVEN | B4: Always rounds positive numbers up and negative numbers down to next even | C4: =EVEN(D4) -> -4 | D4: -2.156
A5: ODD | B5: Always rounds positive numbers up and negative numbers down to next odd | C5: =ODD(D5) -> -3 | D5: -2.156
A6: INT | B6: Always rounds to integer (positive down, negative down) | D6: -2.156 | F6: 2.156
A7: TRUNC | B7: truncates a number to an interger (removes fractional part of number) | C7: =TRUNC(D7) -> -2 | D7: -2.156
A8: CEILING | B8: ROUND UP TO NEARSET NUMBER OF SIGNIFICANCE (GOOD FOR PRICES) | D8: 685.21 | F8: 0.5
A9: FLOOR | B9: ROUND DOWN TO NEARSET NUMBER OF SIGNIFICANCE (GOOD FOR PRICES) | D9: 686.21 | F9: 0.5
A11: Round | B11: ROUND(23.50%,2) = 24% ==> .24 | C11: =ROUND(D11,2) -> 0.24 | D11: 0.235

Sheet Paste Special
B1: 1 | D1: 1 | F1: 5) Skip Blanks | G1: 20
B2: 1 | D2: 1 | I2: 2
B3: 1 | D3: 1 | G3: 17
A4: 1) Formulas | B4: =SUM(B1:B3) -> 3 | D4: 1 | I4: 21
G5: 19
A6: 2) Values | B6: =SUM(B1:B3,D1:D3) -> 6 | G6: 13
B8: 1 | D8: 1
B9: 1 | D9: 1 | H9: Jan | I9: Feb | J9: Mar
B10: 1 | D10: 1 | F10: 6) Transpose | G10: Product 1 | H10: 32 | I10: 32 | J10: 28
A11: 3) Formats | B11: =SUM(B8:B10) -> 3 | D11: =SUM(D8:D10) -> 3 | G11: Product 2 | H11: 26 | I11: 31 | J11: 36
G12: Product 3 | H12: 16 | I12: 38 | J12: 38
B13: Sales | G13: Product 4 | H13: 12 | I13: 36 | J13: 24
B14: 743.69 | G14: Product 5 | H14: 30 | I14: 36 | J14: 14
B15: 769.35 | G15: Product 6 | H15: 19 | I15: 32 | J15: 19
B16: 857.51
B17: 611.92
A19: 4) Operation | B19: 1.1

Sheet Freeze Panes
A1: Face = | B1: 1000
A2: # of Bond contracts sold = | B2: 1000
A3: Total Face = FV = | B3: =B2*B1 -> 1000000
A4: Coupon Rate = | B4: 0.1
A5: n = Semiannual = | B5: 2
A6: years = x = | B6: 20
A7: Total Periods = | B7: =B6*B5 -> 40
A8: YTM = Discount Rate = Market Rate = | B8: 0.09
A9: YTM/n = | B9: =B8/B5 -> 0.045
A10: PV of FV amount = | B10: =PV(B9,B7,,-B3) -> 171928.7011
A11: PV of FV amount = | B11: =B3/((1+B9)^B7) -> 171928.7011
C12: Interest For Tax Purposes (Deductable Expense to Bond Issuer, Taxable Income to Bondholder)
C13: Periods | D13: Implicit Periodic Interest (Interest Tax Advantage = Interest*Marginal Rate==> Actual cash flow = Interest*(1-tax rate)) | E13: Principal Balance
C14: 0 | E14: =B10 -> 171928.7011
C15: 1 | D15: =E15-E14 -> 7736.791549 | E15: =E14*(1+$B$9) -> 179665.4926
C16: 2 | D16: =E16-E15 -> 8084.947169 | E16: =E15*(1+$B$9) -> 187750.4398
C17: 3 | D17: 8448.769791 | E17: 196199.2096
C18: 4 | D18: 8828.964432 | E18: 205028.174
C19: 5 | D19: 9226.267831 | E19: 214254.4419
C20: 6 | D20: 9641.449884 | E20: 223895.8917
C21: 7 | D21: 10075.31513 | E21: 233971.2069
C22: 8 | D22: 10528.70431 | E22: 244499.9112
C23: 9 | D23: 11002.496 | E23: 255502.4072
C24: 10 | D24: 11497.60832 | E24: 267000.0155
C25: 11 | D25: 12015.0007 | E25: 279015.0162
C26: 12 | D26: 12555.67573 | E26: 291570.6919
C27: 13 | D27: 13120.68114 | E27: 304691.3731
C28: 14 | D28: 13711.11179 | E28: 318402.4849
C29: 15 | D29: 14328.11182 | E29: 332730.5967
C30: 16 | D30: 14972.87685 | E30: 347703.4735
C31: 17 | D31: 15646.65631 | E31: 363350.1298
C32: 18 | D32: 16350.75584 | E32: 379700.8857
C33: 19 | D33: 17086.53986 | E33: 396787.4255
C34: 20 | D34: 17855.43415 | E34: 414642.8597
C35: 21 | D35: 18658.92869 | E35: 433301.7884
C36: 22 | D36: 19498.58048 | E36: 452800.3688
C37: 23 | D37: 20376.0166 | E37: 473176.3854
C38: 24 | D38: 21292.93735 | E38: 494469.3228
C39: 25 | D39: 22251.11953 | E39: 516720.4423
C40: 26 | D40: 23252.4199 | E40: 539972.8622
C41: 27 | D41: 24298.7788 | E41: 564271.641
C42: 28 | D42: 25392.22385 | E42: 589663.8649
C43: 29 | D43: 26534.87392 | E43: 616198.7388
C44: 30 | D44: 27728.94325 | E44: 643927.682
C45: 31 | D45: 28976.74569 | E45: 672904.4277
C46: 32 | D46: 30280.69925 | E46: 703185.127
C47: 33 | D47: 31643.33071 | E47: 734828.4577
C48: 34 | D48: 33067.2806 | E48: 767895.7383
C49: 35 | D49: 34555.30822 | E49: 802451.0465
C50: 36 | D50: 36110.29709 | E50: 838561.3436
C51: 37 | D51: 37735.26046 | E51: 876296.6041
C52: 38 | D52: 39433.34718 | E52: 915729.9512
C53: 39 | D53: 41207.84781 | E53: 956937.799
C54: 40 | D54: 43062.20096 | E54: 1000000

Sheet % Change
A1: Company | B1: Stock Name | C1: 2007-03-01 | D1: =TODAY() -> 2008-04-07 | E1: % Change M01 = (End - Beg)/Beg | F1: % Change M02 = End/Beg - 1 | I1: Stock Quotes Provided by MSN Money
A2: =I4 -> Microsoft Corp | B2: MSFT | C2: 27.7 | D2: =L4 -> 29.18 | I2: Click here to visit MSN Money
A3: Whole Foods Market Inc | B3: WFMI | C3: 46.13 | D3: 32.65 | L3: Last | M3: Previous Close | N3: High | O3: Low | P3: Volume | Q3: Change | R3: % Change | S3: 52 Wk High | T3: 52 Wk Low | U3: Market Cap | V3: EPS | W3: P/E Ratio | X3: # Shares Out
A4: Yahoo! Inc | B4: YHOO | C4: 30.86 | D4: 27.66 | I4: Microsoft Corp | J4: Chart | K4: News | L4: 29.18 | M4: 28.62 | N4: 29.22 | O4: 28.59 | P4: 60175753 | Q4: 0.56 | R4: 0.0196 | S4: 37.5 | T4: 26.87 | U4: 271577650060 | V4: 1.76 | W4: 16.6 | X4: 9306979000
A5: Google Inc | B5: GOOG | C5: 448.23 | D5: 433.55 | I5: Whole Foods Market Inc | J5: Chart | K5: News | L5: 32.65 | M5: 31.13 | N5: 32.76 | O5: 31.13 | P5: 3521910 | Q5: 1.52 | R5: 0.0488 | S5: 53.65 | T5: 29.99 | U5: 4555034363 | V5: 1.19 | W5: 27.4 | X5: 139511000
A6: Citigroup Ord Shs | B6: C | C6: 48.78 | D6: 22.5 | I6: Yahoo! Inc | J6: Chart | K6: News | L6: 27.66 | M6: 27.07 | N6: 27.91 | O6: 26.98 | P6: 29866775 | Q6: 0.59 | R6: 0.0218 | S6: 34.08 | T6: 18.58 | U6: 36985983696 | V6: 0.47 | W6: 58.8 | X6: 1337165000
A7: Bear Stearns Ord Shs | B7: BSC | C7: 150.04 | D7: 5.96 | I7: Google Inc | J7: Chart | K7: News | L7: 433.55 | M7: 432 | N7: 435.7 | O7: 417.5 | P7: 9913319 | Q7: 1.55 | R7: 0.0036 | S7: 747.24 | T7: 412.11 | U7: 135865418270 | V7: 13.29 | W7: 32.6 | X7: 313378900
A8: Countrywide Financial Corp | B8: CFC | C8: 35.89 | D8: 5.78 | I8: Citigroup Ord Shs | J8: Chart | K8: News | L8: 22.5 | M8: 20.41 | N8: 22.64 | O8: 20.41 | P8: 180906753 | Q8: 2.09 | R8: 0.1024 | S8: 55.55 | T8: 17.99 | U8: 118014750000 | V8: 0.62 | W8: 36.5 | X8: 5245100000
A9: Caterpillar Ord Shs | B9: CAT | C9: 62.71 | D9: 73.82 | I9: Bear Stearns Ord Shs | J9: Chart | K9: News | L9: 5.96 | M9: 5.33 | N9: 6.39 | O9: 5.01 | P9: 48512076 | Q9: 0.63 | R9: 0.1182 | S9: 159.36 | T9: 2.84 | U9: 703832402 | V9: 0.6 | W9: 10 | X9: 118090700
I10: Countrywide Financial Corp | J10: Chart | K10: News | L10: 5.78 | M10: 5.11 | N10: 5.78 | O10: 5.11 | P10: 27260966 | Q10: 0.67 | R10: 0.1311 | S10: 42.24 | T10: 3.95 | U10: 3356935110 | V10: -2.11 | W10: 0 | X10: 580784600
I11: Caterpillar Ord Shs | J11: Chart | K11: News | L11: 73.82 | M11: 73.73 | N11: 74.28 | O11: 72.8 | P11: 9260335 | Q11: 0.09 | R11: 0.0012 | S11: 87 | T11: 59.6 | U11: 46062653712 | V11: 5.37 | W11: 13.7 | X11: 623986100
I13: Symbol Lookup | K13: MSN Money Home | O13: Microsoft Office Tools on the Web
I14: Find stocks, mutual funds, options, indices, and currencies. | K14: Discover MSN Money's tools, columns, and more! | O14: Get the latest from Microsoft Office
I16: Terms of Use. © 2008 Microsoft Corporation and/or its suppliers. All rights reserved.
I17: Data providers
I18: Canadian investment fund pricing (c) 2008 CANNEX Financial Exchanges Limited.
I19: Analyst Recommendations data provided by Zacks Investment Research.
I20: Fund data provided by Morningstar, Inc. © 2008. All rights reserved.
I21: Copyright © 2008 Reuters. Click for Restrictions.
I22: Quotes supplied by ComStock, an Interactive Data company.
I23: StockScouter data provided by Gradient Analytics, Inc.

Sheet % Change (an)
A1: Company | B1: Stock Name | C1: 2007-03-01 | D1: =TODAY() -> 2008-04-07 | E1: % Change M01 = (End - Beg)/Beg | F1: % Change M02 = End/Beg - 1 | I1: Stock Quotes Provided by MSN Money
A2: =I4 -> Microsoft Corp | B2: MSFT | C2: 27.7 | D2: =L4 -> 29.18 | E2: =(D2-C2)/C2 -> 0.05342960289 | F2: =D2/C2-1 -> 0.05342960289 | I2: Click here to visit MSN Money
A3: Whole Foods Market Inc | B3: WFMI | C3: 46.13 | D3: 32.65 | E3: -0.2922176458 | F3: -0.2922176458 | L3: Last | M3: Previous Close | N3: High | O3: Low | P3: Volume | Q3: Change | R3: % Change | S3: 52 Wk High | T3: 52 Wk Low | U3: Market Cap | V3: EPS | W3: P/E Ratio | X3: # Shares Out
A4: Yahoo! Inc | B4: YHOO | C4: 30.86 | D4: 27.66 | E4: -0.1036941024 | F4: -0.1036941024 | I4: Microsoft Corp | J4: Chart | K4: News | L4: 29.18 | M4: 28.62 | N4: 29.22 | O4: 28.59 | P4: 60175753 | Q4: 0.56 | R4: 0.0196 | S4: 37.5 | T4: 26.87 | U4: 271577650060 | V4: 1.76 | W4: 16.6 | X4: 9306979000
A5: Google Inc | B5: GOOG | C5: 448.23 | D5: 433.55 | E5: -0.03275104299 | F5: -0.03275104299 | I5: Whole Foods Market Inc | J5: Chart | K5: News | L5: 32.65 | M5: 31.13 | N5: 32.76 | O5: 31.13 | P5: 3521910 | Q5: 1.52 | R5: 0.0488 | S5: 53.65 | T5: 29.99 | U5: 4555034363 | V5: 1.19 | W5: 27.4 | X5: 139511000
A6: Citigroup Ord Shs | B6: C | C6: 48.78 | D6: 22.5 | E6: -0.5387453875 | F6: -0.5387453875 | I6: Yahoo! Inc | J6: Chart | K6: News | L6: 27.66 | M6: 27.07 | N6: 27.91 | O6: 26.98 | P6: 29866775 | Q6: 0.59 | R6: 0.0218 | S6: 34.08 | T6: 18.58 | U6: 36985983696 | V6: 0.47 | W6: 58.8 | X6: 1337165000
A7: Bear Stearns Ord Shs | B7: BSC | C7: 150.04 | D7: 5.96 | E7: -0.9602772594 | F7: -0.9602772594 | I7: Google Inc | J7: Chart | K7: News | L7: 433.55 | M7: 432 | N7: 435.7 | O7: 417.5 | P7: 9913319 | Q7: 1.55 | R7: 0.0036 | S7: 747.24 | T7: 412.11 | U7: 135865418270 | V7: 13.29 | W7: 32.6 | X7: 313378900
A8: Countrywide Financial Corp | B8: CFC | C8: 35.89 | D8: 5.78 | E8: -0.8389523544 | F8: -0.8389523544 | I8: Citigroup Ord Shs | J8: Chart | K8: News | L8: 22.5 | M8: 20.41 | N8: 22.64 | O8: 20.41 | P8: 180906753 | Q8: 2.09 | R8: 0.1024 | S8: 55.55 | T8: 17.99 | U8: 118014750000 | V8: 0.62 | W8: 36.5 | X8: 5245100000
A9: Caterpillar Ord Shs | B9: CAT | C9: 62.71 | D9: 73.82 | E9: 0.1771647265 | F9: 0.1771647265 | I9: Bear Stearns Ord Shs | J9: Chart | K9: News | L9: 5.96 | M9: 5.33 | N9: 6.39 | O9: 5.01 | P9: 48512076 | Q9: 0.63 | R9: 0.1182 | S9: 159.36 | T9: 2.84 | U9: 703832402 | V9: 0.6 | W9: 10 | X9: 118090700
I10: Countrywide Financial Corp | J10: Chart | K10: News | L10: 5.78 | M10: 5.11 | N10: 5.78 | O10: 5.11 | P10: 27260966 | Q10: 0.67 | R10: 0.1311 | S10: 42.24 | T10: 3.95 | U10: 3356935110 | V10: -2.11 | W10: 0 | X10: 580784600
I11: Caterpillar Ord Shs | J11: Chart | K11: News | L11: 73.82 | M11: 73.73 | N11: 74.28 | O11: 72.8 | P11: 9260335 | Q11: 0.09 | R11: 0.0012 | S11: 87 | T11: 59.6 | U11: 46062653712 | V11: 5.37 | W11: 13.7 | X11: 623986100
I13: Symbol Lookup | K13: MSN Money Home | O13: Microsoft Office Tools on the Web
I14: Find stocks, mutual funds, options, indices, and currencies. | K14: Discover MSN Money's tools, columns, and more! | O14: Get the latest from Microsoft Office
I16: Terms of Use. © 2008 Microsoft Corporation and/or its suppliers. All rights reserved.
I17: Data providers
I18: Canadian investment fund pricing (c) 2008 CANNEX Financial Exchanges Limited.
I19: Analyst Recommendations data provided by Zacks Investment Research.
I20: Fund data provided by Morningstar, Inc. © 2008. All rights reserved.
I21: Copyright © 2008 Reuters. Click for Restrictions.
I22: Quotes supplied by ComStock, an Interactive Data company.
I23: StockScouter data provided by Gradient Analytics, Inc.

Sheet WhatIfGoalSeek
A1: Rad Corp. | D1: Units | E1: =TRANSPOSE(A4:A8) -> Sales | F1: Variable Costs | G1: Contribution Margin | H1: Fixed Costs | I1: Net Income | J1: Total Costs
A2: Income Statement | D2: =B15 -> 0 | E2: =D2*B$12 -> 0 | F2: =D2*B$13 -> 0 | G2: =E2-F2 -> 0 | H2: =B$14 -> 79250 | I2: =G2-H2 -> -79250 | J2: =H2+F2 -> 79250
A3: June, 2008 | D3: =D2+B$16 -> 1000 | E3: 30000 | F3: 13690 | G3: 16310 | H3: 79250 | I3: -62940 | J3: =H3+F3 -> 92940
A4: Sales | B4: =B$11*B12 -> 150000 | D4: 2000 | E4: 60000 | F4: 27380 | G4: 32620 | H4: 79250 | I4: -46630 | J4: 106630
A5: Variable Costs | B5: =B$11*B13 -> 68450 | D5: 3000 | E5: 90000 | F5: 41070 | G5: 48930 | H5: 79250 | I5: -30320 | J5: 120320
A6: Contribution Margin | B6: =B4-B5 -> 81550 | D6: 4000 | E6: 120000 | F6: 54760 | G6: 65240 | H6: 79250 | I6: -14010 | J6: 134010
A7: Fixed Costs | B7: =B14 -> 79250 | D7: 5000 | E7: 150000 | F7: 68450 | G7: 81550 | H7: 79250 | I7: 2300 | J7: 147700
A8: Net Income | B8: =B6-B7 -> 2300 | D8: 6000 | E8: 180000 | F8: 82140 | G8: 97860 | H8: 79250 | I8: 18610 | J8: 161390
D9: 7000 | E9: 210000 | F9: 95830 | G9: 114170 | H9: 79250 | I9: 34920 | J9: 175080
A10: Assumptions | D10: 8000 | E10: 240000 | F10: 109520 | G10: 130480 | H10: 79250 | I10: 51230 | J10: 188770
A11: Units Sold | B11: 5000 | D11: 9000 | E11: 270000 | F11: 123210 | G11: 146790 | H11: 79250 | I11: 67540 | J11: 202460
A12: Price per Unit | B12: 30 | D12: 10000 | E12: 300000 | F12: 136900 | G12: 163100 | H12: 79250 | I12: 83850 | J12: 216150
A13: VariableCost per Unit | B13: 13.69 | D13: 11000 | E13: 330000 | F13: 150590 | G13: 179410 | H13: 79250 | I13: 100160 | J13: 229840
A14: Fixed Costs | B14: 79250 | D14: 12000 | E14: 360000 | F14: 164280 | G14: 195720 | H14: 79250 | I14: 116470 | J14: 243530
A15: Start Units Sold | B15: 0 | D15: 13000 | E15: 390000 | F15: 177970 | G15: 212030 | H15: 79250 | I15: 132780 | J15: 257220
A16: Increment Units Sold | B16: 1000 | D16: 14000 | E16: 420000 | F16: 191660 | G16: 228340 | H16: 79250 | I16: 149090 | J16: 270910
D17: 15000 | E17: 450000 | F17: 205350 | G17: 244650 | H17: 79250 | I17: 165400 | J17: 284600
D18: 16000 | E18: 480000 | F18: 219040 | G18: 260960 | H18: 79250 | I18: 181710 | J18: 298290
D19: 17000 | E19: 510000 | F19: 232730 | G19: 277270 | H19: 79250 | I19: 198020 | J19: 311980
D20: 18000 | E20: 540000 | F20: 246420 | G20: 293580 | H20: 79250 | I20: 214330 | J20: 325670
D21: 19000 | E21: 570000 | F21: 260110 | G21: 309890 | H21: 79250 | I21: 230640 | J21: 339360

Sheet Ave & SD
A1: =ROW()&")" -> 1) | B1: We calculate the mean (add up and divide by the count) using the AVERAGE function so that we can have 1 number that represents all the data points!
A2: =ROW()&")" -> 2) | B2: But how do we know whether our mean represents all the data points fairly? Is it a good mean? Measuring the variation in the data points will tell us whether our mean is a good mean!
A3: =ROW()&")" -> 3) | B3: We will look at the functions STDEV (standard deviation for a sample), VAR (variance for a sample), and AVEDEV (mean deviation for the sample).
A4: =ROW()&")" -> 4) | B4: The smaller the results from these formulas, the better the mean represents it's data points ("it is a good mean!").
B6: Sales Dept 1 | C6: Sales Dept 2 | U6: =B6&" Y values" -> Sales Dept 1 Y values | V6: =B6&" Y values" -> Sales Dept 1 Y values | W6: =C6&" Y values" -> Sales Dept 2 Y values | X6: =C6&" Y values" -> Sales Dept 2 Y values
B7: 242 | C7: 500 | U7: 2 | V7: 3 | W7: 5 | X7: 6
B8: 250 | C8: 230 | U8: 2 | V8: 3 | W8: 5 | X8: 6
B9: 289 | C9: 364 | U9: 2 | V9: 3 | W9: 5 | X9: 6
B10: 294 | C10: 172 | U10: 2 | V10: 3 | W10: 5 | X10: 6
B11: 310 | C11: 130 | U11: 2 | V11: 3 | W11: 5 | X11: 6
B12: 157 | C12: 107 | U12: 2 | V12: 3 | W12: 5 | X12: 6
B13: 348 | C13: 290 | U13: 2 | V13: 3 | W13: 5 | X13: 6
B14: 287 | C14: 122 | U14: 2 | V14: 3 | W14: 5 | X14: 6
B15: 321 | C15: 457 | U15: 2 | V15: 3 | W15: 5 | X15: 6
B16: 275 | C16: 447 | U16: 2 | V16: 3 | W16: 5 | X16: 6
B17: 384 | C17: 321 | U17: 2 | V17: 3 | W17: 5 | X17: 6
B18: 316 | C18: 378 | U18: 2 | V18: 3 | W18: 5 | X18: 6
B19: 318 | C19: 375 | U19: 2 | V19: 3 | W19: 5 | X19: 6
B20: 269 | C20: 100 | U20: 2 | V20: 3 | W20: 5 | X20: 6
B21: 290 | C21: 357 | F21: =B6 -> Sales Dept 1 | G21: =C6 -> Sales Dept 2 | U21: 2 | V21: 3 | W21: 5 | X21: 6
E22: Variance | F22: =VAR(B7:B21) -> 2664.714286 | G22: =VAR(C7:C21) -> 18819.28571
E23: Standard Deviation
E24: Mean Deviation | F24: =AVEDEV(B7:B21) -> 34.8 | G24: =AVEDEV(C7:C21) -> 117.2

Sheet Ave & SD (an)
A1: =ROW()&")" -> 1) | B1: We calculate the mean (add up and divide by the count) using the AVERAGE function so that we can have 1 number that represents all the data points!
A2: =ROW()&")" -> 2) | B2: But how do we know whether our mean represents all the data points fairly? Is it a good mean? Measuring the variation in the data points will tell us whether our mean is a good mean!
A3: =ROW()&")" -> 3) | B3: We will look at the functions STDEV (standard deviation for a sample), VAR (variance for a sample), and AVEDEV (mean deviation for the sample).
A4: =ROW()&")" -> 4) | B4: The smaller the results from these formulas, the better the mean represents it's data points ("it is a good mean!").
B6: Sales Dept 1 | C6: Sales Dept 2 | U6: =B6&" Y values" -> Sales Dept 1 Y values | V6: =B6&" Y values" -> Sales Dept 1 Y values | W6: =C6&" Y values" -> Sales Dept 2 Y values | X6: =C6&" Y values" -> Sales Dept 2 Y values
B7: 242 | C7: 500 | U7: 2 | V7: 3 | W7: 5 | X7: 6
B8: 250 | C8: 230 | U8: 2 | V8: 3 | W8: 5 | X8: 6
B9: 289 | C9: 364 | U9: 2 | V9: 3 | W9: 5 | X9: 6
B10: 294 | C10: 172 | U10: 2 | V10: 3 | W10: 5 | X10: 6
B11: 310 | C11: 130 | U11: 2 | V11: 3 | W11: 5 | X11: 6
B12: 157 | C12: 107 | U12: 2 | V12: 3 | W12: 5 | X12: 6
B13: 348 | C13: 290 | U13: 2 | V13: 3 | W13: 5 | X13: 6
B14: 287 | C14: 122 | U14: 2 | V14: 3 | W14: 5 | X14: 6
B15: 321 | C15: 457 | U15: 2 | V15: 3 | W15: 5 | X15: 6
B16: 275 | C16: 447 | U16: 2 | V16: 3 | W16: 5 | X16: 6
B17: 384 | C17: 321 | U17: 2 | V17: 3 | W17: 5 | X17: 6
B18: 316 | C18: 378 | U18: 2 | V18: 3 | W18: 5 | X18: 6
B19: 318 | C19: 375 | U19: 2 | V19: 3 | W19: 5 | X19: 6
B20: 269 | C20: 100 | U20: 2 | V20: 3 | W20: 5 | X20: 6
B21: 290 | C21: 357 | F21: =B6 -> Sales Dept 1 | G21: =C6 -> Sales Dept 2 | U21: 2 | V21: 3 | W21: 5 | X21: 6
B22: =AVERAGE(B7:B21) -> 290 | C22: =AVERAGE(C7:C21) -> 290 | E22: Variance | F22: =VAR(B7:B21) -> 2664.714286 | G22: =VAR(C7:C21) -> 18819.28571
E23: Standard Deviation | F23: =STDEV(B7:B21) -> 51.62087064 | G23: =STDEV(C7:C21) -> 137.1834017
E24: Mean Deviation | F24: =AVEDEV(B7:B21) -> 34.8 | G24: =AVEDEV(C7:C21) -> 117.2

Sheet Statistics
A1: When should you name ranges? When you have data that you will refer to often. If data is in Excel Table format, Table names are very convienient.
A3: Why do we need averages? Because we need to have one number that will represent all the numbers in the data set. We need to have a "typical value" that will represent all the data points. | E3: Historical Average | AC3: n = | AD3: total # observations | AE3: =COUNT(Sales) -> 0 | AF3: count
A4: Mean = (add them up)/Count = Most common average = AVERAGE = | E4: 5890 | AC4: k = | AD4: # of classes | AE4: 6 | AF4: type in till TRUE
A5: Median = after ranking, which is in middle (if even number, then add 2 in middle and divide by 2) = good when you don't want very large or small numbers pulling the mean up or down (think of real estate ) = MEDIAN = | AE5: =2^AE4>=AE3 -> TRUE | AF5: 2^k > = n
A6: Mode = the one that occurs most frequently (not always a mode or sometimes theer can be more than 1 mode) = this average is good when you are counting (think of prefer/notPrefer in a soft drink test - adding all the ones and dividing by the count yields 1) = MODE = | AD6: Max | AE6: =MAX(Sales) -> 
A7: Why do we need Standard Deviation (a measure of variation in data)? Because we need to know if our mean represents that data points fairly! | F7: Historical Average | AD7: Min | AE7: =MIN(Sales) -> 
A8: Standard Deviation for a sample = tells you "how good your mean is", or "how fairly the mean represents all the data points, or "on average, how far away from the average is the actual data point?", SQRT(SUM((X - Xmean)^2)/(CountOf(X - Xman) - 1)) = STDEV = | F8: 3020 | AD8: Range | AE8: =AE6-AE7 -> 
A9: Mean Deviation = "how good is your mean" = SUM(ASB(X - Xmean))/(CountOf(X - Xman) - 1) = AVEDEV = | AD9: Class Interval = (Max - Min)/k = | AE9: =AE8/AE4 -> 
A10: Maximum = what value is the largest = MAX = | AD10: Class Interval (always round up) = | AE10: =CEILING(D12/AE4,500) -> 0
A11: Minimum = what value is the smallest = MAX = | AD11: Lower Limit of first class | AE11: 0
A12: MAX - MIN = Range | AD12: Upper Limit of last class | AE12: 13000
A13: Count # of Sales using "numbers" = COUNT =
A14: Count # of Sales using "Text", or non-empty cells = COUNTA =
A15: Skew = 1) 0 = Bell shaped ==> mean = median = mode; 2) -# = curve titled toward right ==> Mean < Median < Mode (mean pulled down by a few small numbers); +# = curve titled toward left Mean > Median > Mode (Mean is pulled up by a few large numbers).
A17: Sales Total Rank Table & Bonus Total | E17: Bonus Amount | AG17: Rank with ties receiving same value | AK17: Rank with no Ties, 1st and 2nd tie get "add 1" | AO17: Rank with no Ties, each tie gets same value
A18: Sales Rep (Category) | B18: Toatl Sales | C18: Rank | D18: 50000 | E18: 2000 | AG18: Sales Rep (Category) | AH18: Frequency | AI18: Rank | AK18: Sales Rep (Category) | AL18: Frequency | AM18: Rank | AO18: Sales Rep (Category) | AP18: Frequency | AQ18: Rank
A19: Al | AG19: Al | AH19: 5000 | AI19: =RANK(AH19,AH$19:AH$24,0)+COUNTIF(AH$18:AH18,AH19) -> 2 | AK19: Al | AL19: 5000 | AM19: =RANK(AL19,AL$19:AL$24,0)+COUNTIF(AL$18:AL18,AL19) -> 2 | AO19: Al | AP19: 5000 | AQ19: =RANK(AP19,AP$19:AP$24,0)+(COUNT(AP$19:AP$24)+1-RANK(AP19,AP$19:AP$24,0)-RANK(AP19,AP$19:AP$24,1))/2 -> 3
A20: Gwen | AG20: Gwen | AH20: 5000 | AI20: =RANK(AH20,AH$19:AH$24,0)+COUNTIF(AH$18:AH19,AH20) -> 3 | AK20: Gwen | AL20: 5000 | AM20: =RANK(AL20,AL$19:AL$24,0)+COUNTIF(AL$18:AL19,AL20) -> 3 | AO20: Gwen | AP20: 5000 | AQ20: 3
A21: Michele | AG21: Michele | AH21: 5000 | AI21: =RANK(AH21,AH$19:AH$24,0)+COUNTIF(AH$18:AH20,AH21) -> 4 | AK21: Michele | AL21: 5000 | AM21: =RANK(AL21,AL$19:AL$24,0)+COUNTIF(AL$18:AL20,AL21) -> 4 | AO21: Michele | AP21: 5000 | AQ21: 3
A22: Megan | AG22: Megan | AH22: 5890 | AI22: =RANK(AH22,AH$19:AH$24,0)+COUNTIF(AH$18:AH21,AH22) -> 1 | AK22: Megan | AL22: 5890 | AM22: =RANK(AL22,AL$19:AL$24,0)+COUNTIF(AL$18:AL21,AL22) -> 1 | AO22: Megan | AP22: 5890 | AQ22: 1
A23: Luong | AG23: Luong | AH23: 4900 | AI23: =RANK(AH23,AH$19:AH$24,0)+COUNTIF(AH$18:AH22,AH23) -> 5 | AK23: Luong | AL23: 4900 | AM23: =RANK(AL23,AL$19:AL$24,0)+COUNTIF(AL$18:AL22,AL23) -> 5 | AO23: Luong | AP23: 4900 | AQ23: 5.5
A24: Joel | AG24: Joel | AH24: 4900 | AI24: =RANK(AH24,AH$19:AH$24,0)+COUNTIF(AH$18:AH23,AH24) -> 6 | AK24: Joel | AL24: 4900 | AM24: =RANK(AL24,AL$19:AL$24,0)+COUNTIF(AL$18:AL23,AL24) -> 6 | AO24: Joel | AP24: 4900 | AQ24: 5.5
A26: Number Of Sales Rank Table (Frequency Table)
A27: Sales Rep (Category) | B27: Frequency | C27: Relative Frequency | D27: Rank
A28: Al
A29: Gwen
A30: Michele
A31: Megan
A32: Luong
A33: Joel
B34: =SUM(B28:B33) -> 0
A36: Lower limit of first class | B36: Class interval
A37: 0 | B37: 2000
A38: Lower Class Limit | B38: Upper Class Limit | C38: Class | D38: Frequency
D46: =SUM(D39:D45)=COUNT(Sales) -> TRUE
A49: Largest Sales = | B49: 5 | E49: Smallest Sales = | F49: =B49 -> 5
A50: Table with 5 Largest Sales | E50: Table with 5 Largest Sales
A51: Rank | B51: Amount | C51: Sales Rep | E51: Rank | F51: Amount | G51: Sales Rep
A52: =IF(ROW(A1)<=B$49,ROW(A1),"") -> 1 | C52: =IF(OR(A52="",B52=""),"",INDEX(SalesReps,MATCH(B52,Sales,0))) ->  | E52: =IF(ROW(E1)<=F$49,ROW(E1),"") -> 1 | G52: =IF(OR(E52="",F52=""),"",INDEX(SalesReps,MATCH(F52,Sales,0))) -> 
A53: 2 | C53: =IF(OR(A53="",B53=""),"",INDEX(SalesReps,MATCH(B53,Sales,0))) ->  | E53: 2 | G53: =IF(OR(E53="",F53=""),"",INDEX(SalesReps,MATCH(F53,Sales,0))) -> 
A54: 3 | C54: =IF(OR(A54="",B54=""),"",INDEX(SalesReps,MATCH(B54,Sales,0))) ->  | E54: 3 | G54: =IF(OR(E54="",F54=""),"",INDEX(SalesReps,MATCH(F54,Sales,0))) -> 
A55: 4 | C55: =IF(OR(A55="",B55=""),"",INDEX(SalesReps,MATCH(B55,Sales,0))) ->  | E55: 4 | G55: =IF(OR(E55="",F55=""),"",INDEX(SalesReps,MATCH(F55,Sales,0))) -> 
A56: 5 | C56: =IF(OR(A56="",B56=""),"",INDEX(SalesReps,MATCH(B56,Sales,0))) ->  | E56: 5 | G56: =IF(OR(E56="",F56=""),"",INDEX(SalesReps,MATCH(F56,Sales,0))) -> 
A58: Sales | B58: Sales Rep
A59: 6660 | B59: Megan
A60: 9973 | B60: Michele
A61: 3014 | B61: Joel
A62: 1932 | B62: Megan
A63: 9548 | B63: Megan
A64: 4831 | B64: Michele
A65: 10032 | B65: Luong
A66: 12114 | B66: Al
A67: 8831 | B67: Al
A68: 12681 | B68: Joel
A69: 3980 | B69: Luong
A70: 5083 | B70: Luong
A71: 9446 | B71: Michele
A72: 6021 | B72: Joel
A73: 1745 | B73: Gwen
A74: 7855 | B74: Megan
A75: 3076 | B75: Michele
A76: 10664 | B76: Gwen
A77: 5944 | B77: Joel
A78: 9402 | B78: Joel
A79: 3212 | B79: Megan
A80: 4410 | B80: Al
A81: 9439 | B81: Al
A82: 942 | B82: Megan
A83: 12702 | B83: Al
A84: 8740 | B84: Megan
A85: 6283 | B85: Megan
A86: 6091 | B86: Michele
A87: 3859 | B87: Megan
A88: 10279 | B88: Joel
A89: 9257 | B89: Michele
A90: 9234 | B90: Megan
A91: 10256 | B91: Megan
A92: 791 | B92: Gwen
A93: 7117 | B93: Gwen
A94: 1010 | B94: Luong
A95: 5969 | B95: Al
A96: 11534 | B96: Gwen
A97: 4768 | B97: Al
A98: 12434 | B98: Michele
A99: 8201 | B99: Joel
A100: 3932 | B100: Al
A101: 915 | B101: Michele
A102: 9498 | B102: Al
A103: 8578 | B103: Megan
A104: 7973 | B104: Joel
A105: 3521 | B105: Gwen
A106: 2944 | B106: Joel
A107: 1875 | B107: Luong
A108: 7823 | B108: Joel
A109: 2276 | B109: Al
A110: 6242 | B110: Luong
A111: 6394 | B111: Gwen
A112: 1672 | B112: Megan
A113: 6699 | B113: Al
A114: 12049 | B114: Megan
A115: 5057 | B115: Al
A146: =IF(MOD(ROW(),10)=0,RANDBETWEEN(7899,12999),IF(MOD(ROW(),2)=0,RANDBETWEEN(1000,6000),RANDBETWEEN(250,10000))) -> 4725
A147: =IF(MOD(ROW(),10)=0,RANDBETWEEN(7899,12999),IF(MOD(ROW(),2)=0,RANDBETWEEN(1000,6000),RANDBETWEEN(250,10000))) -> 268
A148: 2721
A149: 723
A150: 10503
A151: 1106
A152: 4554
A153: 9915
A154: 4194
A155: 7161
A156: 4098
A157: 6312
A158: 2422
A159: 4499
A160: 8780
A161: 2365
A162: 4215
A163: 1114
A164: 2758
A165: 5956
A166: 1829
A167: 7007

Sheet Statistics (an)
A1: When should you name ranges? When you have data that you will refer to often. If data is in Excel Table format, Table names are very convienient.
A3: Why do we need averages? Because we need to have one number that will represent all the numbers in the data set. We need to have a "typical value" that will represent all the data points. | E3: Historical Average | AC3: n = | AD3: total # observations | AE3: =COUNT(Sales) -> 0 | AF3: count
A4: Mean = (add them up)/Count = Most common average = AVERAGE = | D4: =AVERAGE(Sales) ->  | E4: 5890 | AC4: k = | AD4: # of classes | AE4: 6 | AF4: type in till TRUE
A5: Median = after ranking, which is in middle (if even number, then add 2 in middle and divide by 2) = good when you don't want very large or small numbers pulling the mean up or down (think of real estate ) = MEDIAN = | D5: =MEDIAN(Sales) ->  | AE5: =2^AE4>=AE3 -> TRUE | AF5: 2^k > = n
A6: Mode = the one that occurs most frequently (not always a mode or sometimes theer can be more than 1 mode) = this average is good when you are counting (think of prefer/notPrefer in a soft drink test - adding all the ones and dividing by the count yields 1) = MODE = | D6: =MODE(Sales) ->  | E6: =COUNTIF(Sales,D6) ->  | AD6: Max | AE6: =MAX(Sales) -> 
A7: Why do we need Standard Deviation (a measure of variation in data)? Because we need to know if our mean represents that data points fairly! | F7: Historical Average | AD7: Min | AE7: =MIN(Sales) -> 
A8: Standard Deviation for a sample = tells you "how good your mean is", or "how fairly the mean represents all the data points, or "on average, how far away from the average is the actual data point?", SQRT(SUM((X - Xmean)^2)/(CountOf(X - Xman) - 1)) = STDEV = | D8: =STDEV(Sales) ->  | E8: =SQRT((SUM((Sales-AVERAGE(Sales))^2)/(COUNT(Sales)-1))) ->  | F8: 3020 | AD8: Range | AE8: =AE6-AE7 -> 
A9: Mean Deviation = "how good is your mean" = SUM(ASB(X - Xmean))/(CountOf(X - Xman) - 1) = AVEDEV = | D9: =AVEDEV(Sales) ->  | E9: =SUM(ABS(Sales-AVERAGE(Sales)))/COUNT(Sales) ->  | AD9: Class Interval = (Max - Min)/k = | AE9: =AE8/AE4 -> 
A10: Maximum = what value is the largest = MAX = | D10: =MAX(Sales) ->  | AD10: Class Interval (always round up) = | AE10: =CEILING(D12/AE4,500) -> 
A11: Minimum = what value is the smallest = MAX = | D11: =MIN(Sales) ->  | AD11: Lower Limit of first class | AE11: 0
A12: MAX - MIN = Range | D12: =D10-D11 ->  | AD12: Upper Limit of last class | AE12: 13000
A13: Count # of Sales using "numbers" = COUNT = | D13: =COUNT(Sales) -> 0
A14: Count # of Sales using "Text", or non-empty cells = COUNTA = | D14: =COUNTA(SalesReps) -> 1
A15: Skew = 1) 0 = Bell shaped ==> mean = median = mode; 2) -# = curve titled toward right ==> Mean < Median < Mode (mean pulled down by a few small numbers); +# = curve titled toward left Mean > Median > Mode (Mean is pulled up by a few large numbers). | D15: =SKEW(Sales) -> 
A17: Sales Total Rank Table & Bonus Total | E17: Bonus Amount | AG17: Rank with ties receiving same value | AK17: Rank with no Ties, 1st and 2nd tie get "add 1" | AO17: Rank with no Ties, each tie gets same value
A18: Sales Rep (Category) | B18: Total Sales | C18: Rank | D18: 50000 | E18: 2000 | AG18: Sales Rep (Category) | AH18: Frequency | AI18: Rank | AK18: Sales Rep (Category) | AL18: Frequency | AM18: Rank | AO18: Sales Rep (Category) | AP18: Frequency | AQ18: Rank
A19: Al | B19: =SUMIF($B$59:$B$115,A19,Sales) ->  | C19: =RANK(B19,B$19:B$24,0) ->  | D19: =IF(B19>=D$18,E$18,0) ->  | AG19: Al | AH19: 5000 | AI19: =RANK(AH19,AH$19:AH$24,0)+COUNTIF(AH$18:AH18,AH19) -> 2 | AK19: Al | AL19: 5000 | AM19: =RANK(AL19,AL$19:AL$24,0)+COUNTIF(AL$18:AL18,AL19) -> 2 | AO19: Al | AP19: 5000 | AQ19: =RANK(AP19,AP$19:AP$24,0)+(COUNT(AP$19:AP$24)+1-RANK(AP19,AP$19:AP$24,0)-RANK(AP19,AP$19:AP$24,1))/2 -> 3
A20: Gwen | AG20: Gwen | AH20: 5000 | AI20: =RANK(AH20,AH$19:AH$24,0)+COUNTIF(AH$18:AH19,AH20) -> 3 | AK20: Gwen | AL20: 5000 | AM20: =RANK(AL20,AL$19:AL$24,0)+COUNTIF(AL$18:AL19,AL20) -> 3 | AO20: Gwen | AP20: 5000 | AQ20: 3
A21: Michele | AG21: Michele | AH21: 5000 | AI21: =RANK(AH21,AH$19:AH$24,0)+COUNTIF(AH$18:AH20,AH21) -> 4 | AK21: Michele | AL21: 5000 | AM21: =RANK(AL21,AL$19:AL$24,0)+COUNTIF(AL$18:AL20,AL21) -> 4 | AO21: Michele | AP21: 5000 | AQ21: 3
A22: Megan | AG22: Megan | AH22: 5890 | AI22: =RANK(AH22,AH$19:AH$24,0)+COUNTIF(AH$18:AH21,AH22) -> 1 | AK22: Megan | AL22: 5890 | AM22: =RANK(AL22,AL$19:AL$24,0)+COUNTIF(AL$18:AL21,AL22) -> 1 | AO22: Megan | AP22: 5890 | AQ22: 1
A23: Luong | AG23: Luong | AH23: 4900 | AI23: =RANK(AH23,AH$19:AH$24,0)+COUNTIF(AH$18:AH22,AH23) -> 5 | AK23: Luong | AL23: 4900 | AM23: =RANK(AL23,AL$19:AL$24,0)+COUNTIF(AL$18:AL22,AL23) -> 5 | AO23: Luong | AP23: 4900 | AQ23: 5.5
A24: Joel | AG24: Joel | AH24: 4900 | AI24: =RANK(AH24,AH$19:AH$24,0)+COUNTIF(AH$18:AH23,AH24) -> 6 | AK24: Joel | AL24: 4900 | AM24: =RANK(AL24,AL$19:AL$24,0)+COUNTIF(AL$18:AL23,AL24) -> 6 | AO24: Joel | AP24: 4900 | AQ24: 5.5
A26: Number Of Sales Rank Table (Frequency Table)
A27: Sales Rep (Category) | B27: Frequency | C27: Relative Frequency | D27: Rank
A28: Al | B28: =COUNTIF($B$59:$B$115,A28) -> 12 | C28: =B28/B$34 -> 0.2105263158 | D28: =RANK(B28,B28:B33,0) -> 2
A29: Gwen | B29: 7 | C29: 0.1228070175 | D29: 5
A30: Michele | B30: 8 | C30: 0.1403508772 | D30: 4
A31: Megan | B31: 14 | C31: 0.2456140351 | D31: =RANK(B31,B31:B38,0) -> 
A32: Luong | B32: 6 | C32: 0.1052631579 | D32: =RANK(B32,B32:B39,0) -> 
A33: Joel | B33: 10 | C33: 0.1754385965 | D33: =RANK(B33,B33:B40,0) -> 
B34: =SUM(B28:B33) -> 57
A36: Lower limit of first class | B36: Class interval
A37: 0 | B37: =AE10 -> 
A38: Lower Class Limit | B38: Upper Class Limit | C38: Class | D38: Frequency
A39: =A37 -> 0 | B39: =A39+B$37 ->  | C39: =DOLLAR(A39,0)&" up to "&DOLLAR(B39,0) ->  | D39: =COUNTIF(Sales,"<"&B39)-COUNTIF(Sales,"<"&A39) -> 
A40: =B39 ->  | B40: =A40+B$37 -> 
A41: =B40 ->  | B41: =A41+B$37 -> 
D46: =SUM(D39:D45)=COUNT(Sales) -> 
A49: Largest Sales = | B49: 5 | E49: Smallest Sales = | F49: 5
A50: Table with 5 Largest Sales | E50: Table with 5 Largest Sales
A51: Rank | B51: Amount | C51: Sales Rep | E51: Rank | F51: Amount | G51: Sales Rep
A52: =IF(ROW(A1)<=B$49,ROW(A1),"") -> 1 | B52: =IF(A52="","",LARGE(Sales,A52)) ->  | C52: =IF(OR(A52="",B52=""),"",INDEX(SalesReps,MATCH(B52,Sales,0))) ->  | E52: =IF(ROW(E1)<=F$49,ROW(E1),"") -> 1 | F52: =IF(E52="","",SMALL(Sales,E52)) ->  | G52: =IF(OR(E52="",F52=""),"",INDEX(SalesReps,MATCH(F52,Sales,0))) -> 
A53: 2 | B53: =IF(A53="","",LARGE(Sales,A53)) ->  | C53: =IF(OR(A53="",B53=""),"",INDEX(SalesReps,MATCH(B53,Sales,0))) ->  | E53: 2 | F53: =IF(E53="","",SMALL(Sales,E53)) ->  | G53: =IF(OR(E53="",F53=""),"",INDEX(SalesReps,MATCH(F53,Sales,0))) -> 
A54: 3 | B54: =IF(A54="","",LARGE(Sales,A54)) ->  | C54: =IF(OR(A54="",B54=""),"",INDEX(SalesReps,MATCH(B54,Sales,0))) ->  | E54: 3 | F54: =IF(E54="","",SMALL(Sales,E54)) ->  | G54: =IF(OR(E54="",F54=""),"",INDEX(SalesReps,MATCH(F54,Sales,0))) -> 
A55: 4 | B55: =IF(A55="","",LARGE(Sales,A55)) ->  | C55: =IF(OR(A55="",B55=""),"",INDEX(SalesReps,MATCH(B55,Sales,0))) ->  | E55: 4 | F55: =IF(E55="","",SMALL(Sales,E55)) ->  | G55: =IF(OR(E55="",F55=""),"",INDEX(SalesReps,MATCH(F55,Sales,0))) -> 
A56: 5 | B56: =IF(A56="","",LARGE(Sales,A56)) ->  | C56: =IF(OR(A56="",B56=""),"",INDEX(SalesReps,MATCH(B56,Sales,0))) ->  | E56: 5 | F56: =IF(E56="","",SMALL(Sales,E56)) ->  | G56: =IF(OR(E56="",F56=""),"",INDEX(SalesReps,MATCH(F56,Sales,0))) -> 
A58: Sales | B58: Sales Rep
A59: 6660 | B59: Megan
A60: 9973 | B60: Michele
A61: 3014 | B61: Joel
A62: 1932 | B62: Megan
A63: 9548 | B63: Megan
A64: 4831 | B64: Michele
A65: 10032 | B65: Luong
A66: 12114 | B66: Al
A67: 8831 | B67: Al
A68: 12681 | B68: Joel
A69: 3980 | B69: Luong
A70: 5083 | B70: Luong
A71: 9446 | B71: Michele
A72: 6021 | B72: Joel
A73: 1745 | B73: Gwen
A74: 7855 | B74: Megan
A75: 3076 | B75: Michele
A76: 10664 | B76: Gwen
A77: 5944 | B77: Joel
A78: 9402 | B78: Joel
A79: 3212 | B79: Megan
A80: 4410 | B80: Al
A81: 9439 | B81: Al
A82: 942 | B82: Megan
A83: 12702 | B83: Al
A84: 8740 | B84: Megan
A85: 6283 | B85: Megan
A86: 6091 | B86: Michele
A87: 3859 | B87: Megan
A88: 10279 | B88: Joel
A89: 9257 | B89: Michele
A90: 9234 | B90: Megan
A91: 10256 | B91: Megan
A92: 791 | B92: Gwen
A93: 7117 | B93: Gwen
A94: 1010 | B94: Luong
A95: 5969 | B95: Al
A96: 11534 | B96: Gwen
A97: 4768 | B97: Al
A98: 12434 | B98: Michele
A99: 8201 | B99: Joel
A100: 3932 | B100: Al
A101: 915 | B101: Michele
A102: 9498 | B102: Al
A103: 8578 | B103: Megan
A104: 7973 | B104: Joel
A105: 3521 | B105: Gwen
A106: 2944 | B106: Joel
A107: 1875 | B107: Luong
A108: 7823 | B108: Joel
A109: 2276 | B109: Al
A110: 6242 | B110: Luong
A111: 6394 | B111: Gwen
A112: 1672 | B112: Megan
A113: 6699 | B113: Al
A114: 12049 | B114: Megan
A115: 5057 | B115: Al
A146: =IF(MOD(ROW(),10)=0,RANDBETWEEN(7899,12999),IF(MOD(ROW(),2)=0,RANDBETWEEN(1000,6000),RANDBETWEEN(250,10000))) -> 2192
A147: =IF(MOD(ROW(),10)=0,RANDBETWEEN(7899,12999),IF(MOD(ROW(),2)=0,RANDBETWEEN(1000,6000),RANDBETWEEN(250,10000))) -> 3343
A148: 4675
A149: 5556
A150: 9539
A151: 3728
A152: 4393
A153: 986
A154: 3050
A155: 2514
A156: 4864
A157: 6684
A158: 5688
A159: 3694
A160: 8751
A161: 1614
A162: 1465
A163: 2573
A164: 3867
A165: 938
A166: 4930
A167: 6329

Sheet Statistics (rand)
A1: When should you name ranges? When you have data that you will refer to often. If data is in Excel Table format, Table names are very convienient.
A3: Why do we need averages? Because we need to have one number that will represent all the numbers in the data set. We need to have a "typical value" that will represent all the data points. | AC3: n = | AD3: total # observations | AE3: =COUNT(Sales) -> 0 | AF3: count
A4: Mean = (add them up)/Count = Most common average = AVERAGE = | D4: =AVERAGE(Sales) ->  | AC4: k = | AD4: # of classes | AE4: 6 | AF4: type in till TRUE
A5: Median = after ranking, which is in middle (if even number, then add 2 in middle and divide by 2) = good when you don't want very large or small numbers pulling the mean up or down (think of real estate ) = MEDIAN = | D5: =MEDIAN(Sales) ->  | AE5: =2^AE4>=AE3 -> TRUE | AF5: 2^k > = n
A6: Mode = the one that occurs most frequently (not always a mode or sometimes theer can be more than 1 mode) = this average is good when you are counting (think of prefer/notPrefer in a soft drink test - adding all the ones and dividing by the count yields 1) = MODE = | D6: =MODE(Sales) ->  | E6: =COUNTIF(Sales,D6) ->  | AD6: Max | AE6: =MAX(Sales) -> 
A7: Why do we need Standard Deviation (a measure of variation in data)? Because we need to know if our mean represents that data points fairly! | AD7: Min | AE7: =MIN(Sales) -> 
A8: Standard Deviation for a sample = tells you "how good your mean is", or "how fairly the mean represents all the data points, or "on average, how far away from the average is the actual data point?", SQRT(SUM((X - Xmean)^2)/(CountOf(X - Xman) - 1)) = STDEV = | D8: =STDEV(Sales) ->  | E8: =SQRT((SUM((Sales-AVERAGE(Sales))^2)/(COUNT(Sales)-1))) ->  | AD8: Range | AE8: =AE6-AE7 -> 
A9: Mean Deviation = "how good is your mean" = SUM(ASB(X - Xmean))/(CountOf(X - Xman) - 1) = AVEDEV = | D9: =AVEDEV(Sales) ->  | E9: =SUM(ABS(Sales-AVERAGE(Sales)))/COUNT(Sales) ->  | AD9: Class Interval = (Max - Min)/k = | AE9: =AE8/AE4 -> 
A10: Maximum = what value is the largest = MAX = | D10: =MAX(Sales) ->  | AD10: Class Interval (always round up) = | AE10: =CEILING(D12/AE4,500) -> 
A11: Minimum = what value is the smallest = MAX = | D11: =MIN(Sales) ->  | AD11: Lower Limit of first class | AE11: 0
A12: MAX - MIN = Range | D12: =D10-D11 ->  | AD12: Upper Limit of last class | AE12: 13000
A13: Count # of Sales using "numbers" = COUNT = | D13: =COUNT(Sales) -> 0
A14: Count # of Sales using "Text", or non-empty cells = COUNTA = | D14: =COUNTA(SalesReps) -> 1
A15: Skew = 1) 0 = Bell shaped ==> mean = median = mode; 2) -# = curve titled toward right ==> Mean < Median < Mode (mean pulled down by a few small numbers); +# = curve titled toward left Mean > Median > Mode (Mean is pulled up by a few large numbers). | D15: =SKEW(Sales) -> 
A17: Sales Total Rank Table & Bonus Total | E17: Bonus Amount | AG17: Rank with ties receiving same value | AK17: Rank with no Ties, 1st and 2nd tie get "add 1" | AO17: Rank with no Ties, each tie gets same value
A18: Sales Rep (Category) | B18: Frequency | C18: Rank | D18: 50000 | E18: 2000 | AG18: Sales Rep (Category) | AH18: Frequency | AI18: Rank | AK18: Sales Rep (Category) | AL18: Frequency | AM18: Rank | AO18: Sales Rep (Category) | AP18: Frequency | AQ18: Rank
A19: Al | B19: =SUMIF($B$59:$B$115,A19,Sales) ->  | C19: =RANK(B19,B$19:B$24,0) ->  | D19: =IF(B19>=D$18,E$18,0) ->  | AG19: Al | AH19: 5000 | AI19: =RANK(AH19,AH$19:AH$24,0)+COUNTIF(AH$18:AH18,AH19) -> 2 | AK19: Al | AL19: 5000 | AM19: =RANK(AL19,AL$19:AL$24,0)+COUNTIF(AL$18:AL18,AL19) -> 2 | AO19: Al | AP19: 5000 | AQ19: =RANK(AP19,AP$19:AP$24,0)+(COUNT(AP$19:AP$24)+1-RANK(AP19,AP$19:AP$24,0)-RANK(AP19,AP$19:AP$24,1))/2 -> 3
A20: Gwen | AG20: Gwen | AH20: 5000 | AI20: =RANK(AH20,AH$19:AH$24,0)+COUNTIF(AH$18:AH19,AH20) -> 3 | AK20: Gwen | AL20: 5000 | AM20: =RANK(AL20,AL$19:AL$24,0)+COUNTIF(AL$18:AL19,AL20) -> 3 | AO20: Gwen | AP20: 5000 | AQ20: 3
A21: Michele | AG21: Michele | AH21: 5000 | AI21: =RANK(AH21,AH$19:AH$24,0)+COUNTIF(AH$18:AH20,AH21) -> 4 | AK21: Michele | AL21: 5000 | AM21: =RANK(AL21,AL$19:AL$24,0)+COUNTIF(AL$18:AL20,AL21) -> 4 | AO21: Michele | AP21: 5000 | AQ21: 3
A22: Megan | AG22: Megan | AH22: 5890 | AI22: =RANK(AH22,AH$19:AH$24,0)+COUNTIF(AH$18:AH21,AH22) -> 1 | AK22: Megan | AL22: 5890 | AM22: =RANK(AL22,AL$19:AL$24,0)+COUNTIF(AL$18:AL21,AL22) -> 1 | AO22: Megan | AP22: 5890 | AQ22: 1
A23: Luong | AG23: Luong | AH23: 4900 | AI23: =RANK(AH23,AH$19:AH$24,0)+COUNTIF(AH$18:AH22,AH23) -> 5 | AK23: Luong | AL23: 4900 | AM23: =RANK(AL23,AL$19:AL$24,0)+COUNTIF(AL$18:AL22,AL23) -> 5 | AO23: Luong | AP23: 4900 | AQ23: 5.5
A24: Joel | AG24: Joel | AH24: 4900 | AI24: =RANK(AH24,AH$19:AH$24,0)+COUNTIF(AH$18:AH23,AH24) -> 6 | AK24: Joel | AL24: 4900 | AM24: =RANK(AL24,AL$19:AL$24,0)+COUNTIF(AL$18:AL23,AL24) -> 6 | AO24: Joel | AP24: 4900 | AQ24: 5.5
A26: Number Of Sales Rank Table (Frequency Table)
A27: Sales Rep (Category) | B27: Frequency | C27: Relative Frequency | D27: Rank
A28: Al | B28: =COUNTIF($B$59:$B$115,A28) -> 6 | C28: =B28/B$34 -> 0.1052631579 | D28: =RANK(B28,B28:B33,0) -> 6
A29: Gwen | B29: 12 | C29: 0.2105263158 | D29: 3
A30: Michele | B30: 17 | C30: 0.298245614 | D30: 2
A31: Megan | B31: 7 | C31: 0.1228070175 | D31: =RANK(B31,B31:B38,0) -> 
A32: Luong | B32: 8 | C32: 0.1403508772 | D32: =RANK(B32,B32:B39,0) -> 
A33: Joel | B33: 7 | C33: 0.1228070175 | D33: =RANK(B33,B33:B40,0) -> 
B34: =SUM(B28:B33) -> 57
A36: Lower limit of first class | B36: Class interval
A37: 0 | B37: =AE10 -> 
A38: Lower Class Limit | B38: Upper Class Limit | C38: Class | D38: Frequency
A39: =A37 -> 0 | B39: =A39+B$37 ->  | C39: =DOLLAR(A39,0)&" up to "&DOLLAR(B39,0) ->  | D39: =COUNTIF(Sales,"<"&B39)-COUNTIF(Sales,"<"&A39) -> 
A40: =B39 ->  | B40: =A40+B$37 -> 
A41: =B40 ->  | B41: =A41+B$37 -> 
D46: =SUM(D39:D45)=COUNT(Sales) -> 
A49: Largest Sales = | B49: 5 | E49: Smallest Sales = | F49: 5
A50: Table with 5 Largest Sales | E50: Table with 5 Largest Sales
A51: Rank | B51: Amount | C51: Sales Rep | E51: Rank | F51: Amount | G51: Sales Rep
A52: =IF(ROW(A1)<=B$49,ROW(A1),"") -> 1 | B52: =IF(A52="","",LARGE(Sales,A52)) ->  | C52: =IF(OR(A51="",B51=""),"",INDEX(SalesReps,MATCH(B52,Sales,0))) ->  | E52: =IF(ROW(E1)<=F$49,ROW(E1),"") -> 1 | F52: =IF(E52="","",SMALL(Sales,E52)) ->  | G52: =IF(OR(A52="",B52=""),"",INDEX(SalesReps,MATCH(F52,Sales,0))) -> 
A53: 2 | B53: =IF(A53="","",LARGE(Sales,A53)) ->  | C53: =IF(OR(A52="",B52=""),"",INDEX(SalesReps,MATCH(B53,Sales,0))) ->  | E53: 2 | F53: =IF(E53="","",SMALL(Sales,E53)) ->  | G53: =IF(OR(A53="",B53=""),"",INDEX(SalesReps,MATCH(F53,Sales,0))) -> 
A54: 3 | B54: =IF(A54="","",LARGE(Sales,A54)) ->  | C54: =IF(OR(A53="",B53=""),"",INDEX(SalesReps,MATCH(B54,Sales,0))) ->  | E54: 3 | F54: =IF(E54="","",SMALL(Sales,E54)) ->  | G54: =IF(OR(A54="",B54=""),"",INDEX(SalesReps,MATCH(F54,Sales,0))) -> 
A55: 4 | B55: =IF(A55="","",LARGE(Sales,A55)) ->  | C55: =IF(OR(A54="",B54=""),"",INDEX(SalesReps,MATCH(B55,Sales,0))) ->  | E55: 4 | F55: =IF(E55="","",SMALL(Sales,E55)) ->  | G55: =IF(OR(A55="",B55=""),"",INDEX(SalesReps,MATCH(F55,Sales,0))) -> 
A56: 5 | B56: =IF(A56="","",LARGE(Sales,A56)) ->  | C56: =IF(OR(A55="",B55=""),"",INDEX(SalesReps,MATCH(B56,Sales,0))) ->  | E56: 5 | F56: =IF(E56="","",SMALL(Sales,E56)) ->  | G56: =IF(OR(A56="",B56=""),"",INDEX(SalesReps,MATCH(F56,Sales,0))) -> 
A58: Sales | B58: Sales Rep
A59: =RANDBETWEEN(450,12999) -> 5535 | B59: =CHOOSE(RANDBETWEEN(1,6),"Joel","Al","Michele","Gwen","Megan","Luong") -> Michele
A60: =RANDBETWEEN(450,12999) -> 8077 | B60: Michele
A61: 2387 | B61: Gwen
A62: 11548 | B62: Joel
A63: 3785 | B63: Gwen
A64: 9346 | B64: Michele
A65: 546 | B65: Luong
A66: 12653 | B66: Gwen
A67: 5997 | B67: Megan
A68: 8151 | B68: Gwen
A69: 834 | B69: Joel
A70: 8694 | B70: Megan
A71: 4671 | B71: Gwen
A72: 7630 | B72: Michele
A73: 9372 | B73: Al
A74: 1525 | B74: Luong
A75: 6258 | B75: Michele
A76: 4619 | B76: Michele
A77: 4227 | B77: Al
A78: 6744 | B78: Gwen
A79: 5545 | B79: Joel
A80: 8123 | B80: Michele
A81: 12839 | B81: Gwen
A82: 9576 | B82: Michele
A83: 674 | B83: Luong
A84: 8540 | B84: Megan
A85: 2166 | B85: Gwen
A86: 5104 | B86: Megan
A87: 10056 | B87: Luong
A88: 9496 | B88: Luong
A89: 9108 | B89: Megan
A90: 6058 | B90: Michele
A91: 11287 | B91: Michele
A92: 3063 | B92: Joel
A93: 8820 | B93: Luong
A94: 6212 | B94: Michele
A95: 3931 | B95: Al
A96: 5634 | B96: Joel
A97: 11027 | B97: Megan
A98: 5106 | B98: Megan
A99: 11742 | B99: Gwen
A100: 9316 | B100: Michele
A101: 11260 | B101: Michele
A102: 8026 | B102: Luong
A103: 9704 | B103: Michele
A104: 12331 | B104: Al
A105: 5610 | B105: Michele
A106: 1761 | B106: Gwen
A107: 6037 | B107: Gwen
A108: 10321 | B108: Michele
A109: 517 | B109: Joel
A110: 1087 | B110: Al
A111: 1444 | B111: Michele
A112: 8856 | B112: Luong
A113: 5061 | B113: Joel
A114: 11836 | B114: Al
A115: 12556 | B115: Gwen
A146: =IF(MOD(ROW(),10)=0,RANDBETWEEN(7899,12999),IF(MOD(ROW(),2)=0,RANDBETWEEN(1000,6000),RANDBETWEEN(250,10000))) -> 4887
A147: =IF(MOD(ROW(),10)=0,RANDBETWEEN(7899,12999),IF(MOD(ROW(),2)=0,RANDBETWEEN(1000,6000),RANDBETWEEN(250,10000))) -> 1861
A148: 4484
A149: 9983
A150: 11423
A151: 9427
A152: 5183
A153: 2013
A154: 4609
A155: 9076
A156: 3817
A157: 8933
A158: 2693
A159: 1944
A160: 10457
A161: 9434
A162: 4902
A163: 2432
A164: 1161
A165: 442
A166: 4105
A167: 1263

Sheet Normal Curve
A1: Mean of Sample = AVERAGE = | B1: 5000
A2: Standard Deviation of Sample = STDEV = | B2: 1000
C4: 3000 | D4: 4000
C5: 7000 | D5: 6000
A6: X | B6: P(X) | C6: ="P("&C4&" < X < "&C5&")" -> P(3000 < X < 7000) | D6: ="P("&D4&" < X < "&D5&")" -> P(4000 < X < 6000)
A7: 1000 | B7: =NORMDIST(A7,B$1,B$2,0) -> 1.338302258e-07 | C7: =IF(AND($A7<=C$5,$A7>=C$4),$B7,0) -> 0 | D7: =IF(AND($A7<=D$5,$A7>=D$4),$B7,0) -> 0
A8: =A7+1 -> 1001 | B8: =NORMDIST(A8,B$1,B$2,0) -> 1.343665516e-07 | C8: 0 | D8: 0
A9: =A8+1 -> 1002 | B9: 1.349048918e-07 | C9: 0 | D9: 0
A10: 1003 | B10: 1.354452534e-07 | C10: 0 | D10: 0
A11: 1004 | B11: 1.359876435e-07 | C11: 0 | D11: 0
A12: 1005 | B12: 1.36532069e-07 | C12: 0 | D12: 0
A13: 1006 | B13: 1.370785371e-07 | C13: 0 | D13: 0
A14: 1007 | B14: 1.376270547e-07 | C14: 0 | D14: 0
A15: 1008 | B15: 1.381776291e-07 | C15: 0 | D15: 0
A16: 1009 | B16: 1.387302673e-07 | C16: 0 | D16: 0
A17: 1010 | B17: 1.392849765e-07 | C17: 0 | D17: 0
A18: 1011 | B18: 1.398417638e-07 | C18: 0 | D18: 0
A19: 1012 | B19: 1.404006365e-07 | C19: 0 | D19: 0
A20: 1013 | B20: 1.409616017e-07 | C20: 0 | D20: 0
A21: 1014 | B21: 1.415246667e-07 | C21: 0 | D21: 0
A22: 1015 | B22: 1.420898387e-07 | C22: 0 | D22: 0
A23: 1016 | B23: 1.426571251e-07 | C23: 0 | D23: =IF(AND($A23<=D$5,$A23>=D$4),$B23,0) -> 0
A24: 1017 | B24: 1.432265332e-07 | C24: 0 | D24: 0
A25: 1018 | B25: 1.437980701e-07 | C25: 0 | D25: 0
A26: 1019 | B26: 1.443717434e-07 | C26: 0 | D26: 0
A27: 1020 | B27: 1.449475604e-07 | C27: 0 | D27: 0
A28: 1021 | B28: 1.455255285e-07 | C28: 0 | D28: 0
A29: 1022 | B29: 1.461056551e-07 | C29: 0 | D29: 0
A30: 1023 | B30: 1.466879476e-07 | C30: 0 | D30: 0
A31: 1024 | B31: 1.472724135e-07 | C31: 0 | D31: 0
A32: 1025 | B32: 1.478590603e-07 | C32: 0 | D32: 0
A33: 1026 | B33: 1.484478955e-07 | C33: 0 | D33: 0
A34: 1027 | B34: 1.490389267e-07 | C34: 0 | D34: 0
A35: 1028 | B35: 1.496321614e-07 | C35: 0 | D35: 0
A36: 1029 | B36: 1.502276071e-07 | C36: 0 | D36: 0
A37: 1030 | B37: 1.508252716e-07 | C37: 0 | D37: 0
A38: 1031 | B38: 1.514251623e-07 | C38: 0 | D38: 0
A39: 1032 | B39: 1.52027287e-07 | C39: 0 | D39: 0
A40: 1033 | B40: 1.526316534e-07 | C40: 0 | D40: 0
A41: 1034 | B41: 1.532382692e-07 | C41: 0 | D41: 0
A42: 1035 | B42: 1.53847142e-07 | C42: 0 | D42: 0
A43: 1036 | B43: 1.544582796e-07 | C43: 0 | D43: 0
A44: 1037 | B44: 1.550716898e-07 | C44: 0 | D44: 0
A45: 1038 | B45: 1.556873804e-07 | C45: 0 | D45: 0
A46: 1039 | B46: 1.563053592e-07 | C46: 0 | D46: 0
A47: 1040 | B47: 1.569256341e-07 | C47: 0 | D47: 0
A48: 1041 | B48: 1.575482129e-07 | C48: 0 | D48: 0
A49: 1042 | B49: 1.581731034e-07 | C49: 0 | D49: 0
A50: 1043 | B50: 1.588003138e-07 | C50: 0 | D50: 0
A51: 1044 | B51: 1.594298518e-07 | C51: 0 | D51: 0
A52: 1045 | B52: 1.600617254e-07 | C52: 0 | D52: 0
A53: 1046 | B53: 1.606959427e-07 | C53: 0 | D53: 0
A54: 1047 | B54: 1.613325116e-07 | C54: 0 | D54: 0
A55: 1048 | B55: 1.619714402e-07 | C55: 0 | D55: 0
A56: 1049 | B56: 1.626127366e-07 | C56: 0 | D56: 0
A57: 1050 | B57: 1.632564088e-07 | C57: 0 | D57: 0
A58: 1051 | B58: 1.639024649e-07 | C58: 0 | D58: 0
A59: 1052 | B59: 1.645509132e-07 | C59: 0 | D59: 0
A60: 1053 | B60: 1.652017616e-07 | C60: 0 | D60: 0
A61: 1054 | B61: 1.658550186e-07 | C61: 0 | D61: 0
A62: 1055 | B62: 1.665106922e-07 | C62: 0 | D62: 0
A63: 1056 | B63: 1.671687907e-07 | C63: 0 | D63: 0
A64: 1057 | B64: 1.678293224e-07 | C64: 0 | D64: 0
A65: 1058 | B65: 1.684922955e-07 | C65: 0 | D65: 0
A66: 1059 | B66: 1.691577184e-07 | C66: 0 | D66: 0
A67: 1060 | B67: 1.698255994e-07 | C67: 0 | D67: 0
A68: 1061 | B68: 1.704959469e-07 | C68: 0 | D68: 0
A69: 1062 | B69: 1.711687693e-07 | C69: 0 | D69: 0
A70: 1063 | B70: 1.71844075e-07 | C70: 0 | D70: 0
A71: 1064 | B71: 1.725218724e-07 | C71: =IF(AND($A71<=C$5,$A71>=C$4),$B71,0) -> 0 | D71: 0
A72: 1065 | B72: =NORMDIST(A72,B$1,B$2,0) -> 1.7320217e-07 | C72: 0 | D72: 0
A73: =A72+1 -> 1066 | B73: 1.738849763e-07 | C73: 0 | D73: 0
A74: 1067 | B74: 1.745702998e-07 | C74: 0 | D74: 0
A75: 1068 | B75: 1.752581491e-07 | C75: 0 | D75: 0
A76: 1069 | B76: 1.759485328e-07 | C76: 0 | D76: 0
A77: 1070 | B77: 1.766414593e-07 | C77: 0 | D77: 0
A78: 1071 | B78: 1.773369375e-07 | C78: 0 | D78: 0
A79: 1072 | B79: 1.780349759e-07 | C79: 0 | D79: 0
A80: 1073 | B80: 1.787355832e-07 | C80: 0 | D80: 0
A81: 1074 | B81: 1.794387681e-07 | C81: 0 | D81: 0
A82: 1075 | B82: 1.801445393e-07 | C82: 0 | D82: 0
A83: 1076 | B83: 1.808529056e-07 | C83: 0 | D83: 0
A84: 1077 | B84: 1.815638758e-07 | C84: 0 | D84: 0
A85: 1078 | B85: 1.822774587e-07 | C85: 0 | D85: 0
A86: 1079 | B86: 1.829936632e-07 | C86: 0 | D86: 0
A87: 1080 | B87: 1.83712498e-07 | C87: 0 | D87: =IF(AND($A87<=D$5,$A87>=D$4),$B87,0) -> 0
A88: 1081 | B88: 1.844339721e-07 | C88: 0 | D88: 0
A89: 1082 | B89: 1.851580945e-07 | C89: 0 | D89: 0
A90: 1083 | B90: 1.858848739e-07 | C90: 0 | D90: 0
A91: 1084 | B91: 1.866143196e-07 | C91: 0 | D91: 0
A92: 1085 | B92: 1.873464403e-07 | C92: 0 | D92: 0
A93: 1086 | B93: 1.880812452e-07 | C93: 0 | D93: 0
A94: 1087 | B94: 1.888187433e-07 | C94: 0 | D94: 0
A95: 1088 | B95: 1.895589437e-07 | C95: 0 | D95: 0
A96: 1089 | B96: 1.903018555e-07 | C96: 0 | D96: 0
A97: 1090 | B97: 1.910474879e-07 | C97: 0 | D97: 0
A98: 1091 | B98: 1.917958499e-07 | C98: 0 | D98: 0
A99: 1092 | B99: 1.925469509e-07 | C99: 0 | D99: 0
A100: 1093 | B100: 1.933008e-07 | C100: 0 | D100: 0
A101: 1094 | B101: 1.940574064e-07 | C101: 0 | D101: 0
A102: 1095 | B102: 1.948167795e-07 | C102: 0 | D102: 0
A103: 1096 | B103: 1.955789286e-07 | C103: 0 | D103: 0
A104: 1097 | B104: 1.963438629e-07 | C104: 0 | D104: 0
A105: 1098 | B105: 1.971115919e-07 | C105: 0 | D105: 0
A106: 1099 | B106: 1.978821249e-07 | C106: 0 | D106: 0
A107: 1100 | B107: 1.986554714e-07 | C107: 0 | D107: 0
A108: 1101 | B108: 1.994316408e-07 | C108: 0 | D108: 0
A109: 1102 | B109: 2.002106425e-07 | C109: 0 | D109: 0
A110: 1103 | B110: 2.009924861e-07 | C110: 0 | D110: 0
A111: 1104 | B111: 2.017771811e-07 | C111: 0 | D111: 0
A112: 1105 | B112: 2.025647371e-07 | C112: 0 | D112: 0
A113: 1106 | B113: 2.033551636e-07 | C113: 0 | D113: 0
A114: 1107 | B114: 2.041484703e-07 | C114: 0 | D114: 0
A115: 1108 | B115: 2.049446668e-07 | C115: 0 | D115: 0
A116: 1109 | B116: 2.057437628e-07 | C116: 0 | D116: 0
A117: 1110 | B117: 2.06545768e-07 | C117: 0 | D117: 0
A118: 1111 | B118: 2.073506921e-07 | C118: 0 | D118: 0
A119: 1112 | B119: 2.08158545e-07 | C119: 0 | D119: 0
A120: 1113 | B120: 2.089693363e-07 | C120: 0 | D120: 0
A121: 1114 | B121: 2.097830759e-07 | C121: 0 | D121: 0
A122: 1115 | B122: 2.105997736e-07 | C122: 0 | D122: 0
A123: 1116 | B123: 2.114194394e-07 | C123: 0 | D123: 0
A124: 1117 | B124: 2.122420831e-07 | C124: 0 | D124: 0
A125: 1118 | B125: 2.130677147e-07 | C125: 0 | D125: 0
A126: 1119 | B126: 2.138963442e-07 | C126: 0 | D126: 0
A127: 1120 | B127: 2.147279815e-07 | C127: 0 | D127: 0
A128: 1121 | B128: 2.155626367e-07 | C128: 0 | D128: 0
A129: 1122 | B129: 2.164003198e-07 | C129: 0 | D129: 0
A130: 1123 | B130: 2.172410409e-07 | C130: 0 | D130: 0
A131: 1124 | B131: 2.180848102e-07 | C131: 0 | D131: 0
A132: 1125 | B132: 2.189316378e-07 | C132: 0 | D132: 0
A133: 1126 | B133: 2.197815338e-07 | C133: 0 | D133: 0
A134: 1127 | B134: 2.206345085e-07 | C134: 0 | D134: 0
A135: 1128 | B135: 2.214905721e-07 | C135: =IF(AND($A135<=C$5,$A135>=C$4),$B135,0) -> 0 | D135: 0
A136: 1129 | B136: =NORMDIST(A136,B$1,B$2,0) -> 2.223497349e-07 | C136: 0 | D136: 0
A137: =A136+1 -> 1130 | B137: 2.232120072e-07 | C137: 0 | D137: 0
A138: 1131 | B138: 2.240773993e-07 | C138: 0 | D138: 0
A139: 1132 | B139: 2.249459216e-07 | C139: 0 | D139: 0
A140: 1133 | B140: 2.258175844e-07 | C140: 0 | D140: 0
A141: 1134 | B141: 2.266923983e-07 | C141: 0 | D141: 0
A142: 1135 | B142: 2.275703735e-07 | C142: 0 | D142: 0
A143: 1136 | B143: 2.284515207e-07 | C143: 0 | D143: 0
A144: 1137 | B144: 2.293358504e-07 | C144: 0 | D144: 0
A145: 1138 | B145: 2.30223373e-07 | C145: 0 | D145: 0
A146: 1139 | B146: 2.311140993e-07 | C146: 0 | D146: 0
A147: 1140 | B147: 2.320080397e-07 | C147: 0 | D147: 0
A148: 1141 | B148: 2.329052049e-07 | C148: 0 | D148: 0
A149: 1142 | B149: 2.338056056e-07 | C149: 0 | D149: 0
A150: 1143 | B150: 2.347092525e-07 | C150: 0 | D150: 0
A151: 1144 | B151: 2.356161563e-07 | C151: 0 | D151: =IF(AND($A151<=D$5,$A151>=D$4),$B151,0) -> 0
A152: 1145 | B152: 2.365263279e-07 | C152: 0 | D152: 0
A153: 1146 | B153: 2.374397779e-07 | C153: 0 | D153: 0
A154: 1147 | B154: 2.383565173e-07 | C154: 0 | D154: 0
A155: 1148 | B155: 2.392765569e-07 | C155: 0 | D155: 0
A156: 1149 | B156: 2.401999076e-07 | C156: 0 | D156: 0
A157: 1150 | B157: 2.411265802e-07 | C157: 0 | D157: 0
A158: 1151 | B158: 2.420565859e-07 | C158: 0 | D158: 0
A159: 1152 | B159: 2.429899355e-07 | C159: 0 | D159: 0
A160: 1153 | B160: 2.439266401e-07 | C160: 0 | D160: 0
A161: 1154 | B161: 2.448667108e-07 | C161: 0 | D161: 0
A162: 1155 | B162: 2.458101585e-07 | C162: 0 | D162: 0
A163: 1156 | B163: 2.467569946e-07 | C163: 0 | D163: 0
A164: 1157 | B164: 2.4770723e-07 | C164: 0 | D164: 0
A165: 1158 | B165: 2.486608761e-07 | C165: 0 | D165: 0
A166: 1159 | B166: 2.49617944e-07 | C166: 0 | D166: 0
A167: 1160 | B167: 2.505784449e-07 | C167: 0 | D167: 0
A168: 1161 | B168: 2.515423902e-07 | C168: 0 | D168: 0
A169: 1162 | B169: 2.525097911e-07 | C169: 0 | D169: 0
A170: 1163 | B170: 2.534806591e-07 | C170: 0 | D170: 0
A171: 1164 | B171: 2.544550055e-07 | C171: 0 | D171: 0
A172: 1165 | B172: 2.554328417e-07 | C172: 0 | D172: 0
A173: 1166 | B173: 2.564141792e-07 | C173: 0 | D173: 0
A174: 1167 | B174: 2.573990295e-07 | C174: 0 | D174: 0
A175: 1168 | B175: 2.58387404e-07 | C175: 0 | D175: 0
A176: 1169 | B176: 2.593793144e-07 | C176: 0 | D176: 0
A177: 1170 | B177: 2.603747722e-07 | C177: 0 | D177: 0
A178: 1171 | B178: 2.613737891e-07 | C178: 0 | D178: 0
A179: 1172 | B179: 2.623763766e-07 | C179: 0 | D179: 0
A180: 1173 | B180: 2.633825465e-07 | C180: 0 | D180: 0
A181: 1174 | B181: 2.643923105e-07 | C181: 0 | D181: 0
A182: 1175 | B182: 2.654056804e-07 | C182: 0 | D182: 0
A183: 1176 | B183: 2.664226679e-07 | C183: 0 | D183: 0
A184: 1177 | B184: 2.674432849e-07 | C184: 0 | D184: 0
A185: 1178 | B185: 2.684675432e-07 | C185: 0 | D185: 0
A186: 1179 | B186: 2.694954548e-07 | C186: 0 | D186: 0
A187: 1180 | B187: 2.705270315e-07 | C187: 0 | D187: 0
A188: 1181 | B188: 2.715622853e-07 | C188: 0 | D188: 0
A189: 1182 | B189: 2.726012282e-07 | C189: 0 | D189: 0
A190: 1183 | B190: 2.736438723e-07 | C190: 0 | D190: 0
A191: 1184 | B191: 2.746902296e-07 | C191: 0 | D191: 0
A192: 1185 | B192: 2.757403121e-07 | C192: 0 | D192: 0
A193: 1186 | B193: 2.767941322e-07 | C193: 0 | D193: 0
A194: 1187 | B194: 2.778517018e-07 | C194: 0 | D194: 0
A195: 1188 | B195: 2.789130333e-07 | C195: 0 | D195: 0
A196: 1189 | B196: 2.799781389e-07 | C196: 0 | D196: 0
A197: 1190 | B197: 2.810470308e-07 | C197: 0 | D197: 0
A198: 1191 | B198: 2.821197214e-07 | C198: 0 | D198: 0
A199: 1192 | B199: 2.83196223e-07 | C199: =IF(AND($A199<=C$5,$A199>=C$4),$B199,0) -> 0 | D199: 0
A200: 1193 | B200: =NORMDIST(A200,B$1,B$2,0) -> 2.84276548e-07 | C200: 0 | D200: 0
A201: =A200+1 -> 1194 | B201: 2.853607088e-07 | C201: 0 | D201: 0
... 7806 more rows

Sheet Line & X Y Scatter Diagram
A1: Years | B1: Number of Customers | G1: Customers Contacted | H1: Total Sales
A2: 1989-01-01 | B2: 65018 | G2: 749 | H2: 850115
A3: 1990-01-01 | B3: 98622 | G3: 938 | H3: 1368542
A4: 1991-01-01 | B4: 80250 | G4: 659 | H4: 1043856
A5: 1992-01-01 | B5: 168020 | G5: 1865 | H5: 2519615
A6: 1993-01-01 | B6: 203820 | G6: 887 | H6: 518008
A7: 1994-01-01 | B7: 192000 | G7: 583 | H7: 687357
A8: 1995-01-01 | B8: 277600 | G8: 1278 | H8: 967446
A9: 1996-01-01 | B9: 315585 | G9: 609 | H9: 440307
A10: 1997-01-01 | B10: 312052 | G10: 787 | H10: 897180
A11: 1998-01-01 | B11: 393756 | G11: 1747 | H11: 2119111
A12: 1999-01-01 | B12: 433932 | G12: 864 | H12: 1404864
A13: 2000-01-01 | B13: 474838 | G13: 580 | H13: 1057340
A14: 2001-01-01 | B14: 516488 | G14: 859 | H14: 1253281
A15: 2002-01-01 | B15: 513892 | G15: 515 | H15: 811640
A16: 2003-01-01 | B16: 601952 | G16: 1084 | H16: 2022744
A17: 2004-01-01 | B17: 645779 | G17: 1710 | H17: 2470950
A18: 2005-01-01 | B18: 690354 | G18: 720 | H18: 985680
A19: 2006-01-01 | B19: 680354 | G19: 1691 | H19: 1589540
A20: 2007-01-01 | B20: 679354 | G20: 1500 | H20: 150000
A21: 2008-01-01 | B21: 669354

Sheet Line & X Y Scatter Diagram (an)
A1: Years | B1: Number of Customers | G1: Customers Contacted | H1: Total Sales
A2: 1989-01-01 | B2: 65018 | G2: 749 | H2: 850115
A3: 1990-01-01 | B3: 98622 | G3: 938 | H3: 1368542
A4: 1991-01-01 | B4: 80250 | G4: 659 | H4: 1043856
A5: 1992-01-01 | B5: 168020 | G5: 1865 | H5: 2519615
A6: 1993-01-01 | B6: 203820 | G6: 887 | H6: 518008
A7: 1994-01-01 | B7: 192000 | G7: 583 | H7: 687357
A8: 1995-01-01 | B8: 277600 | G8: 1278 | H8: 967446
A9: 1996-01-01 | B9: 315585 | G9: 609 | H9: 440307
A10: 1997-01-01 | B10: 312052 | G10: 787 | H10: 897180
A11: 1998-01-01 | B11: 393756 | G11: 1747 | H11: 2119111
A12: 1999-01-01 | B12: 433932 | G12: 864 | H12: 1404864
A13: 2000-01-01 | B13: 474838 | G13: 580 | H13: 1057340
A14: 2001-01-01 | B14: 516488 | G14: 859 | H14: 1253281
A15: 2002-01-01 | B15: 513892 | G15: 515 | H15: 811640
A16: 2003-01-01 | B16: 601952 | G16: 1084 | H16: 2022744
A17: 2004-01-01 | B17: 645779 | G17: 1710 | H17: 2470950
A18: 2005-01-01 | B18: 690354 | G18: 720 | H18: 985680
A19: 2006-01-01 | B19: 680354 | G19: 1691 | H19: 1589540
A20: 2007-01-01 | B20: 679354 | G20: 1500 | H20: 150000
A21: 2008-01-01 | B21: 669354

Sheet AI,SIS,CIS
A1: Year | B1: Sales | C1: COGS | D1: Profit | E1: SalesRep | G1: Sales Summary
A2: 2006 | B2: 2095 | C2: 838 | D2: 1257 | E2: Isaac | G2: Year/SalesRep | H2: Isaac | I2: Kiko | J2: Suix | K2: Tatyana | L2: Victor | M2: Wendy
A3: 2006 | B3: 4022 | C3: 2128.042328 | D3: 1893.957672 | E3: Tatyana | G3: 2004
A4: 2006 | B4: 5542 | C4: 2216.8 | D4: 3325.2 | E4: Suix | G4: 2005
A5: 2007 | B5: 6527 | C5: 3453.439153 | D5: 3073.560847 | E5: Kiko | G5: 2006
A6: 2005 | B6: 9392 | C6: 3756.8 | D6: 5635.2 | E6: Victor | G6: 2007
A7: 2004 | B7: 16685 | C7: 8828.042328 | D7: 7856.957672 | E7: Isaac | G7: 2008
A8: 2004 | B8: 6054 | C8: 2421.6 | D8: 3632.4 | E8: Kiko | G8: 2009
A9: 2006 | B9: 6815 | C9: 3605.820106 | D9: 3209.179894 | E9: Victor
A10: 2006 | B10: 14894 | C10: 5957.6 | D10: 8936.4 | E10: Wendy | G10: Average by Year
A11: 2008 | B11: 16962 | C11: 8974.603175 | D11: 7987.396825 | E11: Suix | G11: Year | H11: ="Average "&B1 -> Average Sales | I11: ="Average "&C1 -> Average COGS | J11: ="Average "&D1 -> Average Profit
A12: 2006 | B12: 5160 | C12: 2064 | D12: 3096 | E12: Wendy | G12: 2004
A13: 2009 | B13: 8589 | C13: 4544.444444 | D13: 4044.555556 | E13: Isaac | G13: 2005
A14: 2008 | B14: 5754 | C14: 2301.6 | D14: 3452.4 | E14: Suix | G14: 2006
A15: 2006 | B15: 813 | C15: 430.1587302 | D15: 382.8412698 | E15: Tatyana | G15: 2007
A16: 2007 | B16: 16027 | C16: 6410.8 | D16: 9616.2 | E16: Kiko | G16: 2008
A17: 2006 | B17: 6874 | C17: 3637.037037 | D17: 3236.962963 | E17: Kiko | G17: 2009
A18: 2005 | B18: 10545 | C18: 4218 | D18: 6327 | E18: Kiko
A19: 2006 | B19: 4027 | C19: 2130.687831 | D19: 1896.312169 | E19: Wendy
A20: 2009 | B20: 934 | C20: 373.6 | D20: 560.4 | E20: Isaac
A21: 2007 | B21: 16326 | C21: 8638.095238 | D21: 7687.904762 | E21: Wendy
A22: 2009 | B22: 5968 | C22: 2387.2 | D22: 3580.8 | E22: Kiko
A23: 2006 | B23: 3840 | C23: 2031.746032 | D23: 1808.253968 | E23: Victor
A24: 2007 | B24: 4484 | C24: 1793.6 | D24: 2690.4 | E24: Victor
A25: 2006 | B25: 6317 | C25: 3342.328042 | D25: 2974.671958 | E25: Victor
A26: 2005 | B26: 10785 | C26: 4314 | D26: 6471 | E26: Kiko
A27: 2004 | B27: 1961 | C27: 1037.566138 | D27: 923.4338624 | E27: Tatyana
A28: 2005 | B28: 9765 | C28: 3906 | D28: 5859 | E28: Tatyana
A29: 2005 | B29: 11304 | C29: 5980.952381 | D29: 5323.047619 | E29: Suix
A30: 2006 | B30: 11826 | C30: 4730.4 | D30: 7095.6 | E30: Kiko
A31: 2008 | B31: 2784 | C31: 1473.015873 | D31: 1310.984127 | E31: Isaac
A32: 2005 | B32: 2322 | C32: 928.8 | D32: 1393.2 | E32: Suix
A33: 2009 | B33: 5124 | C33: 2711.111111 | D33: 2412.888889 | E33: Wendy
A34: 2008 | B34: 6472 | C34: 2588.8 | D34: 3883.2 | E34: Isaac
A35: 2004 | B35: 4670 | C35: 2470.899471 | D35: 2199.100529 | E35: Tatyana
A36: 2006 | B36: 7787 | C36: 3114.8 | D36: 4672.2 | E36: Tatyana
A37: 2008 | B37: 10352 | C37: 5477.248677 | D37: 4874.751323 | E37: Tatyana
A38: 2009 | B38: 6085 | C38: 2434 | D38: 3651 | E38: Suix
A39: 2008 | B39: 6432 | C39: 3403.174603 | D39: 3028.825397 | E39: Isaac
A40: 2008 | B40: 5003 | C40: 2001.2 | D40: 3001.8 | E40: Wendy
A41: 2009 | B41: 1372 | C41: 725.9259259 | D41: 646.0740741 | E41: Kiko
A42: 2007 | B42: 3013 | C42: 1205.2 | D42: 1807.8 | E42: Isaac
A43: 2006 | B43: 11817 | C43: 6252.380952 | D43: 5564.619048 | E43: Victor
A44: 2007 | B44: 6450 | C44: 2580 | D44: 3870 | E44: Wendy
A45: 2008 | B45: 10874 | C45: 5753.439153 | D45: 5120.560847 | E45: Kiko
A46: 2006 | B46: 4778 | C46: 1911.2 | D46: 2866.8 | E46: Wendy
A47: 2009 | B47: 4312 | C47: 2281.481481 | D47: 2030.518519 | E47: Victor
A48: 2009 | B48: 15358 | C48: 6143.2 | D48: 9214.8 | E48: Kiko
A49: 2008 | B49: 4352 | C49: 2302.645503 | D49: 2049.354497 | E49: Kiko
A50: 2004 | B50: 15905 | C50: 6362 | D50: 9543 | E50: Kiko
A51: 2005 | B51: 10283 | C51: 5440.740741 | D51: 4842.259259 | E51: Isaac
A52: 2005 | B52: 16052 | C52: 6420.8 | D52: 9631.2 | E52: Victor
A53: 2005 | B53: 5945 | C53: 3145.502646 | D53: 2799.497354 | E53: Isaac
A54: 2007 | B54: 5220 | C54: 2088 | D54: 3132 | E54: Isaac
A55: 2005 | B55: 1869 | C55: 988.8888889 | D55: 880.1111111 | E55: Suix
A56: 2007 | B56: 6229 | C56: 2491.6 | D56: 3737.4 | E56: Kiko
A57: 2004 | B57: 6563 | C57: 3472.486772 | D57: 3090.513228 | E57: Kiko
A58: 2008 | B58: 4692 | C58: 1876.8 | D58: 2815.2 | E58: Tatyana
A59: 2008 | B59: 983 | C59: 520.1058201 | D59: 462.8941799 | E59: Suix
A60: 2006 | B60: 10220 | C60: 4088 | D60: 6132 | E60: Wendy
A61: 2007 | B61: 15669 | C61: 8290.47619 | D61: 7378.52381 | E61: Victor
A62: 2009 | B62: 13088 | C62: 5235.2 | D62: 7852.8 | E62: Tatyana
A63: 2009 | B63: 5816 | C63: 3077.248677 | D63: 2738.751323 | E63: Victor
A64: 2006 | B64: 7475 | C64: 2990 | D64: 4485 | E64: Kiko
A65: 2009 | B65: 10348 | C65: 5475.132275 | D65: 4872.867725 | E65: Wendy
A66: 2009 | B66: 862 | C66: 344.8 | D66: 517.2 | E66: Suix
A67: 2005 | B67: 14861 | C67: 7862.962963 | D67: 6998.037037 | E67: Kiko
A68: 2008 | B68: 6752 | C68: 2700.8 | D68: 4051.2 | E68: Victor
A69: 2007 | B69: 11193 | C69: 5922.222222 | D69: 5270.777778 | E69: Tatyana
A70: 2006 | B70: 2428 | C70: 971.2 | D70: 1456.8 | E70: Tatyana
A71: 2008 | B71: 11122 | C71: 5884.656085 | D71: 5237.343915 | E71: Isaac
A72: 2007 | B72: 2624 | C72: 1049.6 | D72: 1574.4 | E72: Victor
A73: 2004 | B73: 5000 | C73: 2645.502646 | D73: 2354.497354 | E73: Wendy
A74: 2005 | B74: 12504 | C74: 5001.6 | D74: 7502.4 | E74: Tatyana
A75: 2009 | B75: 7882 | C75: 4170.37037 | D75: 3711.62963 | E75: Isaac
A76: 2007 | B76: 11473 | C76: 4589.2 | D76: 6883.8 | E76: Kiko
A77: 2008 | B77: 926 | C77: 489.9470899 | D77: 436.0529101 | E77: Victor
A78: 2006 | B78: 16346 | C78: 6538.4 | D78: 9807.6 | E78: Wendy
A79: 2007 | B79: 11773 | C79: 6229.100529 | D79: 5543.899471 | E79: Wendy
A80: 2009 | B80: 16760 | C80: 6704 | D80: 10056 | E80: Wendy
A81: 2004 | B81: 866 | C81: 458.2010582 | D81: 407.7989418 | E81: Suix
A82: 2009 | B82: 13599 | C82: 5439.6 | D82: 8159.4 | E82: Kiko
A83: 2009 | B83: 13724 | C83: 7261.375661 | D83: 6462.624339 | E83: Tatyana
A84: 2009 | B84: 2245 | C84: 898 | D84: 1347 | E84: Tatyana
A85: 2008 | B85: 3233 | C85: 1710.582011 | D85: 1522.417989 | E85: Wendy
A86: 2004 | B86: 1413 | C86: 565.2 | D86: 847.8 | E86: Suix
A87: 2008 | B87: 5323 | C87: 2816.402116 | D87: 2506.597884 | E87: Tatyana
A88: 2005 | B88: 1927 | C88: 770.8 | D88: 1156.2 | E88: Tatyana
A89: 2009 | B89: 4432 | C89: 2344.973545 | D89: 2087.026455 | E89: Tatyana
A90: 2006 | B90: 6437 | C90: 2574.8 | D90: 3862.2 | E90: Tatyana
A91: 2006 | B91: 15373 | C91: 8133.862434 | D91: 7239.137566 | E91: Isaac
A92: 2006 | B92: 13446 | C92: 5378.4 | D92: 8067.6 | E92: Victor
A93: 2006 | B93: 10343 | C93: 5472.486772 | D93: 4870.513228 | E93: Suix
A94: 2007 | B94: 905 | C94: 362 | D94: 543 | E94: Wendy
A95: 2008 | B95: 11016 | C95: 5828.571429 | D95: 5187.428571 | E95: Kiko
A96: 2009 | B96: 11238 | C96: 4495.2 | D96: 6742.8 | E96: Tatyana
A97: 2005 | B97: 9512 | C97: 5032.804233 | D97: 4479.195767 | E97: Isaac
A98: 2007 | B98: 10250 | C98: 4100 | D98: 6150 | E98: Wendy
A99: 2005 | B99: 5149 | C99: 2724.338624 | D99: 2424.661376 | E99: Tatyana
A100: 2007 | B100: 1141 | C100: 456.4 | D100: 684.6 | E100: Isaac
A101: 2005 | B101: 6788 | C101: 3591.534392 | D101: 3196.465608 | E101: Tatyana
A102: 2008 | B102: 1970 | C102: 788 | D102: 1182 | E102: Tatyana
A103: 2006 | B103: 3163 | C103: 1673.544974 | D103: 1489.455026 | E103: Isaac
A104: 2006 | B104: 6861 | C104: 2744.4 | D104: 4116.6 | E104: Suix
A105: 2005 | B105: 12837 | C105: 6792.063492 | D105: 6044.936508 | E105: Wendy
A106: 2009 | B106: 16760 | C106: 6704 | D106: 10056 | E106: Suix
A107: 2007 | B107: 13032 | C107: 6895.238095 | D107: 6136.761905 | E107: Victor
A108: 2008 | B108: 7271 | C108: 2908.4 | D108: 4362.6 | E108: Isaac
A109: 2006 | B109: 5211 | C109: 2757.142857 | D109: 2453.857143 | E109: Kiko
A110: 2004 | B110: 6847 | C110: 2738.8 | D110: 4108.2 | E110: Isaac
A111: 2006 | B111: 3219 | C111: 1703.174603 | D111: 1515.825397 | E111: Wendy
A112: 2008 | B112: 6570 | C112: 2628 | D112: 3942 | E112: Kiko
A113: 2005 | B113: 15941 | C113: 8434.391534 | D113: 7506.608466 | E113: Suix
A114: 2005 | B114: 2961 | C114: 1184.4 | D114: 1776.6 | E114: Victor
A115: 2007 | B115: 14127 | C115: 7474.603175 | D115: 6652.396825 | E115: Isaac
A116: 2006 | B116: 16013 | C116: 6405.2 | D116: 9607.8 | E116: Isaac
A117: 2005 | B117: 4308 | C117: 2279.365079 | D117: 2028.634921 | E117: Tatyana
A118: 2009 | B118: 5754 | C118: 2301.6 | D118: 3452.4 | E118: Tatyana
A119: 2008 | B119: 3858 | C119: 2041.269841 | D119: 1816.730159 | E119: Wendy
A120: 2005 | B120: 6411 | C120: 2564.4 | D120: 3846.6 | E120: Isaac
A121: 2005 | B121: 14424 | C121: 7631.746032 | D121: 6792.253968 | E121: Tatyana
A122: 2009 | B122: 1197 | C122: 478.8 | D122: 718.2 | E122: Victor
A123: 2006 | B123: 3015 | C123: 1595.238095 | D123: 1419.761905 | E123: Isaac
A124: 2008 | B124: 11608 | C124: 4643.2 | D124: 6964.8 | E124: Isaac
A125: 2009 | B125: 5612 | C125: 2969.312169 | D125: 2642.687831 | E125: Tatyana
A126: 2007 | B126: 16534 | C126: 6613.6 | D126: 9920.4 | E126: Kiko
A127: 2009 | B127: 9857 | C127: 5215.343915 | D127: 4641.656085 | E127: Tatyana
A128: 2004 | B128: 6641 | C128: 2656.4 | D128: 3984.6 | E128: Kiko
A129: 2006 | B129: 14361 | C129: 7598.412698 | D129: 6762.587302 | E129: Wendy
A130: 2004 | B130: 13806 | C130: 5522.4 | D130: 8283.6 | E130: Isaac
A131: 2007 | B131: 2717 | C131: 1437.566138 | D131: 1279.433862 | E131: Isaac
A132: 2007 | B132: 15064 | C132: 6025.6 | D132: 9038.4 | E132: Suix
A133: 2006 | B133: 4094 | C133: 2166.137566 | D133: 1927.862434 | E133: Isaac
A134: 2006 | B134: 2842 | C134: 1136.8 | D134: 1705.2 | E134: Tatyana
A135: 2006 | B135: 6244 | C135: 3303.703704 | D135: 2940.296296 | E135: Isaac
A136: 2007 | B136: 10514 | C136: 4205.6 | D136: 6308.4 | E136: Suix
A137: 2009 | B137: 5769 | C137: 3052.380952 | D137: 2716.619048 | E137: Kiko
A138: 2006 | B138: 15321 | C138: 6128.4 | D138: 9192.6 | E138: Suix
A139: 2005 | B139: 7338 | C139: 3882.539683 | D139: 3455.460317 | E139: Wendy
A140: 2007 | B140: 14592 | C140: 5836.8 | D140: 8755.2 | E140: Kiko
A141: 2004 | B141: 5795 | C141: 3066.137566 | D141: 2728.862434 | E141: Kiko
A142: 2005 | B142: 8039 | C142: 3215.6 | D142: 4823.4 | E142: Isaac
A143: 2008 | B143: 13458 | C143: 7120.634921 | D143: 6337.365079 | E143: Wendy
A144: 2009 | B144: 5844 | C144: 2337.6 | D144: 3506.4 | E144: Kiko
A145: 2008 | B145: 915 | C145: 484.1269841 | D145: 430.8730159 | E145: Wendy
A146: 2007 | B146: 6447 | C146: 2578.8 | D146: 3868.2 | E146: Tatyana
A147: 2009 | B147: 1936 | C147: 1024.338624 | D147: 911.6613757 | E147: Isaac
A148: 2006 | B148: 12213 | C148: 4885.2 | D148: 7327.8 | E148: Victor
A149: 2007 | B149: 1352 | C149: 715.3439153 | D149: 636.6560847 | E149: Victor
A150: 2009 | B150: 6849 | C150: 2739.6 | D150: 4109.4 | E150: Suix
A151: 2005 | B151: 15193 | C151: 8038.624339 | D151: 7154.375661 | E151: Wendy
A152: 2006 | B152: 4780 | C152: 1912 | D152: 2868 | E152: Isaac
A153: 2007 | B153: 5609 | C153: 2967.724868 | D153: 2641.275132 | E153: Suix
A154: 2005 | B154: 2622 | C154: 1048.8 | D154: 1573.2 | E154: Wendy
A155: 2004 | B155: 3964 | C155: 2097.354497 | D155: 1866.645503 | E155: Tatyana
A156: 2007 | B156: 2888 | C156: 1155.2 | D156: 1732.8 | E156: Isaac
A157: 2004 | B157: 16878 | C157: 8930.15873 | D157: 7947.84127 | E157: Tatyana
A158: 2004 | B158: 11891 | C158: 4756.4 | D158: 7134.6 | E158: Wendy
A159: 2007 | B159: 8998 | C159: 4760.846561 | D159: 4237.153439 | E159: Tatyana
A160: 2004 | B160: 12017 | C160: 4806.8 | D160: 7210.2 | E160: Kiko
A161: 2004 | B161: 1914 | C161: 1012.698413 | D161: 901.3015873 | E161: Isaac
A162: 2008 | B162: 5204 | C162: 2081.6 | D162: 3122.4 | E162: Suix
A163: 2009 | B163: 16362 | C163: 8657.142857 | D163: 7704.857143 | E163: Kiko
A164: 2008 | B164: 9570 | C164: 3828 | D164: 5742 | E164: Victor
A165: 2005 | B165: 3069 | C165: 1623.809524 | D165: 1445.190476 | E165: Kiko
A166: 2007 | B166: 5526 | C166: 2210.4 | D166: 3315.6 | E166: Isaac
A167: 2006 | B167: 1288 | C167: 681.4814815 | D167: 606.5185185 | E167: Isaac
A168: 2007 | B168: 5282 | C168: 2112.8 | D168: 3169.2 | E168: Kiko
A169: 2006 | B169: 5069 | C169: 2682.010582 | D169: 2386.989418 | E169: Kiko
A170: 2007 | B170: 7225 | C170: 2890 | D170: 4335 | E170: Kiko
A171: 2009 | B171: 14746 | C171: 7802.116402 | D171: 6943.883598 | E171: Isaac
A172: 2006 | B172: 15400 | C172: 6160 | D172: 9240 | E172: Tatyana
A173: 2008 | B173: 6522 | C173: 3450.793651 | D173: 3071.206349 | E173: Victor
A174: 2006 | B174: 15309 | C174: 6123.6 | D174: 9185.4 | E174: Kiko
A175: 2006 | B175: 6565 | C175: 3473.544974 | D175: 3091.455026 | E175: Tatyana
A176: 2009 | B176: 6802 | C176: 2720.8 | D176: 4081.2 | E176: Tatyana
A177: 2004 | B177: 4140 | C177: 2190.47619 | D177: 1949.52381 | E177: Tatyana
A178: 2005 | B178: 994 | C178: 397.6 | D178: 596.4 | E178: Kiko
A179: 2005 | B179: 1601 | C179: 847.0899471 | D179: 753.9100529 | E179: Wendy
A180: 2005 | B180: 3311 | C180: 1324.4 | D180: 1986.6 | E180: Suix
A181: 2005 | B181: 2212 | C181: 1170.37037 | D181: 1041.62963 | E181: Tatyana
A182: 2004 | B182: 8364 | C182: 3345.6 | D182: 5018.4 | E182: Kiko
A183: 2007 | B183: 6531 | C183: 3455.555556 | D183: 3075.444444 | E183: Suix
A184: 2004 | B184: 4769 | C184: 1907.6 | D184: 2861.4 | E184: Tatyana
A185: 2006 | B185: 1527 | C185: 807.9365079 | D185: 719.0634921 | E185: Tatyana
A186: 2009 | B186: 8818 | C186: 3527.2 | D186: 5290.8 | E186: Wendy
A187: 2004 | B187: 14767 | C187: 7813.227513 | D187: 6953.772487 | E187: Suix
A188: 2004 | B188: 5124 | C188: 2049.6 | D188: 3074.4 | E188: Wendy
A189: 2006 | B189: 4190 | C189: 2216.931217 | D189: 1973.068783 | E189: Isaac
A190: 2005 | B190: 9431 | C190: 3772.4 | D190: 5658.6 | E190: Suix
A191: 2008 | B191: 12073 | C191: 6387.830688 | D191: 5685.169312 | E191: Wendy
A192: 2004 | B192: 12715 | C192: 5086 | D192: 7629 | E192: Wendy
A193: 2004 | B193: 5222 | C193: 2762.962963 | D193: 2459.037037 | E193: Wendy
A194: 2005 | B194: 5481 | C194: 2192.4 | D194: 3288.6 | E194: Wendy
A195: 2004 | B195: 3196 | C195: 1691.005291 | D195: 1504.994709 | E195: Wendy
A196: 2007 | B196: 2504 | C196: 1001.6 | D196: 1502.4 | E196: Suix
A197: 2009 | B197: 5060 | C197: 2677.248677 | D197: 2382.751323 | E197: Kiko
A198: 2009 | B198: 13143 | C198: 5257.2 | D198: 7885.8 | E198: Victor
A199: 2005 | B199: 11236 | C199: 5944.973545 | D199: 5291.026455 | E199: Suix
A200: 2005 | B200: 2421 | C200: 968.4 | D200: 1452.6 | E200: Kiko
... 111 more rows

Sheet AI,SIS,CIS (an)
A1: Year | B1: Sales | C1: COGS | D1: Profit | E1: SalesRep | G1: Sales Summary
A2: 2006 | B2: 2095 | C2: 838 | D2: 1257 | E2: Isaac | G2: Year/SalesRep | H2: Isaac | I2: Kiko | J2: Suix | K2: Tatyana | L2: Victor | M2: Wendy
A3: 2006 | B3: 4022 | C3: 2128.042328 | D3: 1893.957672 | E3: Tatyana | G3: 2004 | H3: =SUMIFS($B$2:$B$311,$A$2:$A$311,$G3,$E$2:$E$311,H$2 ) -> 70055 | I3: 105731 | J3: 17046 | K3: 54348 | L3: 40607 | M3: 72729
A4: 2006 | B4: 5542 | C4: 2216.8 | D4: 3325.2 | E4: Suix | G4: 2005 | H4: 73122 | I4: 46329 | J4: 98219 | K4: 74928 | L4: 44534 | M4: 78019
A5: 2007 | B5: 6527 | C5: 3453.439153 | D5: 3073.560847 | E5: Kiko | G5: 2006 | H5: 97462 | I5: 65950 | J5: 38067 | K5: 70565 | L5: 93763 | M5: 88601
A6: 2005 | B6: 9392 | C6: 3756.8 | D6: 5635.2 | E6: Victor | G6: 2007 | H6: 81740 | I6: 98155 | J6: 52482 | K6: 74842 | L6: 43548 | M6: 52930
A7: 2004 | B7: 16685 | C7: 8828.042328 | D7: 7856.957672 | E7: Isaac | G7: 2008 | H7: 51587 | I7: 43031 | J7: 36211 | K7: 56967 | L7: 46002 | M7: 53897
A8: 2004 | B8: 6054 | C8: 2421.6 | D8: 3632.4 | E8: Kiko | G8: 2009 | H8: 73480 | I8: 87083 | J8: 76626 | K8: 74728 | L8: 40567 | M8: 46815
A9: 2006 | B9: 6815 | C9: 3605.820106 | D9: 3209.179894 | E9: Victor
A10: 2006 | B10: 14894 | C10: 5957.6 | D10: 8936.4 | E10: Wendy | G10: Average by Year
A11: 2008 | B11: 16962 | C11: 8974.603175 | D11: 7987.396825 | E11: Suix | G11: Year | H11: ="Average "&B1 -> Average Sales | I11: ="Average "&C1 -> Average COGS | J11: ="Average "&D1 -> Average Profit
A12: 2006 | B12: 5160 | C12: 2064 | D12: 3096 | E12: Wendy | G12: 2004 | H12: =AVERAGEIF($A$2:$A$311,$G12,B$2:B$311) -> 7357.469388 | I12: 3349.693942 | J12: 4007.775445
A13: 2009 | B13: 8589 | C13: 4544.444444 | D13: 4044.555556 | E13: Isaac | G13: 2005 | H13: 7833.037736 | I13: 3735.805211 | J13: 4097.232525
A14: 2008 | B14: 5754 | C14: 2301.6 | D14: 3452.4 | E14: Suix | G14: 2006 | H14: 7573.466667 | I14: 3405.805079 | J14: 4167.661587
A15: 2006 | B15: 813 | C15: 430.1587302 | D15: 382.8412698 | E15: Tatyana | G15: 2007 | H15: 8238.714286 | I15: 3792.791491 | J15: 4445.922795
A16: 2007 | B16: 16027 | C16: 6410.8 | D16: 9616.2 | E16: Kiko | G16: 2008 | H16: 6121.170213 | I16: 2902.391039 | J16: 3218.779174
A17: 2006 | B17: 6874 | C17: 3637.037037 | D17: 3236.962963 | E17: Kiko | G17: 2009 | H17: 7678.826923 | I17: 3553.837932 | J17: 4124.988991
A18: 2005 | B18: 10545 | C18: 4218 | D18: 6327 | E18: Kiko
A19: 2006 | B19: 4027 | C19: 2130.687831 | D19: 1896.312169 | E19: Wendy
A20: 2009 | B20: 934 | C20: 373.6 | D20: 560.4 | E20: Isaac
A21: 2007 | B21: 16326 | C21: 8638.095238 | D21: 7687.904762 | E21: Wendy | H21: Values
A22: 2009 | B22: 5968 | C22: 2387.2 | D22: 3580.8 | E22: Kiko | G22: Row Labels | H22: Average of Sales | I22: Average of COGS | J22: Average of Profit
A23: 2006 | B23: 3840 | C23: 2031.746032 | D23: 1808.253968 | E23: Victor | G23: 2004 | H23: 7357.469388 | I23: 3349.693942 | J23: 4007.775445
A24: 2007 | B24: 4484 | C24: 1793.6 | D24: 2690.4 | E24: Victor | G24: 2005 | H24: 7833.037736 | I24: 3735.805211 | J24: 4097.232525
A25: 2006 | B25: 6317 | C25: 3342.328042 | D25: 2974.671958 | E25: Victor | G25: 2006 | H25: 7573.466667 | I25: 3405.805079 | J25: 4167.661587
A26: 2005 | B26: 10785 | C26: 4314 | D26: 6471 | E26: Kiko | G26: 2007 | H26: 8238.714286 | I26: 3792.791491 | J26: 4445.922795
A27: 2004 | B27: 1961 | C27: 1037.566138 | D27: 923.4338624 | E27: Tatyana | G27: 2008 | H27: 6121.170213 | I27: 2902.391039 | J27: 3218.779174
A28: 2005 | B28: 9765 | C28: 3906 | D28: 5859 | E28: Tatyana | G28: 2009 | H28: 7678.826923 | I28: 3553.837932 | J28: 4124.988991
A29: 2005 | B29: 11304 | C29: 5980.952381 | D29: 5323.047619 | E29: Suix | G29: Grand Total | H29: 7486.341935 | I29: 3463.03135 | J29: 4023.310585
A30: 2006 | B30: 11826 | C30: 4730.4 | D30: 7095.6 | E30: Kiko
A31: 2008 | B31: 2784 | C31: 1473.015873 | D31: 1310.984127 | E31: Isaac
A32: 2005 | B32: 2322 | C32: 928.8 | D32: 1393.2 | E32: Suix
A33: 2009 | B33: 5124 | C33: 2711.111111 | D33: 2412.888889 | E33: Wendy | G33: Sum of Sales | H33: Column Labels
A34: 2008 | B34: 6472 | C34: 2588.8 | D34: 3883.2 | E34: Isaac | G34: Row Labels | H34: Isaac | I34: Kiko | J34: Suix | K34: Tatyana | L34: Victor | M34: Wendy | N34: Grand Total
A35: 2004 | B35: 4670 | C35: 2470.899471 | D35: 2199.100529 | E35: Tatyana | G35: 2004 | H35: 70055 | I35: 105731 | J35: 17046 | K35: 54348 | L35: 40607 | M35: 72729 | N35: 360516
A36: 2006 | B36: 7787 | C36: 3114.8 | D36: 4672.2 | E36: Tatyana | G36: 2005 | H36: 73122 | I36: 46329 | J36: 98219 | K36: 74928 | L36: 44534 | M36: 78019 | N36: 415151
A37: 2008 | B37: 10352 | C37: 5477.248677 | D37: 4874.751323 | E37: Tatyana | G37: 2006 | H37: 97462 | I37: 65950 | J37: 38067 | K37: 70565 | L37: 93763 | M37: 88601 | N37: 454408
A38: 2009 | B38: 6085 | C38: 2434 | D38: 3651 | E38: Suix | G38: 2007 | H38: 81740 | I38: 98155 | J38: 52482 | K38: 74842 | L38: 43548 | M38: 52930 | N38: 403697
A39: 2008 | B39: 6432 | C39: 3403.174603 | D39: 3028.825397 | E39: Isaac | G39: 2008 | H39: 51587 | I39: 43031 | J39: 36211 | K39: 56967 | L39: 46002 | M39: 53897 | N39: 287695
A40: 2008 | B40: 5003 | C40: 2001.2 | D40: 3001.8 | E40: Wendy | G40: 2009 | H40: 73480 | I40: 87083 | J40: 76626 | K40: 74728 | L40: 40567 | M40: 46815 | N40: 399299
A41: 2009 | B41: 1372 | C41: 725.9259259 | D41: 646.0740741 | E41: Kiko | G41: Grand Total | H41: 447446 | I41: 446279 | J41: 318651 | K41: 406378 | L41: 309021 | M41: 392991 | N41: 2320766
A42: 2007 | B42: 3013 | C42: 1205.2 | D42: 1807.8 | E42: Isaac
A43: 2006 | B43: 11817 | C43: 6252.380952 | D43: 5564.619048 | E43: Victor
A44: 2007 | B44: 6450 | C44: 2580 | D44: 3870 | E44: Wendy
A45: 2008 | B45: 10874 | C45: 5753.439153 | D45: 5120.560847 | E45: Kiko
A46: 2006 | B46: 4778 | C46: 1911.2 | D46: 2866.8 | E46: Wendy
A47: 2009 | B47: 4312 | C47: 2281.481481 | D47: 2030.518519 | E47: Victor
A48: 2009 | B48: 15358 | C48: 6143.2 | D48: 9214.8 | E48: Kiko
A49: 2008 | B49: 4352 | C49: 2302.645503 | D49: 2049.354497 | E49: Kiko
A50: 2004 | B50: 15905 | C50: 6362 | D50: 9543 | E50: Kiko
A51: 2005 | B51: 10283 | C51: 5440.740741 | D51: 4842.259259 | E51: Isaac
A52: 2005 | B52: 16052 | C52: 6420.8 | D52: 9631.2 | E52: Victor
A53: 2005 | B53: 5945 | C53: 3145.502646 | D53: 2799.497354 | E53: Isaac
A54: 2007 | B54: 5220 | C54: 2088 | D54: 3132 | E54: Isaac
A55: 2005 | B55: 1869 | C55: 988.8888889 | D55: 880.1111111 | E55: Suix
A56: 2007 | B56: 6229 | C56: 2491.6 | D56: 3737.4 | E56: Kiko
A57: 2004 | B57: 6563 | C57: 3472.486772 | D57: 3090.513228 | E57: Kiko
A58: 2008 | B58: 4692 | C58: 1876.8 | D58: 2815.2 | E58: Tatyana
A59: 2008 | B59: 983 | C59: 520.1058201 | D59: 462.8941799 | E59: Suix
A60: 2006 | B60: 10220 | C60: 4088 | D60: 6132 | E60: Wendy
A61: 2007 | B61: 15669 | C61: 8290.47619 | D61: 7378.52381 | E61: Victor
A62: 2009 | B62: 13088 | C62: 5235.2 | D62: 7852.8 | E62: Tatyana
A63: 2009 | B63: 5816 | C63: 3077.248677 | D63: 2738.751323 | E63: Victor
A64: 2006 | B64: 7475 | C64: 2990 | D64: 4485 | E64: Kiko
A65: 2009 | B65: 10348 | C65: 5475.132275 | D65: 4872.867725 | E65: Wendy
A66: 2009 | B66: 862 | C66: 344.8 | D66: 517.2 | E66: Suix
A67: 2005 | B67: 14861 | C67: 7862.962963 | D67: 6998.037037 | E67: Kiko
A68: 2008 | B68: 6752 | C68: 2700.8 | D68: 4051.2 | E68: Victor
A69: 2007 | B69: 11193 | C69: 5922.222222 | D69: 5270.777778 | E69: Tatyana
A70: 2006 | B70: 2428 | C70: 971.2 | D70: 1456.8 | E70: Tatyana
A71: 2008 | B71: 11122 | C71: 5884.656085 | D71: 5237.343915 | E71: Isaac
A72: 2007 | B72: 2624 | C72: 1049.6 | D72: 1574.4 | E72: Victor
A73: 2004 | B73: 5000 | C73: 2645.502646 | D73: 2354.497354 | E73: Wendy
A74: 2005 | B74: 12504 | C74: 5001.6 | D74: 7502.4 | E74: Tatyana
A75: 2009 | B75: 7882 | C75: 4170.37037 | D75: 3711.62963 | E75: Isaac
A76: 2007 | B76: 11473 | C76: 4589.2 | D76: 6883.8 | E76: Kiko
A77: 2008 | B77: 926 | C77: 489.9470899 | D77: 436.0529101 | E77: Victor
A78: 2006 | B78: 16346 | C78: 6538.4 | D78: 9807.6 | E78: Wendy
A79: 2007 | B79: 11773 | C79: 6229.100529 | D79: 5543.899471 | E79: Wendy
A80: 2009 | B80: 16760 | C80: 6704 | D80: 10056 | E80: Wendy
A81: 2004 | B81: 866 | C81: 458.2010582 | D81: 407.7989418 | E81: Suix
A82: 2009 | B82: 13599 | C82: 5439.6 | D82: 8159.4 | E82: Kiko
A83: 2009 | B83: 13724 | C83: 7261.375661 | D83: 6462.624339 | E83: Tatyana
A84: 2009 | B84: 2245 | C84: 898 | D84: 1347 | E84: Tatyana
A85: 2008 | B85: 3233 | C85: 1710.582011 | D85: 1522.417989 | E85: Wendy
A86: 2004 | B86: 1413 | C86: 565.2 | D86: 847.8 | E86: Suix
A87: 2008 | B87: 5323 | C87: 2816.402116 | D87: 2506.597884 | E87: Tatyana
A88: 2005 | B88: 1927 | C88: 770.8 | D88: 1156.2 | E88: Tatyana
A89: 2009 | B89: 4432 | C89: 2344.973545 | D89: 2087.026455 | E89: Tatyana
A90: 2006 | B90: 6437 | C90: 2574.8 | D90: 3862.2 | E90: Tatyana
A91: 2006 | B91: 15373 | C91: 8133.862434 | D91: 7239.137566 | E91: Isaac
A92: 2006 | B92: 13446 | C92: 5378.4 | D92: 8067.6 | E92: Victor
A93: 2006 | B93: 10343 | C93: 5472.486772 | D93: 4870.513228 | E93: Suix
A94: 2007 | B94: 905 | C94: 362 | D94: 543 | E94: Wendy
A95: 2008 | B95: 11016 | C95: 5828.571429 | D95: 5187.428571 | E95: Kiko
A96: 2009 | B96: 11238 | C96: 4495.2 | D96: 6742.8 | E96: Tatyana
A97: 2005 | B97: 9512 | C97: 5032.804233 | D97: 4479.195767 | E97: Isaac
A98: 2007 | B98: 10250 | C98: 4100 | D98: 6150 | E98: Wendy
A99: 2005 | B99: 5149 | C99: 2724.338624 | D99: 2424.661376 | E99: Tatyana
A100: 2007 | B100: 1141 | C100: 456.4 | D100: 684.6 | E100: Isaac
A101: 2005 | B101: 6788 | C101: 3591.534392 | D101: 3196.465608 | E101: Tatyana
A102: 2008 | B102: 1970 | C102: 788 | D102: 1182 | E102: Tatyana
A103: 2006 | B103: 3163 | C103: 1673.544974 | D103: 1489.455026 | E103: Isaac
A104: 2006 | B104: 6861 | C104: 2744.4 | D104: 4116.6 | E104: Suix
A105: 2005 | B105: 12837 | C105: 6792.063492 | D105: 6044.936508 | E105: Wendy
A106: 2009 | B106: 16760 | C106: 6704 | D106: 10056 | E106: Suix
A107: 2007 | B107: 13032 | C107: 6895.238095 | D107: 6136.761905 | E107: Victor
A108: 2008 | B108: 7271 | C108: 2908.4 | D108: 4362.6 | E108: Isaac
A109: 2006 | B109: 5211 | C109: 2757.142857 | D109: 2453.857143 | E109: Kiko
A110: 2004 | B110: 6847 | C110: 2738.8 | D110: 4108.2 | E110: Isaac
A111: 2006 | B111: 3219 | C111: 1703.174603 | D111: 1515.825397 | E111: Wendy
A112: 2008 | B112: 6570 | C112: 2628 | D112: 3942 | E112: Kiko
A113: 2005 | B113: 15941 | C113: 8434.391534 | D113: 7506.608466 | E113: Suix
A114: 2005 | B114: 2961 | C114: 1184.4 | D114: 1776.6 | E114: Victor
A115: 2007 | B115: 14127 | C115: 7474.603175 | D115: 6652.396825 | E115: Isaac
A116: 2006 | B116: 16013 | C116: 6405.2 | D116: 9607.8 | E116: Isaac
A117: 2005 | B117: 4308 | C117: 2279.365079 | D117: 2028.634921 | E117: Tatyana
A118: 2009 | B118: 5754 | C118: 2301.6 | D118: 3452.4 | E118: Tatyana
A119: 2008 | B119: 3858 | C119: 2041.269841 | D119: 1816.730159 | E119: Wendy
A120: 2005 | B120: 6411 | C120: 2564.4 | D120: 3846.6 | E120: Isaac
A121: 2005 | B121: 14424 | C121: 7631.746032 | D121: 6792.253968 | E121: Tatyana
A122: 2009 | B122: 1197 | C122: 478.8 | D122: 718.2 | E122: Victor
A123: 2006 | B123: 3015 | C123: 1595.238095 | D123: 1419.761905 | E123: Isaac
A124: 2008 | B124: 11608 | C124: 4643.2 | D124: 6964.8 | E124: Isaac
A125: 2009 | B125: 5612 | C125: 2969.312169 | D125: 2642.687831 | E125: Tatyana
A126: 2007 | B126: 16534 | C126: 6613.6 | D126: 9920.4 | E126: Kiko
A127: 2009 | B127: 9857 | C127: 5215.343915 | D127: 4641.656085 | E127: Tatyana
A128: 2004 | B128: 6641 | C128: 2656.4 | D128: 3984.6 | E128: Kiko
A129: 2006 | B129: 14361 | C129: 7598.412698 | D129: 6762.587302 | E129: Wendy
A130: 2004 | B130: 13806 | C130: 5522.4 | D130: 8283.6 | E130: Isaac
A131: 2007 | B131: 2717 | C131: 1437.566138 | D131: 1279.433862 | E131: Isaac
A132: 2007 | B132: 15064 | C132: 6025.6 | D132: 9038.4 | E132: Suix
A133: 2006 | B133: 4094 | C133: 2166.137566 | D133: 1927.862434 | E133: Isaac
A134: 2006 | B134: 2842 | C134: 1136.8 | D134: 1705.2 | E134: Tatyana
A135: 2006 | B135: 6244 | C135: 3303.703704 | D135: 2940.296296 | E135: Isaac
A136: 2007 | B136: 10514 | C136: 4205.6 | D136: 6308.4 | E136: Suix
A137: 2009 | B137: 5769 | C137: 3052.380952 | D137: 2716.619048 | E137: Kiko
A138: 2006 | B138: 15321 | C138: 6128.4 | D138: 9192.6 | E138: Suix
A139: 2005 | B139: 7338 | C139: 3882.539683 | D139: 3455.460317 | E139: Wendy
A140: 2007 | B140: 14592 | C140: 5836.8 | D140: 8755.2 | E140: Kiko
A141: 2004 | B141: 5795 | C141: 3066.137566 | D141: 2728.862434 | E141: Kiko
A142: 2005 | B142: 8039 | C142: 3215.6 | D142: 4823.4 | E142: Isaac
A143: 2008 | B143: 13458 | C143: 7120.634921 | D143: 6337.365079 | E143: Wendy
A144: 2009 | B144: 5844 | C144: 2337.6 | D144: 3506.4 | E144: Kiko
A145: 2008 | B145: 915 | C145: 484.1269841 | D145: 430.8730159 | E145: Wendy
A146: 2007 | B146: 6447 | C146: 2578.8 | D146: 3868.2 | E146: Tatyana
A147: 2009 | B147: 1936 | C147: 1024.338624 | D147: 911.6613757 | E147: Isaac
A148: 2006 | B148: 12213 | C148: 4885.2 | D148: 7327.8 | E148: Victor
A149: 2007 | B149: 1352 | C149: 715.3439153 | D149: 636.6560847 | E149: Victor
A150: 2009 | B150: 6849 | C150: 2739.6 | D150: 4109.4 | E150: Suix
A151: 2005 | B151: 15193 | C151: 8038.624339 | D151: 7154.375661 | E151: Wendy
A152: 2006 | B152: 4780 | C152: 1912 | D152: 2868 | E152: Isaac
A153: 2007 | B153: 5609 | C153: 2967.724868 | D153: 2641.275132 | E153: Suix
A154: 2005 | B154: 2622 | C154: 1048.8 | D154: 1573.2 | E154: Wendy
A155: 2004 | B155: 3964 | C155: 2097.354497 | D155: 1866.645503 | E155: Tatyana
A156: 2007 | B156: 2888 | C156: 1155.2 | D156: 1732.8 | E156: Isaac
A157: 2004 | B157: 16878 | C157: 8930.15873 | D157: 7947.84127 | E157: Tatyana
A158: 2004 | B158: 11891 | C158: 4756.4 | D158: 7134.6 | E158: Wendy
A159: 2007 | B159: 8998 | C159: 4760.846561 | D159: 4237.153439 | E159: Tatyana
A160: 2004 | B160: 12017 | C160: 4806.8 | D160: 7210.2 | E160: Kiko
A161: 2004 | B161: 1914 | C161: 1012.698413 | D161: 901.3015873 | E161: Isaac
A162: 2008 | B162: 5204 | C162: 2081.6 | D162: 3122.4 | E162: Suix
A163: 2009 | B163: 16362 | C163: 8657.142857 | D163: 7704.857143 | E163: Kiko
A164: 2008 | B164: 9570 | C164: 3828 | D164: 5742 | E164: Victor
A165: 2005 | B165: 3069 | C165: 1623.809524 | D165: 1445.190476 | E165: Kiko
A166: 2007 | B166: 5526 | C166: 2210.4 | D166: 3315.6 | E166: Isaac
A167: 2006 | B167: 1288 | C167: 681.4814815 | D167: 606.5185185 | E167: Isaac
A168: 2007 | B168: 5282 | C168: 2112.8 | D168: 3169.2 | E168: Kiko
A169: 2006 | B169: 5069 | C169: 2682.010582 | D169: 2386.989418 | E169: Kiko
A170: 2007 | B170: 7225 | C170: 2890 | D170: 4335 | E170: Kiko
A171: 2009 | B171: 14746 | C171: 7802.116402 | D171: 6943.883598 | E171: Isaac
A172: 2006 | B172: 15400 | C172: 6160 | D172: 9240 | E172: Tatyana
A173: 2008 | B173: 6522 | C173: 3450.793651 | D173: 3071.206349 | E173: Victor
A174: 2006 | B174: 15309 | C174: 6123.6 | D174: 9185.4 | E174: Kiko
A175: 2006 | B175: 6565 | C175: 3473.544974 | D175: 3091.455026 | E175: Tatyana
A176: 2009 | B176: 6802 | C176: 2720.8 | D176: 4081.2 | E176: Tatyana
A177: 2004 | B177: 4140 | C177: 2190.47619 | D177: 1949.52381 | E177: Tatyana
A178: 2005 | B178: 994 | C178: 397.6 | D178: 596.4 | E178: Kiko
A179: 2005 | B179: 1601 | C179: 847.0899471 | D179: 753.9100529 | E179: Wendy
A180: 2005 | B180: 3311 | C180: 1324.4 | D180: 1986.6 | E180: Suix
A181: 2005 | B181: 2212 | C181: 1170.37037 | D181: 1041.62963 | E181: Tatyana
A182: 2004 | B182: 8364 | C182: 3345.6 | D182: 5018.4 | E182: Kiko
A183: 2007 | B183: 6531 | C183: 3455.555556 | D183: 3075.444444 | E183: Suix
A184: 2004 | B184: 4769 | C184: 1907.6 | D184: 2861.4 | E184: Tatyana
A185: 2006 | B185: 1527 | C185: 807.9365079 | D185: 719.0634921 | E185: Tatyana
A186: 2009 | B186: 8818 | C186: 3527.2 | D186: 5290.8 | E186: Wendy
A187: 2004 | B187: 14767 | C187: 7813.227513 | D187: 6953.772487 | E187: Suix
A188: 2004 | B188: 5124 | C188: 2049.6 | D188: 3074.4 | E188: Wendy
A189: 2006 | B189: 4190 | C189: 2216.931217 | D189: 1973.068783 | E189: Isaac
A190: 2005 | B190: 9431 | C190: 3772.4 | D190: 5658.6 | E190: Suix
A191: 2008 | B191: 12073 | C191: 6387.830688 | D191: 5685.169312 | E191: Wendy
A192: 2004 | B192: 12715 | C192: 5086 | D192: 7629 | E192: Wendy
A193: 2004 | B193: 5222 | C193: 2762.962963 | D193: 2459.037037 | E193: Wendy
A194: 2005 | B194: 5481 | C194: 2192.4 | D194: 3288.6 | E194: Wendy
A195: 2004 | B195: 3196 | C195: 1691.005291 | D195: 1504.994709 | E195: Wendy
A196: 2007 | B196: 2504 | C196: 1001.6 | D196: 1502.4 | E196: Suix
A197: 2009 | B197: 5060 | C197: 2677.248677 | D197: 2382.751323 | E197: Kiko
A198: 2009 | B198: 13143 | C198: 5257.2 | D198: 7885.8 | E198: Victor
A199: 2005 | B199: 11236 | C199: 5944.973545 | D199: 5291.026455 | E199: Suix
A200: 2005 | B200: 2421 | C200: 968.4 | D200: 1452.6 | E200: Kiko
... 111 more rows

Sheet Simulation
A1: Next Yer Projected Sales
A2: Products | B2: Price Low | C2: Price High | D2: Units Sold Low | E2: Units Sold High
A3: Boomerang 01 | B3: =ROUND(15+RAND()*0.5,2) -> 15.19 | C3: =B3+ROUND(RAND()*1,2) -> 15.85
A4: Boomerang 02 | B4: =ROUND(18+RAND()*0.5,2) -> 18.01 | C4: 18.59
A5: Boomerang 03 | B5: =ROUND(20+RAND()*0.5,2) -> 20.28 | C5: 20.52
A6: Boomerang 04 | B6: =ROUND(25+RAND()*0.5,2) -> 25.48 | C6: 26.29
A7: Boomerang 05 | B7: =ROUND(23+RAND()*1,2) -> 23.79 | C7: 24.22

Sheet Chart Elements Types
A1: Chart Elements
A2: =ROWS($B$2:B2) -> 1 | B2: Chart title | C2: The descriptive text that identifies the chart's contents
A3: =ROWS($B$2:B3) -> 2 | B3: Y-axis | C3: The vertical axis where data values are plotted
A4: =ROWS($B$2:B4) -> 3 | B4: Y-axis labels | C4: The labels that identify the data values plotted on the Y-axis
A5: =ROWS($B$2:B5) -> 4 | B5: X-axis | C5: The horizontal axis where categories are plotted
A6: =ROWS($B$2:B6) -> 5 | B6: X-axis labels | C6: The labels that identify the categories plotted on the X-axis
A7: =ROWS($B$2:B7) -> 6 | B7: Data Series | C7: The related data points that are plotted on the chart; each data series on a chart has a unique color or pattern and is identified in the chart legend
A8: =ROWS($B$2:B8) -> 7 | B8: Data Points | C8: The points in a data series at which the X-axis and Y-axis values intersect
A9: =ROWS($B$2:B9) -> 8 | B9: Legend | C9: A box that identifies the patterns or colors assigned to the data series in a chart
A10: =ROWS($B$2:B10) -> 9 | B10: Category | C10: This is the term that Excel uses to describe labels
A11: =ROWS($B$2:B11) -> 10 | B11: Secondary Y-axis | C11: Common way to include widely differing sets of data from the same time period.
A13: Chart Types
A14: =ROWS($B$14:B14) -> 1 | B14: Column (or Cylinder, or Cone, or Pyramid) | C14: Compares values across categories in a vertical orientation. Values are indicated by the height of the columns. Compare means the difference between the different numeric data points. If you are comparing, use a column or bar instead of a line chart.
A15: =ROWS($B$14:B15) -> 2 | B15: Stacked Column Vertical axis in % | C15: Compares the % of each value to the sum of the values for a given category and the overall column represent the 100%. Stacked charts do a good job illustrating the cumulative effects of data in categories. These charts can reduce confusion about whether the line on the chart represents individual values or cumulative contribution to the whole. These cahrts nicely combine pie, area, column, and line elements.
A16: =ROWS($B$14:B16) -> 3 | B16: Stacked Column Vertical axis in amount | C16: Compares the amount of each value for each category and the overall column represent the sum of the all the values for the category. (Stacked charts do a good job illustrating the cumulative effects of data in categories)
A17: =ROWS($B$14:B17) -> 4 | B17: Bar | C17: Compares values across categories in a horizontal orientation. Values are indicated by the length of the bars (good for emphasizing differences).
A18: =ROWS($B$14:B18) -> 5 | B18: Line | C18: Displays trends over time or by category. Values are indicated by the highest of the lines. Trends means up, down, flat. If it is trends you want, use line, not column. A line chart plots numeric values on one axis and category labels equidistantly on the other axis, (whereas the XY (Scatter) chart plots numeric values on both the X- and Y-axes based on the value of the data ).
A19: =ROWS($B$14:B19) -> 6 | B19: Stacked Line | C19: Same as "Stacked Area, Values" except it is just lines
A20: =ROWS($B$14:B20) -> 7 | B20: XY (Scatter) | C20: Compares pairs of numeric values on the X- and Y-axes; can also be used to display a functional relationship, such as y = mx + b. Values are indicated by the position of the data points. XY (Scatter) will provide a buffer on each end (a little less at the beginning and a little more at the end. The XY (Scatter) chart plots numeric values on both the X- and Y-axes based on the value of the data (whereas a line chart plots numeric values on one axis and category labels equidistantly on the other axis). An XY (Scatter) should be used instead of a line chart when comparing sets of numerical data on both the X-axis and the Y-axis.
A21: =ROWS($B$14:B21) -> 8 | B21: Area | C21: Displays trends over time or by category. Values are indicated by the filled area below the lines. This chart is a combination of line chart and column chart in that it fills below the line (like a column) and shows a trend over time or category.
A22: =ROWS($B$14:B22) -> 9 | B22: Stacked Area, Values | C22: Sales example: Illustrates sales trends while still emphasizing the contribution that each category made to a particular year's performance (vertical axis is the sum of the 4 for the year!) Be careful with Stacked Area charts with multiple data series because "These charts can give the impression that each line represents the actual values in the data series".
A23: =ROWS($B$14:B23) -> 10 | B23: Stacked Area, 100%
A24: =ROWS($B$14:B24) -> 11 | B24: Pie | C24: Compares the contribution each value in a single numeric data series makes to the whole, or 100%. Values are indicated by the size of the pie slices. Use this chart to show the relative percentages rather than values - graphing these percentages can allow a viewer to make quick visual comparisons.
A25: =ROWS($B$14:B25) -> 12 | B25: Pie of Pie | C25: When you have too many segments. The key is that after you crate it, right-click the pie and point to Format Data Series, Options Tab, adjust the number of items you want in the pie of pie (smallest - must have data in sheet sorted descending). You can use one of four methods to do this: Position, Value, %, Custom (drag and drop pie pieces)
A26: =ROWS($B$14:B26) -> 13 | B26: Doughnut | C26: Compares the contribution each value in multiple numeric data series make to the whole, or 100%. Values are indicated by the size of the doughnut segments. Advantage over "Stacked Column, 100%" is that they can show the individual % for each individual segment. Disatvantage of Doughnut is that they quickly get too busy.
A27: =ROWS($B$14:B27) -> 14 | B27: Stock | C27: Displays stock price and volume trends over time. Plotted values can include volume, opening price, highest price, lowest price, and closing price. Vetical line represents High and Low; dash represnts close. Read chart sub-type for an indication of how to place data in sheet.
A28: =ROWS($B$14:B28) -> 15 | B28: Radar | C28: Compares values across categories in a circular orientation. Values are indicated by the distance from the center point.
A29: =ROWS($B$14:B29) -> 16 | B29: Bubble | C29: Compares sets of three values. Values are indicated by the size of the bubbles (filled circles). In essence X, Y and bubble size.
A30: =ROWS($B$14:B30) -> 17 | B30: Surface | C30: Displays value trends in three dimensions. Values are indicated by areas with colors or patterns on the surface of the chart.
A31: =ROWS($B$14:B31) -> 18
A32: =ROWS($B$14:B32) -> 19
A33: =ROWS($B$14:B33) -> 20
A35: Chart Wizard
A36: Step 1 | B36: Chart Type | C36: Excel provides 14 standard chart types, 75 subtypes, and 20 custom types
A37: Step 2 | B37: Source Data | C37: Most important step. Data Range tab 1) See data range; 2) Change row/column orientation. Series tab, 1) Series shows how many data series there are (you can remove or delete); 2) Name shows the range of cells that provides a name to the data series; Values shows the range of cells that provide the numeric data points to the chart; 3) Category (X) axis labels shows the range of cells that provide the category labels. The reason this step is the most important is because the Chart Wizard does not always guess correctly and you can come here and change any source data range you want!!!
A38: Step 3 | B38: Options | C38: 1) Titles tab; 2) Axes tab - display or not the vertical and horizontal axes, change category label to time (which requires that you later right-click the axis and go to the scale tab and change the parameters for the axis); 3) Gridline tab (show or not); 4) Legend tab (show or not, move to different positions); 5) Data labels - great to add labels (series or category) - example - 1) pie category, value or % labels or 2) Histogram (Column) value labels. You must be careful with this step because it does add labels for each data point; 6) Data Table (adds data table below).
A39: Step 4 | B39: Location | C39: Place chart as object in worksheet (good for dynamic data) or place chart as new sheet (good for printing)
B40: Everything in a chart is right-clickable | C40: Many of the coolest tricks and formatting options are not part of Chart Wizard. After the chart is done, right-click any element and point to "Format "THING"". For example, if it is an axis that you right-clicked, it will say "Format Axis". The dialog box that comes up does not just allow you to change formatting - it will allow to change many parameters within the chart element.

Sheet HW Answers ==>

Sheet P88-107
A1: Quality Control Data for TZBlazer Skis
A2: Mfg ID# | B2: Size | C2: Style | D2: Date Manufactured | E2: Production Line | F2: Friction Coefficient | G2: Torsion Strength
A3: 12134 | B3: 174 | C3: A | D3: 2007-11-17 | E3: 1 | F3: 0.82 | G3: 2.21
A4: 12135 | B4: 174 | C4: A | D4: 2007-11-17 | E4: 1 | F4: 0.49 | G4: 1.94
A5: 12139 | B5: 174 | C5: A | D5: 2007-11-17 | E5: 1 | F5: 0.52 | G5: 2.03
A6: 12140 | B6: 167 | C6: A | D6: 2007-11-17 | E6: 1 | F6: 0.63 | G6: 2.24
A7: 12142 | B7: 167 | C7: A | D7: 2007-11-17 | E7: 1 | F7: 0.64 | G7: 2.28
A8: 12144 | B8: 167 | C8: A | D8: 2007-11-17 | E8: 1 | F8: 1.28 | G8: 2.31
A9: 12145 | B9: 174 | C9: A | D9: 2007-11-17 | E9: 1 | F9: 0.45 | G9: 2.02
A10: 12146 | B10: 167 | C10: A | D10: 2007-11-17 | E10: 1 | F10: 1.13 | G10: 2.05
A11: 12148 | B11: 167 | C11: E | D11: 2007-11-18 | E11: 1 | F11: 0.43 | G11: 2.27
A12: 12149 | B12: 174 | C12: E | D12: 2007-11-18 | E12: 1 | F12: 0.47 | G12: 2.31
A13: 12154 | B13: 174 | C13: E | D13: 2007-11-18 | E13: 1 | F13: 0.97 | G13: 2.23
A14: 12156 | B14: 174 | C14: E | D14: 2007-11-18 | E14: 1 | F14: 0.81 | G14: 2.11
A15: 12160 | B15: 174 | C15: E | D15: 2007-11-19 | E15: 1 | F15: 0.68 | G15: 2.22
A16: 12161 | B16: 174 | C16: E | D16: 2007-11-19 | E16: 1 | F16: 0.67 | G16: 2.08
A17: 12162 | B17: 181 | C17: E | D17: 2007-11-19 | E17: 1 | F17: 0.95 | G17: 2.01
A18: 12136 | B18: 181 | C18: R | D18: 2007-11-17 | E18: 2 | F18: 1.32 | G18: 2.35
A19: 12137 | B19: 181 | C19: R | D19: 2007-11-17 | E19: 2 | F19: 0.75 | G19: 1.73
A20: 12138 | B20: 181 | C20: R | D20: 2007-11-17 | E20: 2 | F20: 0.92 | G20: 2.08
A21: 12141 | B21: 181 | C21: R | D21: 2007-11-17 | E21: 2 | F21: 0.46 | G21: 2.26
A22: 12143 | B22: 174 | C22: R | D22: 2007-11-17 | E22: 2 | F22: 1.04 | G22: 2.24
A23: 12147 | B23: 181 | C23: A | D23: 2007-11-18 | E23: 2 | F23: 0.9 | G23: 2.01
A24: 12150 | B24: 167 | C24: A | D24: 2007-11-18 | E24: 2 | F24: 0.97 | G24: 2
A25: 12151 | B25: 181 | C25: A | D25: 2007-11-18 | E25: 2 | F25: 0.49 | G25: 2.08
A26: 12152 | B26: 181 | C26: A | D26: 2007-11-18 | E26: 2 | F26: 0.75 | G26: 2.17
A27: 12153 | B27: 167 | C27: A | D27: 2007-11-18 | E27: 2 | F27: 0.3 | G27: 3.22
A28: 12155 | B28: 181 | C28: E | D28: 2007-11-18 | E28: 2 | F28: 1.01 | G28: 2.24
A29: 12157 | B29: 181 | C29: E | D29: 2007-11-19 | E29: 2 | F29: 0.84 | G29: 2.34
A30: 12158 | B30: 174 | C30: E | D30: 2007-11-19 | E30: 2 | F30: 0.68 | G30: 2.1
A31: 12159 | B31: 181 | C31: A | D31: 2007-11-19 | E31: 2 | F31: 0.58 | G31: 2.33
A33: Mean | F33: =AVERAGE(fc) ->  | G33: =AVERAGE(ts) -> 
A34: Median | F34: =MEDIAN(fc) ->  | G34: =MEDIAN(ts) -> 
A35: Mode | F35: =MODE(fc) ->  | G35: =MODE(ts) -> 
A36: Standard Deviation | F36: =STDEV(fc) ->  | G36: =STDEV(ts) -> 
A38: Mean | F38: =ROUND(AVERAGE(fc),2) ->  | G38: =ROUND(AVERAGE(ts),2) -> 
A39: Median | F39: =ROUND(MEDIAN(fc),2) ->  | G39: =ROUND(MEDIAN(ts),2) -> 
A40: Mode | F40: =ROUND(MODE(fc),2) ->  | G40: =ROUND(MODE(ts),2) -> 
A41: Standard Deviation | F41: =ROUND(STDEV(fc),2) ->  | G41: =ROUND(STDEV(ts),2) -> 

Sheet P107-111
A1: Analysis of Statistical Values - Current Data vs. Historical Data
B2: Friction Coefficient | G2: Torsion Strength
A3: Value: | B3: Historical | C3: Calculated | D3: Difference | E3: %Difference | G3: Historical | H3: Calculated | I3: Difference | J3: %Difference
A4: Mean | B4: 0.76 | C4: ='P88-107'!F33 ->  | D4: =C4-B4 ->  | E4: =D4/B4 ->  | G4: 2.27 | H4: ='P88-107'!G33 ->  | I4: =H4-G4 ->  | J4: =I4/G4 -> 
A5: Median | B5: 0.73 | C5: ='P88-107'!F34 ->  | D5: =C5-B5 ->  | E5: =D5/B5 ->  | G5: 2.24 | H5: ='P88-107'!G34 ->  | I5: =H5-G5 ->  | J5: =I5/G5 -> 
A6: Mode | B6: 0.53 | C6: ='P88-107'!F35 ->  | D6: =C6-B6 ->  | E6: =D6/B6 ->  | G6: 2.15 | H6: ='P88-107'!G35 ->  | I6: =H6-G6 ->  | J6: =I6/G6 -> 
A7: Standard Deviation | B7: 0.27 | C7: ='P88-107'!F36 ->  | D7: =C7-B7 ->  | E7: =D7/B7 ->  | G7: 0.24 | H7: ='P88-107'!G36 ->  | I7: =H7-G7 ->  | J7: =I7/G7 -> 
K9: What does this mean?
K11: Joanna needs to use Statistics to analyze Quality data about skis so she can detect problem, try to find solution, and reduce rejects and reduce costs
K12: High Fraction Coefficient (HFC) (poor finish)
K13: HFC > 1.23, skis rejected
K14: Low Torsion Strength (LTS) (not strong enough)
K15: LTS < 2, skis rejected

Sheet P111-112
F1: 1 | G1: Make sure same high standards are met with new automated machine as were with the "by hand method"
F2: 2 | G2: We want bindings to only unlock at 10 lbs. or greater. Bindings that unlock at less than 10 lbs of pressure are rejected | H2: 10 | I2: lbs.
F3: 3 | G3: Materials of construction should not fail at temperatures above -60 Celsius. Maximum allowable failure temperature is -60 Celsius. In order not to damage the ski, failure is determined at a level when the flexibility of the material falls below a specified level | H3: What is specified level?
A5: Quality Control Data - Ski Bindings
A6: Binding ID# | B6: Type | C6: Date/Time | D6: Pressure Test (Lbs) | E6: Failure Temperature oC
A7: 3423 | B7: 1 | C7: 2004-12-01T08:02:00 | D7: 10.141 | E7: -66.7
A8: 3424 | B8: 1 | C8: =C7+0.005 -> 2004-12-01T08:09:12 | D8: 10.743 | E8: -66.3
A9: 3425 | B9: 1 | C9: =C8+0.005 -> 2004-12-01T08:16:24 | D9: 10.487 | E9: -69.9
A10: 3426 | B10: 1 | C10: 2004-12-01T08:23:36 | D10: 11.039 | E10: -68.4
A11: 3427 | B11: 1 | C11: 2004-12-01T08:30:48 | D11: 10 | E11: -68.7
A12: 3428 | B12: 1 | C12: 2004-12-01T08:38:00 | D12: 11.531 | E12: -66
A13: 3429 | B13: 1 | C13: 2004-12-01T08:45:12 | D13: 10 | E13: -66.4
A14: 3430 | B14: 1 | C14: 2004-12-01T08:52:24 | D14: 10.32 | E14: -68.3
A15: 3431 | B15: 1 | C15: 2004-12-01T08:59:36 | D15: 10 | E15: -67.5
A16: 3432 | B16: 1 | C16: 2004-12-01T09:06:48 | D16: 10.51 | E16: -70.6
A17: 3433 | B17: 1 | C17: 2004-12-01T09:14:00 | D17: 10 | E17: -66.7
A18: 3434 | B18: 1 | C18: 2004-12-01T09:21:12 | D18: 10.426 | E18: -68
A19: 3435 | B19: 1 | C19: 2004-12-01T09:28:24 | D19: 10.099 | E19: -58.9
A20: 3436 | B20: 1 | C20: 2004-12-01T09:35:36 | D20: 10 | E20: -66.5
A21: 3437 | B21: 1 | C21: 2004-12-01T09:42:48 | D21: 12.999 | E21: -69.2
A22: 3438 | B22: 1 | C22: =C21+0.005 -> 2004-12-01T09:50:00 | D22: 10.118 | E22: -66.8
A23: 3439 | B23: 2 | C23: 2004-12-01T09:57:12 | D23: 10.571 | E23: -67.7
A24: 3440 | B24: 2 | C24: 2004-12-01T10:04:24 | D24: 10.135 | E24: -67.8
A25: 3441 | B25: 2 | C25: 2004-12-01T10:11:36 | D25: 10.563 | E25: -66
A26: 3442 | B26: 2 | C26: 2004-12-01T10:18:48 | D26: 10.397 | E26: -69.2
A27: 3443 | B27: 2 | C27: 2004-12-01T10:26:00 | D27: 10 | E27: -66
A28: 3444 | B28: 2 | C28: 2004-12-01T10:33:12 | D28: 10.386 | E28: -65.5
A29: 3445 | B29: 2 | C29: 2004-12-01T10:40:24 | D29: 10.31 | E29: -68.7
A30: 3446 | B30: 2 | C30: 2004-12-01T10:47:36 | D30: 10.152 | E30: -68.1
A31: 3447 | B31: 2 | C31: 2004-12-01T10:54:48 | D31: 10 | E31: -56
A32: 3448 | B32: 2 | C32: 2004-12-01T11:02:00 | D32: 9.973 | E32: -66
A33: 3449 | B33: 2 | C33: 2004-12-01T11:09:12 | D33: 10.16 | E33: -66.7
A34: 3450 | B34: 2 | C34: 2004-12-01T11:16:24 | D34: 10.528 | E34: -67
A35: 3451 | B35: 3 | C35: 2004-12-01T11:23:36 | D35: 10 | E35: -68.1
A36: 3452 | B36: 3 | C36: 2004-12-01T11:30:48 | D36: 11.502 | E36: -66.6
A37: 3453 | B37: 3 | C37: 2004-12-01T11:38:00 | D37: 11.638 | E37: -68.5
A38: 3454 | B38: 3 | C38: 2004-12-01T11:45:12 | D38: 10.833 | E38: -59.7
A39: 3455 | B39: 3 | C39: 2004-12-01T11:52:24 | D39: 10 | E39: -66
A40: 3456 | B40: 3 | C40: 2004-12-01T11:59:36 | D40: 10.63 | E40: -66.5
A41: 3457 | B41: 3 | C41: 2004-12-01T12:06:48 | D41: 10.851 | E41: -68.6
A42: 3458 | B42: 3 | C42: 2004-12-01T12:14:00 | D42: 12.262 | E42: -66.8
A43: 3459 | B43: 3 | C43: 2004-12-01T12:21:12 | D43: 10 | E43: -69.1
A44: 3460 | B44: 3 | C44: 2004-12-01T12:28:24 | D44: 10.404 | E44: -66.2
A45: 3461 | B45: 3 | C45: 2004-12-01T12:35:36 | D45: 11.788 | E45: -69.3
A46: 3462 | B46: 3 | C46: 2004-12-01T12:42:48 | D46: 10.813 | E46: -66
A47: 3463 | B47: 3 | C47: 2004-12-01T12:50:00 | D47: 10.239 | E47: -66.6
A48: 3464 | B48: 3 | C48: 2004-12-01T12:57:12 | D48: 11.005 | E48: -66
A49: 3465 | B49: 3 | C49: 2004-12-01T13:04:24 | D49: 10.187 | E49: -69
A50: 3466 | B50: 3 | C50: 2004-12-01T13:11:36 | D50: 11.046 | E50: -67
A51: 3467 | B51: 3 | C51: 2004-12-01T13:18:48 | D51: 10.76 | E51: -66.8
C53: Mean | D53: =AVERAGE(pt) ->  | E53: =AVERAGE(ft) -> 
C54: Median | D54: =MEDIAN(pt) ->  | E54: =MEDIAN(ft) -> 
C55: Mode | D55: =MODE(pt) ->  | E55: =MODE(ft) -> 
C56: Standard Deviation | D56: =STDEV(pt) ->  | E56: =STDEV(ft) -> 

Sheet P112
A1: Historical Data for Bindings as Compared to Current Data
B2: Pressure Test (Lbs) | F2: Failure Temperature oC
B3: Historical | C3: Current | D3: Difference | E3: % Difference | F3: Historical | G3: Current | H3: Difference | I3: % Difference
A4: Mean | B4: 10.305 | C4: ='P111-112'!D53 ->  | D4: =C4-B4 ->  | E4: =D4/B4 ->  | F4: -63.821 | G4: ='P111-112'!E53 ->  | H4: =G4-F4 ->  | I4: =H4/F4 -> 
A5: Median | B5: 10.221 | C5: ='P111-112'!D54 ->  | D5: =C5-B5 ->  | E5: =D5/B5 ->  | F5: -67.01 | G5: ='P111-112'!E54 ->  | H5: =G5-F5 ->  | I5: =H5/F5 -> 
A6: Mode | B6: 10 | C6: ='P111-112'!D55 ->  | D6: =C6-B6 ->  | E6: =D6/B6 ->  | F6: -66 | G6: ='P111-112'!E55 ->  | H6: =G6-F6 ->  | I6: =H6/F6 -> 
A7: Standard Deviation | B7: 0.801 | C7: ='P111-112'!D56 ->  | D7: =C7-B7 ->  | E7: =D7/B7 ->  | F7: 2.601 | G7: ='P111-112'!E56 ->  | H7: =G7-F7 ->  | I7: =H7/F7 -> 
A9: Conclusions:
A10: The pressure test came out positive, no corrections needed. Because we reject at less than 10, the fact that the mean and median went up is a good sign - a sign that the bindings hold well. The current mode is the same as the historical, but it is less then the current Mean and Median: this means that the "tail" (or Skew) is toward the positive side and a few large values are pulling the mean up. The current standard deviation is about 17% lower than the historical standard deviation which means that the data points are clustered more closely around the mean and that the production process is more consistent than before.
A11: The failure temperature statistics are all similar to the historical ones and thus the process seems to be similar to before
A12: In the end, the new production machine seems to be the same or a bit better than the "by hand" process that we used to employ.

Sheet P113-115,119-124
A1: Quality Control Data for TZBlazer Skis
A2: Mfg ID# | B2: Size | C2: Style | D2: Date Manufactured | E2: Production Line | F2: Friction Coefficient (lowest is best) | G2: Torsion Strength (highest is best) | H2: Ski Cost | I2: Rank Friction Coefficient (lowest is best) | J2: Rank Torsion Strength (highest is best)
A3: 12134 | B3: 174 | C3: A | D3: 2007-11-17 | E3: 1 | F3: 0.82 | G3: 2.21 | H3: 54.5 | I3: =RANK(F3,F$3:F$31,1) -> 18 | J3: =RANK(G3,G$3:G$31,0) -> 15
A4: 12135 | B4: 174 | C4: A | D4: 2007-11-17 | E4: 1 | F4: 0.49 | G4: 1.94 | H4: 54.5 | I4: 6 | J4: 28
A5: 12139 | B5: 174 | C5: A | D5: 2007-11-17 | E5: 1 | F5: 0.52 | G5: 2.03 | H5: 54.5 | I5: 8 | J5: 23
A6: 12140 | B6: 167 | C6: A | D6: 2007-11-17 | E6: 1 | F6: 0.63 | G6: 2.24 | H6: 45.5 | I6: 10 | J6: 10
A7: 12142 | B7: 167 | C7: A | D7: 2007-11-17 | E7: 1 | F7: 0.64 | G7: 2.28 | H7: 45.5 | I7: 11 | J7: 7
A8: 12144 | B8: 167 | C8: A | D8: 2007-11-17 | E8: 1 | F8: 1.28 | G8: 2.31 | H8: 45.5 | I8: 28 | J8: 5
A9: 12145 | B9: 174 | C9: A | D9: 2007-11-17 | E9: 1 | F9: 0.45 | G9: 2.02 | H9: 54.5 | I9: 3 | J9: 24
A10: 12146 | B10: 167 | C10: A | D10: 2007-11-17 | E10: 1 | F10: 1.13 | G10: 2.05 | H10: 45.5 | I10: 27 | J10: 22
A11: 12148 | B11: 167 | C11: E | D11: 2007-11-18 | E11: 1 | F11: 0.43 | G11: 2.27 | H11: 55.5 | I11: 2 | J11: 8
A12: 12149 | B12: 174 | C12: E | D12: 2007-11-18 | E12: 1 | F12: 0.47 | G12: 2.31 | H12: 64.5 | I12: 5 | J12: 5
A13: 12154 | B13: 174 | C13: E | D13: 2007-11-18 | E13: 1 | F13: 0.97 | G13: 2.23 | H13: 64.5 | I13: 23 | J13: 13
A14: 12156 | B14: 174 | C14: E | D14: 2007-11-18 | E14: 1 | F14: 0.81 | G14: 2.11 | H14: 64.5 | I14: 17 | J14: 17
A15: 12160 | B15: 174 | C15: E | D15: 2007-11-19 | E15: 1 | F15: 0.68 | G15: 2.22 | H15: 64.5 | I15: 13 | J15: 14
A16: 12161 | B16: 174 | C16: E | D16: 2007-11-19 | E16: 1 | F16: 0.67 | G16: 2.08 | H16: 64.5 | I16: 12 | J16: 19
A17: 12162 | B17: 181 | C17: E | D17: 2007-11-19 | E17: 1 | F17: 0.95 | G17: 2.01 | H17: 70.5 | I17: 22 | J17: 25
A18: 12136 | B18: 181 | C18: R | D18: 2007-11-17 | E18: 2 | F18: 1.32 | G18: 2.35 | H18: 82.5 | I18: 29 | J18: 2
A19: 12137 | B19: 181 | C19: R | D19: 2007-11-17 | E19: 2 | F19: 0.75 | G19: 1.73 | H19: 82.5 | I19: 15 | J19: 29
A20: 12138 | B20: 181 | C20: R | D20: 2007-11-17 | E20: 2 | F20: 0.92 | G20: 2.08 | H20: 82.5 | I20: 21 | J20: 19
A21: 12141 | B21: 181 | C21: R | D21: 2007-11-17 | E21: 2 | F21: 0.46 | G21: 2.26 | H21: 82.5 | I21: 4 | J21: 9
A22: 12143 | B22: 174 | C22: R | D22: 2007-11-17 | E22: 2 | F22: 1.04 | G22: 2.24 | H22: 76.5 | I22: 26 | J22: 10
A23: 12147 | B23: 181 | C23: A | D23: 2007-11-18 | E23: 2 | F23: 0.9 | G23: 2.01 | H23: 60.5 | I23: 20 | J23: 25
A24: 12150 | B24: 167 | C24: A | D24: 2007-11-18 | E24: 2 | F24: 0.97 | G24: 2 | H24: 45.5 | I24: 23 | J24: 27
A25: 12151 | B25: 181 | C25: A | D25: 2007-11-18 | E25: 2 | F25: 0.49 | G25: 2.08 | H25: 60.5 | I25: 6 | J25: 19
A26: 12152 | B26: 181 | C26: A | D26: 2007-11-18 | E26: 2 | F26: 0.75 | G26: 2.17 | H26: 60.5 | I26: 15 | J26: 16
A27: 12153 | B27: 167 | C27: A | D27: 2007-11-18 | E27: 2 | F27: 0.3 | G27: 3.22 | H27: 45.5 | I27: 1 | J27: 1
A28: 12155 | B28: 181 | C28: E | D28: 2007-11-18 | E28: 2 | F28: 1.01 | G28: 2.24 | H28: 70.5 | I28: 25 | J28: 10
A29: 12157 | B29: 181 | C29: E | D29: 2007-11-19 | E29: 2 | F29: 0.84 | G29: 2.34 | H29: 70.5 | I29: 19 | J29: 3
A30: 12158 | B30: 174 | C30: E | D30: 2007-11-19 | E30: 2 | F30: 0.68 | G30: 2.1 | H30: 64.5 | I30: 13 | J30: 18
A31: 12159 | B31: 181 | C31: A | D31: 2007-11-19 | E31: 2 | F31: 0.58 | G31: 2.33 | H31: 70.5 | I31: 9 | J31: 4
A33: Rejected ==> | F33: =COUNTIF(F$3:F$31,F37) -> 2 | G33: =COUNTIF(G$3:G$31,G37) -> 2
F35: Assumptions
F36: hurdle for FC | G36: hurdle for TS
F37: =">"&F38 -> >1.23 | G37: ="<"&G38 -> <2
F38: 1.23 | G38: 2
G40: 1.75 | H40: 1.8
G41: 1.2 | H41: 2.5
G42: 0.7 | H42: 1.6
G43: 1.29 | H43: 3
G44: 0.2 | H44: 4
F46: Count rejected | G46: =COUNTIF(G$40:G$44,F37) -> 2 | H46: =COUNTIF(H$40:H$44,G37) -> 2
F48: Count Total Rejected | H48: =COUNTIF(G40:G44,F37)+COUNTIF(H40:H44,G37)-SUM(IF(G40:G44>F38,IF(H40:H44<G38,1,0))) -> 3
F50: Count non-contiguous ranges | H50: =COUNTIF(E3:E31,">"&1)+COUNTIF(C3:C31,"a") -> 28

Sheet P116-118
A1: Analysis of QC Data Extreme Values
B2: Top 5 (Highest) | D2: Bottom 5 (Lowest)
B3: Friction Coefficient | C3: Torsion Strength | D3: Friction Coefficient | E3: Torsion Strength
A4: 1 | B4: =LARGE('P113-115,119-124'!F$3:F$31,$A4) -> 1.32 | C4: =LARGE('P113-115,119-124'!G$3:G$31,$A4) -> 3.22 | D4: =SMALL('P113-115,119-124'!F$3:F$31,$A4) -> 0.3 | E4: =SMALL('P113-115,119-124'!G$3:G$31,$A4) -> 1.73
A5: 2 | B5: =LARGE('P113-115,119-124'!F$3:F$31,$A5) -> 1.28 | C5: =LARGE('P113-115,119-124'!G$3:G$31,$A5) -> 2.35 | D5: =SMALL('P113-115,119-124'!F$3:F$31,$A5) -> 0.43 | E5: =SMALL('P113-115,119-124'!G$3:G$31,$A5) -> 1.94
A6: 3 | B6: =LARGE('P113-115,119-124'!F$3:F$31,$A6) -> 1.13 | C6: =LARGE('P113-115,119-124'!G$3:G$31,$A6) -> 2.34 | D6: =SMALL('P113-115,119-124'!F$3:F$31,$A6) -> 0.45 | E6: =SMALL('P113-115,119-124'!G$3:G$31,$A6) -> 2
A7: 4 | B7: =LARGE('P113-115,119-124'!F$3:F$31,$A7) -> 1.04 | C7: =LARGE('P113-115,119-124'!G$3:G$31,$A7) -> 2.33 | D7: =SMALL('P113-115,119-124'!F$3:F$31,$A7) -> 0.46 | E7: =SMALL('P113-115,119-124'!G$3:G$31,$A7) -> 2.01
A8: 5 | B8: =LARGE('P113-115,119-124'!F$3:F$31,$A8) -> 1.01 | C8: =LARGE('P113-115,119-124'!G$3:G$31,$A8) -> 2.31 | D8: =SMALL('P113-115,119-124'!F$3:F$31,$A8) -> 0.47 | E8: =SMALL('P113-115,119-124'!G$3:G$31,$A8) -> 2.01

Sheet P124-130
A1: Quality Control Data for TZBlazer Skis
A2: Mfg ID# | B2: Size | C2: Style | D2: Date Manufactured | E2: Production Line | F2: Friction Coefficient (lowest is best) | G2: Torsion Strength (highest is best) | H2: Ski Cost | I2: Rank Friction Coefficient (lowest is best) | J2: Rank Torsion Strength (highest is best)
A3: 12134 | B3: 174 | C3: A | D3: 2007-11-17 | E3: 1 | F3: 0.82 | G3: 2.21 | H3: 54.5 | I3: =IF(F3="","",RANK(F3,F$3:F$31,1)) -> 16 | J3: 15
A4: 12135 | B4: 174 | C4: A | D4: 2007-11-17 | E4: 1 | G4: 1.94 | H4: 54.5 | J4: 2
A5: 12139 | B5: 174 | C5: A | D5: 2007-11-17 | E5: 1 | F5: 0.52 | G5: 2.03 | H5: 54.5 | I5: 7 | J5: 7
A6: 12140 | B6: 167 | C6: A | D6: 2007-11-17 | E6: 1 | F6: 0.63 | G6: 2.24 | H6: 45.5 | I6: 9 | J6: 18
A7: 12142 | B7: 167 | C7: A | D7: 2007-11-17 | E7: 1 | F7: 0.64 | G7: 2.28 | H7: 45.5 | I7: 10 | J7: 23
A8: 12144 | B8: 167 | C8: A | D8: 2007-11-17 | E8: 1 | F8: 1.28 | H8: 45.5 | I8: 26
A9: 12145 | B9: 174 | C9: A | D9: 2007-11-17 | E9: 1 | F9: 0.45 | G9: 2.02 | H9: 54.5 | I9: 3 | J9: 6
A10: 12146 | B10: 167 | C10: A | D10: 2007-11-17 | E10: 1 | F10: 1.13 | G10: 2.05 | H10: 45.5 | I10: 25 | J10: 8
A11: 12148 | B11: 167 | C11: E | D11: 2007-11-18 | E11: 1 | F11: 0.43 | G11: 2.27 | H11: 55.5 | I11: 2 | J11: 22
A12: 12149 | B12: 174 | C12: E | D12: 2007-11-18 | E12: 1 | F12: 0.47 | G12: 2.31 | H12: 64.5 | I12: 5 | J12: 24
A13: 12154 | B13: 174 | C13: E | D13: 2007-11-18 | E13: 1 | F13: 0.97 | G13: 2.23 | H13: 64.5 | I13: 21 | J13: 17
A14: 12156 | B14: 174 | C14: E | D14: 2007-11-18 | E14: 1 | F14: 0.81 | G14: 2.11 | H14: 64.5 | I14: 15 | J14: 13
A15: 12160 | B15: 174 | C15: E | D15: 2007-11-19 | E15: 1 | F15: 0.68 | G15: 2.22 | H15: 64.5 | I15: 12 | J15: 16
A16: 12161 | B16: 174 | C16: E | D16: 2007-11-19 | E16: 1 | F16: 0.67 | G16: 2.08 | H16: 64.5 | I16: 11 | J16: 9
A17: 12162 | B17: 181 | C17: E | D17: 2007-11-19 | E17: 1 | F17: 0.95 | G17: 2.01 | H17: 70.5 | I17: 20 | J17: 4
A18: 12136 | B18: 181 | C18: R | D18: 2007-11-17 | E18: 2 | F18: 1.32 | H18: 82.5 | I18: 27
A19: 12137 | B19: 181 | C19: R | D19: 2007-11-17 | E19: 2 | G19: 1.73 | H19: 82.5 | J19: 1
A20: 12138 | B20: 181 | C20: R | D20: 2007-11-17 | E20: 2 | F20: 0.92 | G20: 2.08 | H20: 82.5 | I20: 19 | J20: 9
A21: 12141 | B21: 181 | C21: R | D21: 2007-11-17 | E21: 2 | F21: 0.46 | G21: 2.26 | H21: 82.5 | I21: 4 | J21: 21
A22: 12143 | B22: 174 | C22: R | D22: 2007-11-17 | E22: 2 | F22: 1.04 | G22: 2.24 | H22: 76.5 | I22: 24 | J22: 18
A23: 12147 | B23: 181 | C23: A | D23: 2007-11-18 | E23: 2 | F23: 0.9 | G23: 2.01 | H23: 60.5 | I23: 18 | J23: 4
A24: 12150 | B24: 167 | C24: A | D24: 2007-11-18 | E24: 2 | F24: 0.97 | G24: 2 | H24: 45.5 | I24: 21 | J24: 3
A25: 12151 | B25: 181 | C25: A | D25: 2007-11-18 | E25: 2 | F25: 0.49 | G25: 2.08 | H25: 60.5 | I25: 6 | J25: 9
A26: 12152 | B26: 181 | C26: A | D26: 2007-11-18 | E26: 2 | F26: 0.75 | G26: 2.17 | H26: 60.5 | I26: 14 | J26: 14
A27: 12153 | B27: 167 | C27: A | D27: 2007-11-18 | E27: 2 | F27: 0.3 | G27: 3.22 | H27: 45.5 | I27: 1 | J27: 27
A28: 12155 | B28: 181 | C28: E | D28: 2007-11-18 | E28: 2 | F28: 1.01 | G28: 2.24 | H28: 70.5 | I28: 23 | J28: 18
A29: 12157 | B29: 181 | C29: E | D29: 2007-11-19 | E29: 2 | F29: 0.84 | G29: 2.34 | H29: 70.5 | I29: 17 | J29: 26
A30: 12158 | B30: 174 | C30: E | D30: 2007-11-19 | E30: 2 | F30: 0.68 | G30: 2.1 | H30: 64.5 | I30: 12 | J30: 12
A31: 12159 | B31: 181 | C31: A | D31: 2007-11-19 | E31: 2 | F31: 0.58 | G31: 2.33 | H31: 70.5 | I31: 8 | J31: 25
A33: Rejected ==> | F33: =COUNTIF('P113-115,119-124'!F$3:F$31,'P113-115,119-124'!F37) -> 2 | G33: =COUNTIF('P113-115,119-124'!G$3:G$31,'P113-115,119-124'!G37) -> 2 | H33: Sum of Costs for Rejects
A34: Cost of Rejection ==> | F34: =SUMIF(F$3:F$31,F$38,$H$3:$H$31) -> 128 | G34: =SUMIF(G$3:G$31,G$38,$H$3:$H$31) -> 137 | H34: =SUM(F34:G34) -> 265 | I34: or | J34: =SUMIF(F3:F31,F38,H3:H31)+SUMIF(G3:G31,G38,H3:H31) -> 265
F36: Assumptions
F37: hurdle for FC | G37: hurdle for TS
F38: =">"&F39 -> >1.23 | G38: ="<"&G39 -> <2
F39: 1.23 | G39: 2

Sheet P130
A1: Quality Control Data - Ski Bindings
A2: Inspection# | B2: Type | C2: Date/Time | D2: Pressure Test (Lbs) - above 10 lbs is good, below 10 lbs, binding rejected (pt) | E2: Material Failure Temperature oC - below -60 is good, above -60 binding rejected (ft) | F2: Component Value | G2: pt Rank | H2: ft Rank
A3: 3423 | B3: 1 | C3: 2004-12-01T08:02:00 | D3: 10.141 | E3: -66.7 | F3: 33.5 | G3: =RANK(D3,D$3:D$47,0) -> 33 | H3: =RANK(E3,E$3:E$47,1) -> 25
A4: 3424 | B4: 1 | C4: =C3+0.005 -> 2004-12-01T08:09:12 | D4: 10.743 | E4: -66.3 | F4: 33.5 | G4: 14 | H4: 33
A5: 3425 | B5: 1 | C5: 2004-12-01T08:16:24 | D5: 10.487 | E5: -69.9 | F5: 41.05 | G5: 20 | H5: 2
A6: 3426 | B6: 1 | C6: 2004-12-01T08:23:36 | D6: 11.039 | E6: -68.4 | F6: 33.5 | G6: 9 | H6: 12
A7: 3427 | B7: 1 | C7: 2004-12-01T08:30:48 | D7: 10 | E7: -68.7 | F7: 33.5 | G7: 36 | H7: 8
A8: 3428 | B8: 1 | C8: 2004-12-01T08:38:00 | D8: 11.531 | E8: -66 | F8: 41.05 | G8: 5 | H8: 35
A9: 3429 | B9: 1 | C9: 2004-12-01T08:45:12 | D9: 10 | E9: -66.4 | F9: 41.05 | G9: 36 | H9: 32
A10: 3430 | B10: 1 | C10: 2004-12-01T08:52:24 | D10: 10.32 | E10: -68.3 | F10: 33.5 | G10: 27 | H10: 13
A11: 3431 | B11: 1 | C11: 2004-12-01T08:59:36 | D11: 10 | E11: -67.5 | F11: 33.5 | G11: 36 | H11: 19
A12: 3432 | B12: 1 | C12: 2004-12-01T09:06:48 | D12: 10.51 | E12: -70.6 | F12: 33.5 | G12: 19 | H12: 1
A13: 3433 | B13: 1 | C13: 2004-12-01T09:14:00 | D13: 10 | E13: -66.7 | F13: 41.05 | G13: 36 | H13: 25
A14: 3434 | B14: 1 | C14: 2004-12-01T09:21:12 | D14: 10.426 | E14: -68 | F14: 41.05 | G14: 22 | H14: 16
A15: 3435 | B15: 1 | C15: 2004-12-01T09:28:24 | D15: 10.387 | E15: -58.9 | F15: 41.05 | G15: 25 | H15: 44
A16: 3436 | B16: 1 | C16: 2004-12-01T09:35:36 | D16: 10 | E16: -66.5 | F16: 41.05 | G16: 36 | H16: 30
A17: 3437 | B17: 1 | C17: 2004-12-01T09:42:48 | D17: 12.999 | E17: -69.2 | F17: 41.05 | G17: 1 | H17: 4
A18: 3438 | B18: 1 | C18: 2004-12-01T09:50:00 | D18: 10.118 | E18: -66.8 | F18: 41.05 | G18: 35 | H18: 22
A19: 3439 | B19: 2 | C19: 2004-12-01T09:57:12 | D19: 10.571 | E19: -67.7 | F19: 64 | G19: 16 | H19: 18
A20: 3440 | B20: 2 | C20: 2004-12-01T10:04:24 | D20: 10.135 | E20: -67.8 | F20: 63.09 | G20: 34 | H20: 17
A21: 3441 | B21: 2 | C21: 2004-12-01T10:11:36 | D21: 10.563 | E21: -66 | F21: 63.09 | G21: 17 | H21: 35
A22: 3442 | B22: 2 | C22: 2004-12-01T10:18:48 | D22: 10.397 | E22: -69.2 | F22: 64 | G22: 24 | H22: 4
A23: 3443 | B23: 2 | C23: 2004-12-01T10:26:00 | D23: 10 | E23: -66 | F23: 64 | G23: 36 | H23: 35
A24: 3444 | B24: 2 | C24: 2004-12-01T10:33:12 | D24: 10.386 | E24: -65.5 | F24: 64 | G24: 26 | H24: 41
A25: 3445 | B25: 2 | C25: 2004-12-01T10:40:24 | D25: 10.31 | E25: -68.7 | F25: 63.09 | G25: 28 | H25: 8
A26: 3446 | B26: 2 | C26: 2004-12-01T10:47:36 | D26: 10.152 | E26: -68.1 | F26: 63.09 | G26: 32 | H26: 14
A27: 3447 | B27: 2 | C27: 2004-12-01T10:54:48 | D27: 10.725 | E27: -56 | F27: 63.09 | G27: 15 | H27: 45
A28: 3448 | B28: 2 | C28: 2004-12-01T11:02:00 | D28: 9.973 | E28: -63 | F28: 63.09 | G28: 45 | H28: 42
A29: 3449 | B29: 2 | C29: 2004-12-01T11:09:12 | D29: 10.16 | E29: -66.7 | F29: 55.17 | G29: 31 | H29: 25
A30: 3450 | B30: 2 | C30: 2004-12-01T11:16:24 | D30: 10.528 | E30: -67 | F30: 55.17 | G30: 18 | H30: 20
A31: 3451 | B31: 3 | C31: 2004-12-01T11:23:36 | D31: 10 | E31: -68.1 | F31: 22.09 | G31: 36 | H31: 14
A32: 3452 | B32: 3 | C32: 2004-12-01T11:30:48 | D32: 11.502 | E32: -66.6 | F32: 22.09 | G32: 6 | H32: 28
A33: 3453 | B33: 3 | C33: 2004-12-01T11:38:00 | D33: 11.638 | E33: -68.5 | F33: 22.09 | G33: 4 | H33: 11
A34: 3454 | B34: 3 | C34: 2004-12-01T11:45:12 | D34: 10.43 | E34: -59.7 | F34: 22.09 | G34: 21 | H34: 43
A35: 3455 | B35: 3 | C35: 2004-12-01T11:52:24 | D35: 10 | E35: -66 | F35: 22.09 | G35: 36 | H35: 35
A36: 3456 | B36: 3 | C36: 2004-12-01T11:59:36 | D36: 11.321 | E36: -66.5 | F36: 22.09 | G36: 7 | H36: 30
A37: 3457 | B37: 4 | C37: 2004-12-01T12:06:48 | D37: 10.851 | E37: -68.6 | F37: 32.08 | G37: 11 | H37: 10
A38: 3458 | B38: 4 | C38: 2004-12-01T12:14:00 | D38: 12.262 | E38: -66.8 | F38: 32.08 | G38: 2 | H38: 22
A39: 3459 | B39: 4 | C39: 2004-12-01T12:21:12 | D39: 10 | E39: -69.1 | F39: 39.95 | G39: 36 | H39: 6
A40: 3460 | B40: 4 | C40: 2004-12-01T12:28:24 | D40: 10.404 | E40: -66.2 | F40: 27.39 | G40: 23 | H40: 34
A41: 3461 | B41: 4 | C41: 2004-12-01T12:35:36 | D41: 11.788 | E41: -69.3 | F41: 27.39 | G41: 3 | H41: 3
A42: 3462 | B42: 4 | C42: 2004-12-01T12:42:48 | D42: 10.813 | E42: -66 | F42: 27.39 | G42: 12 | H42: 35
A43: 3463 | B43: 4 | C43: 2004-12-01T12:50:00 | D43: 10.239 | E43: -66.6 | F43: 27.39 | G43: 29 | H43: 28
A44: 3464 | B44: 5 | C44: 2004-12-01T12:57:12 | D44: 11.005 | E44: -66 | F44: 92.03 | G44: 10 | H44: 35
A45: 3465 | B45: 5 | C45: 2004-12-01T13:04:24 | D45: 10.187 | E45: -69 | F45: 92.03 | G45: 30 | H45: 7
A46: 3466 | B46: 5 | C46: 2004-12-01T13:11:36 | D46: 11.046 | E46: -67 | F46: 92.03 | G46: 8 | H46: 20
A47: 3467 | B47: 5 | C47: 2004-12-01T13:18:48 | D47: 10.76 | E47: -66.8 | F47: 92.03 | G47: 13 | H47: 22
F48: Sum of Rejects | K48: Sum of Rejects
C49: Rejected ==> | D49: =COUNTIF(D$3:D$47,D53) -> 1 | E49: =COUNTIF(E$3:E$47,E53) -> 3 | F49: =SUMIF(D3:D47,D53,F3:F47)+SUMIF(E3:E47,E53,F3:F47) -> 189.32 | K49: =SUMIF(D3:D47,D53,F3:F47)+SUMIF(E3:E47,E53,F3:F47)-SUM(IF(D3:D47<D54,IF(E3:E47>E54,F3:F47))) -> 189.32
C51: Assumptions
D52: Hurdle to reject given pt | E52: Hurdle to reject given ft
D53: ="<"&D54 -> <10 | E53: =">"&E54 -> >-60
D54: 10 | E54: -60

Sheet P131
A1: Analyze Extremes in Pressure and Temperature
B2: Top 5 Highest | D2: Top 5 Lowest
B3: ='P130'!$D2 -> Pressure Test (Lbs) - above 10 lbs is good, below 10 lbs, binding rejected (pt) | C3: ='P130'!$E2 -> Material Failure Temperature oC - below -60 is good, above -60 binding rejected (ft) | D3: ='P130'!$D2 -> Pressure Test (Lbs) - above 10 lbs is good, below 10 lbs, binding rejected (pt) | E3: ='P130'!$E2 -> Material Failure Temperature oC - below -60 is good, above -60 binding rejected (ft)
A4: 1 | B4: =LARGE('P130'!D$3:D$47,$A4) -> 12.999 | C4: =LARGE('P130'!E$3:E$47,$A4) -> -56 | D4: =SMALL('P130'!D$3:D$47,$A4) -> 9.973 | E4: =SMALL('P130'!E$3:E$47,$A4) -> -70.6
A5: 2 | B5: =LARGE('P130'!D$3:D$47,$A5) -> 12.262 | C5: =LARGE('P130'!E$3:E$47,$A5) -> -58.9 | D5: =SMALL('P130'!D$3:D$47,$A5) -> 10 | E5: =SMALL('P130'!E$3:E$47,$A5) -> -69.9
A6: 3 | B6: =LARGE('P130'!D$3:D$47,$A6) -> 11.788 | C6: =LARGE('P130'!E$3:E$47,$A6) -> -59.7 | D6: =SMALL('P130'!D$3:D$47,$A6) -> 10 | E6: =SMALL('P130'!E$3:E$47,$A6) -> -69.3
A7: 4 | B7: =LARGE('P130'!D$3:D$47,$A7) -> 11.638 | C7: =LARGE('P130'!E$3:E$47,$A7) -> -63 | D7: =SMALL('P130'!D$3:D$47,$A7) -> 10 | E7: =SMALL('P130'!E$3:E$47,$A7) -> -69.2
A8: 5 | B8: =LARGE('P130'!D$3:D$47,$A8) -> 11.531 | C8: =LARGE('P130'!E$3:E$47,$A8) -> -65.5 | D8: =SMALL('P130'!D$3:D$47,$A8) -> 10 | E8: =SMALL('P130'!E$3:E$47,$A8) -> -69.2

Sheet P131-138
H1: Style
A2: Time Data for Quality Control Testing - Per Ski | H2: R
C3: Actual Time in Minutes | E3: Quality Inspector Wage | H3: E
A4: MFG ID# | B4: Style | C4: Friction Coefficient Testing | D4: Torsion Strength Testing | E4: 35 | H4: A
A5: 2345 | B5: R | C5: 1 | D5: 1.5 | E5: =SUM(C5:D5)/60*E$4 -> 1.458333333
A6: 2346 | B6: R | C6: 1 | D6: 1 | E6: =SUM(C6:D6)/60*E$4 -> 1.166666667
A7: 2347 | B7: R | C7: 1 | D7: 3 | E7: 2.333333333
A8: 2348 | B8: R | C8: 2 | D8: 5 | E8: 4.083333333
A9: 2349 | B9: R | C9: 1 | D9: 1.5 | E9: 1.458333333
A10: 2350 | B10: R | C10: 1.5 | D10: 5 | E10: 3.791666667
A11: 2351 | B11: R | E11: =SUM(C11:D11)/60*E$4 -> 0
A12: 2352 | B12: E | C12: 2.5 | D12: 3.5 | E12: 3.5
A13: 2353 | B13: R | C13: 1 | D13: 4 | E13: 2.916666667
A14: 2354 | B14: E | C14: 2 | D14: 1 | E14: 1.75
A15: 2355 | B15: R | C15: 1.5 | D15: 1.5 | E15: 1.75
A16: 2356 | B16: A | C16: 1 | D16: 7 | E16: 4.666666667
A17: 2357 | B17: R | C17: 2 | D17: 3.5 | E17: 3.208333333
A18: 2358 | B18: E | C18: 1 | D18: 4.5 | E18: 3.208333333
A19: 2359 | B19: A | C19: 3 | D19: 2 | E19: 2.916666667
A20: 2360 | B20: A | C20: 3.5 | D20: 3 | E20: 3.791666667
A21: 2361 | B21: R | C21: 2 | D21: 4.5 | E21: 3.791666667
A22: 2362 | B22: A | C22: 1 | D22: 1 | E22: 1.166666667
A23: 2363 | B23: A | C23: 1.5 | D23: 6 | E23: 4.375
A24: 2364 | B24: R | C24: 1 | D24: 4.5 | E24: 3.208333333
A25: 2365 | B25: E | C25: 2 | D25: 4.5 | E25: 3.791666667
A26: 2366 | B26: R | C26: 1 | D26: 1 | E26: 1.166666667
A27: 2367 | B27: A | C27: 1 | D27: 1.5 | E27: 1.458333333
A28: 2368 | B28: A | C28: 1 | D28: 7.5 | E28: 4.958333333
A29: 2369 | B29: A | C29: 1 | D29: 3 | E29: 2.333333333
A30: 2370 | B30: E | C30: 1 | D30: 5 | E30: 3.5
A31: 2371 | B31: A | C31: 2 | D31: 6.5 | E31: 4.958333333
A32: 2372 | B32: E | C32: 1.5 | D32: 6 | E32: 4.375
A33: 2373 | B33: R | C33: 1.5 | D33: 4.5 | E33: 3.5
A34: 2374 | B34: R | C34: 1 | D34: 2 | E34: 1.75
A35: 2375 | B35: A | C35: 1.5 | D35: 2.5 | E35: 2.333333333
A36: 2376 | B36: R | C36: 1 | D36: 1 | E36: 1.166666667
A37: 2377 | B37: A | C37: 2.5 | D37: 2.5 | E37: 2.916666667
A38: 2378 | B38: E | C38: 1 | D38: 3.5 | E38: 2.625
A39: 2379 | B39: R | C39: 2 | D39: 1 | E39: 1.75
A40: 2380 | B40: R | C40: 1 | D40: 2.5 | E40: 2.041666667
A41: 2381 | B41: R | C41: 1.5 | D41: 5 | E41: 3.791666667
A42: 2382 | B42: R | C42: 2 | D42: 3.5 | E42: 3.208333333
A43: 2383 | B43: R | C43: 1.5 | D43: 4 | E43: 3.208333333
A44: 2384 | B44: A | C44: 2.5 | D44: 7 | E44: 5.541666667
A45: 2385 | B45: E | C45: 1 | D45: 2.5 | E45: 2.041666667
A46: 2386 | B46: A | C46: 3 | D46: 3.5 | E46: 3.791666667
A47: 2387 | B47: E | C47: 1.5 | D47: 5.5 | E47: 4.083333333
A48: 2388 | B48: R | C48: 1.5 | D48: 4 | E48: 3.208333333
A49: 2389 | B49: E | C49: 1.5 | D49: 2.5 | E49: 2.333333333
A50: 2390 | B50: E | C50: 2.5 | D50: 6 | E50: 4.958333333
A51: 2391 | B51: R | C51: 1 | D51: 1 | E51: 1.166666667
A52: 2392 | B52: R | C52: 1 | D52: 1.5 | E52: 1.458333333
A53: 2393 | B53: E | C53: 1.5 | D53: 5.5 | E53: 4.083333333
A54: 2394 | B54: E | C54: 2 | D54: 2 | E54: 2.333333333
A55: 2395 | B55: A | C55: 3.5 | D55: 1.5 | E55: 2.916666667
A56: 2396 | B56: R | C56: 2 | D56: 1 | E56: 1.75
A57: 2397 | B57: R | C57: 1 | D57: 5 | E57: 3.5
A58: 2398 | B58: R | C58: 1 | D58: 1 | E58: 1.166666667
A59: 2399 | B59: R | C59: 1 | D59: 3 | E59: 2.333333333
A60: 2400 | B60: R | C60: 1 | D60: 1.5 | E60: 1.458333333
A61: 2401 | B61: R | C61: 1.5 | D61: 4.5 | E61: 3.5
A62: 2402 | B62: A | C62: 2.5 | D62: 5.5 | E62: 4.666666667
A63: 2403 | B63: A | C63: 1 | D63: 7 | E63: 4.666666667
A64: 2404 | B64: E | C64: 1 | D64: 2 | E64: 1.75
A65: 2405 | B65: R | C65: 1 | D65: 5 | E65: 3.5
A66: 2406 | B66: A | C66: 4 | D66: 7 | E66: 6.416666667
A67: 2407 | B67: E | C67: 1.5 | D67: 4 | E67: 3.208333333
A68: 2408 | B68: A | C68: 1 | D68: 3.5 | E68: 2.625
A69: 2409 | B69: R | C69: 2 | D69: 1 | E69: 1.75
A70: 2410 | B70: E | C70: 1.5 | D70: 1 | E70: =SUM(C70:D70)/60*E$4 -> 1.458333333
A71: 2411 | B71: R | C71: 1 | D71: 4.5 | E71: 3.208333333
A72: 2412 | B72: E | C72: 3 | D72: 1 | E72: 2.333333333
A73: 2413 | B73: R | C73: 2 | D73: 1 | E73: 1.75
A74: 2414 | B74: A | C74: 1 | D74: 4.5 | E74: 3.208333333
A75: 2415 | B75: E | C75: 1 | D75: 5 | E75: 3.5
A76: 2416 | B76: R | C76: 1 | D76: 3.5 | E76: 2.625
A77: 2417 | B77: R | C77: 1 | D77: 2.5 | E77: 2.041666667
A78: 2418 | B78: R | C78: 1 | D78: 3 | E78: 2.333333333
A79: 2419 | B79: R | C79: 2 | D79: 1 | E79: 1.75
A80: 2420 | B80: R | C80: 1 | D80: 1 | E80: 1.166666667
A81: 2421 | B81: E | C81: 1 | D81: 5.5 | E81: 3.791666667
A82: 2422 | B82: R | C82: 1 | D82: 1 | E82: 1.166666667
A83: 2423 | B83: R | C83: 1 | D83: 1 | E83: 1.166666667
A84: 2424 | B84: R | C84: 1.5 | D84: 1 | E84: 1.458333333
A85: 2425 | B85: R | C85: 1 | D85: 1.5 | E85: 1.458333333
A86: 2426 | B86: R | C86: 1 | D86: 4 | E86: 2.916666667
A87: 2427 | B87: A | C87: 2 | D87: 3.5 | E87: 3.208333333
A88: 2428 | B88: A | C88: 3.5 | D88: 1.5 | E88: 2.916666667
A89: 2429 | B89: R | C89: 1.5 | D89: 2.5 | E89: 2.333333333
A90: 2430 | B90: E | C90: 2.5 | D90: 6 | E90: 4.958333333
A91: 2431 | B91: A | C91: 2.5 | D91: 3.5 | E91: 3.5
A92: 2432 | B92: R | C92: 1 | D92: 2 | E92: 1.75
A93: 2433 | B93: A | C93: 1 | D93: 2 | E93: 1.75
A94: 2434 | B94: R | C94: 1 | D94: 4 | E94: 2.916666667
A95: 2435 | B95: R | C95: 1.5 | D95: 2 | E95: 2.041666667
A96: 2436 | B96: A | C96: 2.5 | D96: 4.5 | E96: 4.083333333
A97: 2437 | B97: R | C97: 1.5 | D97: 1 | E97: 1.458333333
A98: 2438 | B98: R | C98: 1.5 | D98: 1 | E98: 1.458333333
A99: 2439 | B99: A | C99: 1 | D99: 5.5 | E99: 3.791666667
A100: 2440 | B100: R | C100: 1 | D100: 5 | E100: 3.5
A101: 2441 | B101: R | C101: 1 | D101: 2 | E101: 1.75
A102: 2442 | B102: A | C102: 3.5 | D102: 5 | E102: 4.958333333
A103: 2443 | B103: E | C103: 1 | D103: 4 | E103: 2.916666667
A104: 2444 | B104: A | C104: 1.5 | D104: 1 | E104: 1.458333333
B106: Total | C106: =SUM(C5:C104) -> 154.5 | D106: =SUM(D5:D104) -> 321.5 | E106: =SUM(E5:E104) -> 277.6666667
B107: Average | C107: =AVERAGE(C5:C104) -> 1.560606061 | D107: =AVERAGE(D5:D104) -> 3.247474747 | E107: =AVERAGE(E5:E104) -> 2.776666667
B108: Standard Deviation | C108: =STDEV(C5:C104) -> 0.7293858448 | D108: =STDEV(D5:D104) -> 1.854907635 | E108: =STDEV(E5:E104) -> 1.227312632
B110: Sum of average time | C110: =SUM(C107:D107) -> 4.808080808 | D110: =E4 -> 35 | E110: =C110/60*D110 -> 2.804713805

Sheet P138-139
H1: Style
A2: Time Data for Quality Control Testing - Per Ski | H2: R
C3: Actual Time in Minutes | E3: Quality Inspector Wage | H3: E
A4: MFG ID# | B4: Style | C4: Friction Coefficient Testing | D4: Torsion Strength Testing | E4: 45 | H4: A
A5: 2345 | B5: R | C5: 1 | D5: 1.5 | E5: =SUM(C5:D5)/60*E$4 -> 1.875
A6: 2346 | B6: R | C6: 1 | D6: 1 | E6: =SUM(C6:D6)/60*E$4 -> 1.5
A7: 2347 | B7: R | C7: 1 | D7: 3 | E7: 3
A8: 2348 | B8: R | C8: 2 | D8: 5 | E8: 5.25
A9: 2349 | B9: R | C9: 1 | D9: 1.5 | E9: 1.875
A10: 2350 | B10: R | C10: 1.5 | D10: 5 | E10: 4.875
A11: 2351 | B11: R | E11: =SUM(C11:D11)/60*E$4 -> 0
A12: 2352 | B12: E | C12: 2.5 | D12: 3.5 | E12: 4.5
A13: 2353 | B13: R | C13: 1 | D13: 4 | E13: 3.75
A14: 2354 | B14: E | C14: 2 | D14: 1 | E14: 2.25
A15: 2355 | B15: R | C15: 1.5 | D15: 1.5 | E15: 2.25
A16: 2356 | B16: A | C16: 1 | D16: 7 | E16: 6
A17: 2357 | B17: R | C17: 2 | D17: 3.5 | E17: 4.125
A18: 2358 | B18: E | C18: 1 | D18: 4.5 | E18: 4.125
A19: 2359 | B19: A | C19: 3 | D19: 2 | E19: 3.75
A20: 2360 | B20: A | C20: 3.5 | D20: 3 | E20: 4.875
A21: 2361 | B21: R | C21: 2 | D21: 4.5 | E21: 4.875
A22: 2362 | B22: A | C22: 1 | D22: 1 | E22: 1.5
A23: 2363 | B23: A | C23: 1.5 | D23: 6 | E23: 5.625
A24: 2364 | B24: R | C24: 1 | D24: 4.5 | E24: 4.125
A25: 2365 | B25: E | C25: 2 | D25: 4.5 | E25: 4.875
A26: 2366 | B26: R | C26: 1 | D26: 1 | E26: 1.5
A27: 2367 | B27: A | C27: 1 | D27: 1.5 | E27: 1.875
A28: 2368 | B28: A | C28: 1 | D28: 7.5 | E28: 6.375
A29: 2369 | B29: A | C29: 1 | D29: 3 | E29: 3
A30: 2370 | B30: E | C30: 1 | D30: 5 | E30: 4.5
A31: 2371 | B31: A | C31: 2 | D31: 6.5 | E31: 6.375
A32: 2372 | B32: E | C32: 1.5 | D32: 6 | E32: 5.625
A33: 2373 | B33: R | C33: 1.5 | D33: 4.5 | E33: 4.5
A34: 2374 | B34: R | C34: 1 | D34: 2 | E34: 2.25
A35: 2375 | B35: A | C35: 1.5 | D35: 2.5 | E35: 3
A36: 2376 | B36: R | C36: 1 | D36: 1 | E36: 1.5
A37: 2377 | B37: A | C37: 2.5 | D37: 2.5 | E37: 3.75
A38: 2378 | B38: E | C38: 1 | D38: 3.5 | E38: 3.375
A39: 2379 | B39: R | C39: 2 | D39: 1 | E39: 2.25
A40: 2380 | B40: R | C40: 1 | D40: 2.5 | E40: 2.625
A41: 2381 | B41: R | C41: 1.5 | D41: 5 | E41: 4.875
A42: 2382 | B42: R | C42: 2 | D42: 3.5 | E42: 4.125
A43: 2383 | B43: R | C43: 1.5 | D43: 4 | E43: 4.125
A44: 2384 | B44: A | C44: 2.5 | D44: 7 | E44: 7.125
A45: 2385 | B45: E | C45: 1 | D45: 2.5 | E45: 2.625
A46: 2386 | B46: A | C46: 3 | D46: 3.5 | E46: 4.875
A47: 2387 | B47: E | C47: 1.5 | D47: 5.5 | E47: 5.25
A48: 2388 | B48: R | C48: 1.5 | D48: 4 | E48: 4.125
A49: 2389 | B49: E | C49: 1.5 | D49: 2.5 | E49: 3
A50: 2390 | B50: E | C50: 2.5 | D50: 6 | E50: 6.375
A51: 2391 | B51: R | C51: 1 | D51: 1 | E51: 1.5
A52: 2392 | B52: R | C52: 1 | D52: 1.5 | E52: 1.875
A53: 2393 | B53: E | C53: 1.5 | D53: 5.5 | E53: 5.25
A54: 2394 | B54: E | C54: 2 | D54: 2 | E54: 3
A55: 2395 | B55: A | C55: 3.5 | D55: 1.5 | E55: 3.75
A56: 2396 | B56: R | C56: 2 | D56: 1 | E56: 2.25
A57: 2397 | B57: R | C57: 1 | D57: 5 | E57: 4.5
A58: 2398 | B58: R | C58: 1 | D58: 1 | E58: 1.5
A59: 2399 | B59: R | C59: 1 | D59: 3 | E59: 3
A60: 2400 | B60: R | C60: 1 | D60: 1.5 | E60: 1.875
A61: 2401 | B61: R | C61: 1.5 | D61: 4.5 | E61: 4.5
A62: 2402 | B62: A | C62: 2.5 | D62: 5.5 | E62: 6
A63: 2403 | B63: A | C63: 1 | D63: 7 | E63: 6
A64: 2404 | B64: E | C64: 1 | D64: 2 | E64: 2.25
A65: 2405 | B65: R | C65: 1 | D65: 5 | E65: 4.5
A66: 2406 | B66: A | C66: 4 | D66: 7 | E66: 8.25
A67: 2407 | B67: E | C67: 1.5 | D67: 4 | E67: 4.125
A68: 2408 | B68: A | C68: 1 | D68: 3.5 | E68: 3.375
A69: 2409 | B69: R | C69: 2 | D69: 1 | E69: 2.25
A70: 2410 | B70: E | C70: 1.5 | D70: 1 | E70: =SUM(C70:D70)/60*E$4 -> 1.875
A71: 2411 | B71: R | C71: 1 | D71: 4.5 | E71: 4.125
A72: 2412 | B72: E | C72: 3 | D72: 1 | E72: 3
A73: 2413 | B73: R | C73: 2 | D73: 1 | E73: 2.25
A74: 2414 | B74: A | C74: 1 | D74: 4.5 | E74: 4.125
A75: 2415 | B75: E | C75: 1 | D75: 5 | E75: 4.5
A76: 2416 | B76: R | C76: 1 | D76: 3.5 | E76: 3.375
A77: 2417 | B77: R | C77: 1 | D77: 2.5 | E77: 2.625
A78: 2418 | B78: R | C78: 1 | D78: 3 | E78: 3
A79: 2419 | B79: R | C79: 2 | D79: 1 | E79: 2.25
A80: 2420 | B80: R | C80: 1 | D80: 1 | E80: 1.5
A81: 2421 | B81: E | C81: 1 | D81: 5.5 | E81: 4.875
A82: 2422 | B82: R | C82: 1 | D82: 1 | E82: 1.5
A83: 2423 | B83: R | C83: 1 | D83: 1 | E83: 1.5
A84: 2424 | B84: R | C84: 1.5 | D84: 1 | E84: 1.875
A85: 2425 | B85: R | C85: 1 | D85: 1.5 | E85: 1.875
A86: 2426 | B86: R | C86: 1 | D86: 4 | E86: 3.75
A87: 2427 | B87: A | C87: 2 | D87: 3.5 | E87: 4.125
A88: 2428 | B88: A | C88: 3.5 | D88: 1.5 | E88: 3.75
A89: 2429 | B89: R | C89: 1.5 | D89: 2.5 | E89: 3
A90: 2430 | B90: E | C90: 2.5 | D90: 6 | E90: 6.375
A91: 2431 | B91: A | C91: 2.5 | D91: 3.5 | E91: 4.5
A92: 2432 | B92: R | C92: 1 | D92: 2 | E92: 2.25
A93: 2433 | B93: A | C93: 1 | D93: 2 | E93: 2.25
A94: 2434 | B94: R | C94: 1 | D94: 4 | E94: 3.75
A95: 2435 | B95: R | C95: 1.5 | D95: 2 | E95: 2.625
A96: 2436 | B96: A | C96: 2.5 | D96: 4.5 | E96: 5.25
A97: 2437 | B97: R | C97: 1.5 | D97: 1 | E97: 1.875
A98: 2438 | B98: R | C98: 1.5 | D98: 1 | E98: 1.875
A99: 2439 | B99: A | C99: 1 | D99: 5.5 | E99: 4.875
A100: 2440 | B100: R | C100: 1 | D100: 5 | E100: 4.5
A101: 2441 | B101: R | C101: 1 | D101: 2 | E101: 2.25
A102: 2442 | B102: A | C102: 3.5 | D102: 5 | E102: 6.375
A103: 2443 | B103: E | C103: 1 | D103: 4 | E103: 3.75
A104: 2444 | B104: A | C104: 1.5 | D104: 1 | E104: 1.875
B106: Total | C106: =SUM(C5:C104) -> 154.5 | D106: =SUM(D5:D104) -> 321.5 | E106: =SUM(E5:E104) -> 357
B107: Average | C107: =AVERAGE(C5:C104) -> 1.560606061 | D107: =AVERAGE(D5:D104) -> 3.247474747 | E107: =AVERAGE(E5:E104) -> 3.57
B108: Standard Deviation | C108: =STDEV(C5:C104) -> 0.7293858448 | D108: =STDEV(D5:D104) -> 1.854907635 | E108: =STDEV(E5:E104) -> 1.577973384
B110: Sum of average time | C110: =SUM(C107:D107) -> 4.808080808 | D110: =E4 -> 45 | E110: =C110/60*D110 -> 3.606060606

Sheet P139-141
A1: Time Data for Quality Control Testing - Per Ski
C2: Actual Time in Minutes | E2: Quality Inspector Wage
A3: MFG ID# | B3: Style | C3: Friction Coefficient Testing | D3: Torsion Strength Testing | E3: 28.36134454
A4: 2345 | B4: R | C4: 1 | D4: 1.5 | E4: =SUM(C4:D4)/60*E$3 -> 1.181722689
A5: 2346 | B5: R | C5: 1 | D5: 1 | E5: 0.9453781513
A6: 2347 | B6: R | C6: 1 | D6: 3 | E6: 1.890756303
A7: 2348 | B7: R | C7: 2 | D7: 5 | E7: 3.308823529
A8: 2349 | B8: R | C8: 1 | D8: 1.5 | E8: 1.181722689
A9: 2350 | B9: R | C9: 1.5 | D9: 5 | E9: 3.072478992
A10: 2351 | B10: R | E10: 0
A11: 2352 | B11: E | C11: 2.5 | D11: 3.5 | E11: 2.836134454
A12: 2353 | B12: R | C12: 1 | D12: 4 | E12: 2.363445378
A13: 2354 | B13: E | C13: 2 | D13: 1 | E13: 1.418067227
A14: 2355 | B14: R | C14: 1.5 | D14: 1.5 | E14: 1.418067227
A15: 2356 | B15: A | C15: 1 | D15: 7 | E15: 3.781512605
A16: 2357 | B16: R | C16: 2 | D16: 3.5 | E16: 2.599789916
A17: 2358 | B17: E | C17: 1 | D17: 4.5 | E17: 2.599789916
A18: 2359 | B18: A | C18: 3 | D18: 2 | E18: 2.363445378
A19: 2360 | B19: A | C19: 3.5 | D19: 3 | E19: 3.072478992
A20: 2361 | B20: R | C20: 2 | D20: 4.5 | E20: 3.072478992
A21: 2362 | B21: A | C21: 1 | D21: 1 | E21: 0.9453781513
A22: 2363 | B22: A | C22: 1.5 | D22: 6 | E22: 3.545168067
A23: 2364 | B23: R | C23: 1 | D23: 4.5 | E23: 2.599789916
A24: 2365 | B24: E | C24: 2 | D24: 4.5 | E24: 3.072478992
A25: 2366 | B25: R | C25: 1 | D25: 1 | E25: 0.9453781513
A26: 2367 | B26: A | C26: 1 | D26: 1.5 | E26: 1.181722689
A27: 2368 | B27: A | C27: 1 | D27: 7.5 | E27: 4.017857143
A28: 2369 | B28: A | C28: 1 | D28: 3 | E28: 1.890756303
A29: 2370 | B29: E | C29: 1 | D29: 5 | E29: 2.836134454
A30: 2371 | B30: A | C30: 2 | D30: 6.5 | E30: 4.017857143
A31: 2372 | B31: E | C31: 1.5 | D31: 6 | E31: 3.545168067
A32: 2373 | B32: R | C32: 1.5 | D32: 4.5 | E32: 2.836134454
A33: 2374 | B33: R | C33: 1 | D33: 2 | E33: 1.418067227
A34: 2375 | B34: A | C34: 1.5 | D34: 2.5 | E34: 1.890756303
A35: 2376 | B35: R | C35: 1 | D35: 1 | E35: 0.9453781513
A36: 2377 | B36: A | C36: 2.5 | D36: 2.5 | E36: 2.363445378
A37: 2378 | B37: E | C37: 1 | D37: 3.5 | E37: 2.12710084
A38: 2379 | B38: R | C38: 2 | D38: 1 | E38: 1.418067227
A39: 2380 | B39: R | C39: 1 | D39: 2.5 | E39: 1.654411765
A40: 2381 | B40: R | C40: 1.5 | D40: 5 | E40: 3.072478992
A41: 2382 | B41: R | C41: 2 | D41: 3.5 | E41: 2.599789916
A42: 2383 | B42: R | C42: 1.5 | D42: 4 | E42: 2.599789916
A43: 2384 | B43: A | C43: 2.5 | D43: 7 | E43: 4.490546218
A44: 2385 | B44: E | C44: 1 | D44: 2.5 | E44: 1.654411765
A45: 2386 | B45: A | C45: 3 | D45: 3.5 | E45: 3.072478992
A46: 2387 | B46: E | C46: 1.5 | D46: 5.5 | E46: 3.308823529
A47: 2388 | B47: R | C47: 1.5 | D47: 4 | E47: 2.599789916
A48: 2389 | B48: E | C48: 1.5 | D48: 2.5 | E48: 1.890756303
A49: 2390 | B49: E | C49: 2.5 | D49: 6 | E49: 4.017857143
A50: 2391 | B50: R | C50: 1 | D50: 1 | E50: 0.9453781513
A51: 2392 | B51: R | C51: 1 | D51: 1.5 | E51: 1.181722689
A52: 2393 | B52: E | C52: 1.5 | D52: 5.5 | E52: 3.308823529
A53: 2394 | B53: E | C53: 2 | D53: 2 | E53: 1.890756303
A54: 2395 | B54: A | C54: 3.5 | D54: 1.5 | E54: 2.363445378
A55: 2396 | B55: R | C55: 2 | D55: 1 | E55: 1.418067227
A56: 2397 | B56: R | C56: 1 | D56: 5 | E56: 2.836134454
A57: 2398 | B57: R | C57: 1 | D57: 1 | E57: 0.9453781513
A58: 2399 | B58: R | C58: 1 | D58: 3 | E58: 1.890756303
A59: 2400 | B59: R | C59: 1 | D59: 1.5 | E59: 1.181722689
A60: 2401 | B60: R | C60: 1.5 | D60: 4.5 | E60: 2.836134454
A61: 2402 | B61: A | C61: 2.5 | D61: 5.5 | E61: 3.781512605
A62: 2403 | B62: A | C62: 1 | D62: 7 | E62: 3.781512605
A63: 2404 | B63: E | C63: 1 | D63: 2 | E63: 1.418067227
A64: 2405 | B64: R | C64: 1 | D64: 5 | E64: 2.836134454
A65: 2406 | B65: A | C65: 4 | D65: 7 | E65: 5.199579832
A66: 2407 | B66: E | C66: 1.5 | D66: 4 | E66: 2.599789916
A67: 2408 | B67: A | C67: 1 | D67: 3.5 | E67: 2.12710084
A68: 2409 | B68: R | C68: 2 | D68: 1 | E68: =SUM(C68:D68)/60*E$3 -> 1.418067227
A69: 2410 | B69: E | C69: 1.5 | D69: 1 | E69: 1.181722689
A70: 2411 | B70: R | C70: 1 | D70: 4.5 | E70: 2.599789916
A71: 2412 | B71: E | C71: 3 | D71: 1 | E71: 1.890756303
A72: 2413 | B72: R | C72: 2 | D72: 1 | E72: 1.418067227
A73: 2414 | B73: A | C73: 1 | D73: 4.5 | E73: 2.599789916
A74: 2415 | B74: E | C74: 1 | D74: 5 | E74: 2.836134454
A75: 2416 | B75: R | C75: 1 | D75: 3.5 | E75: 2.12710084
A76: 2417 | B76: R | C76: 1 | D76: 2.5 | E76: 1.654411765
A77: 2418 | B77: R | C77: 1 | D77: 3 | E77: 1.890756303
A78: 2419 | B78: R | C78: 2 | D78: 1 | E78: 1.418067227
A79: 2420 | B79: R | C79: 1 | D79: 1 | E79: 0.9453781513
A80: 2421 | B80: E | C80: 1 | D80: 5.5 | E80: 3.072478992
A81: 2422 | B81: R | C81: 1 | D81: 1 | E81: 0.9453781513
A82: 2423 | B82: R | C82: 1 | D82: 1 | E82: 0.9453781513
A83: 2424 | B83: R | C83: 1.5 | D83: 1 | E83: 1.181722689
A84: 2425 | B84: R | C84: 1 | D84: 1.5 | E84: 1.181722689
A85: 2426 | B85: R | C85: 1 | D85: 4 | E85: 2.363445378
A86: 2427 | B86: A | C86: 2 | D86: 3.5 | E86: 2.599789916
A87: 2428 | B87: A | C87: 3.5 | D87: 1.5 | E87: 2.363445378
A88: 2429 | B88: R | C88: 1.5 | D88: 2.5 | E88: 1.890756303
A89: 2430 | B89: E | C89: 2.5 | D89: 6 | E89: 4.017857143
A90: 2431 | B90: A | C90: 2.5 | D90: 3.5 | E90: 2.836134454
A91: 2432 | B91: R | C91: 1 | D91: 2 | E91: 1.418067227
A92: 2433 | B92: A | C92: 1 | D92: 2 | E92: 1.418067227
A93: 2434 | B93: R | C93: 1 | D93: 4 | E93: 2.363445378
A94: 2435 | B94: R | C94: 1.5 | D94: 2 | E94: 1.654411765
A95: 2436 | B95: A | C95: 2.5 | D95: 4.5 | E95: 3.308823529
A96: 2437 | B96: R | C96: 1.5 | D96: 1 | E96: 1.181722689
A97: 2438 | B97: R | C97: 1.5 | D97: 1 | E97: 1.181722689
A98: 2439 | B98: A | C98: 1 | D98: 5.5 | E98: 3.072478992
A99: 2440 | B99: R | C99: 1 | D99: 5 | E99: 2.836134454
A100: 2441 | B100: R | C100: 1 | D100: 2 | E100: =SUM(C100:D100)/60*E$3 -> 1.418067227
A101: 2442 | B101: A | C101: 3.5 | D101: 5 | E101: =SUM(C101:D101)/60*E$3 -> 4.017857143
A102: 2443 | B102: E | C102: 1 | D102: 4 | E102: =SUM(C102:D102)/60*E$3 -> 2.363445378
A103: 2444 | B103: A | C103: 1.5 | D103: 1 | E103: =SUM(C103:D103)/60*E$3 -> 1.181722689
B105: Total | C105: =SUM(C4:C103) -> 154.5 | D105: =SUM(D4:D103) -> 321.5 | E105: =SUM(E4:E103) -> 225
B106: Average | C106: =AVERAGE(C4:C103) -> 1.560606061 | D106: =AVERAGE(D4:D103) -> 3.247474747 | E106: =AVERAGE(E4:E103) -> 2.25
B107: Standard Deviation | C107: =STDEV(C4:C103) -> 0.7293858448 | D107: =STDEV(D4:D103) -> 1.854907635 | E107: =STDEV(E4:E103) -> 0.9945210402
B109: Sum of average time | C109: =SUM(C106:D106) -> 4.808080808 | D109: =E3 -> 28.36134454 | E109: =C109/60*D109 -> 2.272727273

Sheet P142-144
A1: Summary- By Ski Type
A2: Style | B2: Quantity of Skis Tested | C2: Average Friction Test Time | D2: Average Torsion Test Time | E2: Average Cost
A3: =A8 -> R | B3: =COUNTIF('P131-138'!B$5:B$104,'P142-144'!A3) -> 52 | C3: =SUMIF('P131-138'!$B$5:$B$104,$A3,'P131-138'!C$5:C$104)/COUNTIF('P131-138'!$B$5:$B$104,$A3) -> 1.269230769 | D3: =SUMIF('P131-138'!$B$5:$B$104,$A3,'P131-138'!D$5:D$104)/COUNTIF('P131-138'!$B$5:$B$104,$A3) -> 2.548076923 | E3: =SUMIF('P131-138'!$B$5:$B$104,$A3,'P131-138'!E$5:E$104)/COUNTIF('P131-138'!$B$5:$B$104,$A3) -> 2.226762821
A4: =A9 -> E | B4: =COUNTIF('P131-138'!B$5:B$104,'P142-144'!A4) -> 21 | C4: =SUMIF('P131-138'!$B$5:$B$104,$A4,'P131-138'!C$5:C$104)/COUNTIF('P131-138'!$B$5:$B$104,$A4) -> 1.595238095 | D4: =SUMIF('P131-138'!$B$5:$B$104,$A4,'P131-138'!D$5:D$104)/COUNTIF('P131-138'!$B$5:$B$104,$A4) -> 3.833333333 | E4: =SUMIF('P131-138'!$B$5:$B$104,$A4,'P131-138'!E$5:E$104)/COUNTIF('P131-138'!$B$5:$B$104,$A4) -> 3.166666667
A5: =A10 -> A | B5: =COUNTIF('P131-138'!B$5:B$104,'P142-144'!A5) -> 27 | C5: =SUMIF('P131-138'!$B$5:$B$104,$A5,'P131-138'!C$5:C$104)/COUNTIF('P131-138'!$B$5:$B$104,$A5) -> 2.037037037 | D5: =SUMIF('P131-138'!$B$5:$B$104,$A5,'P131-138'!D$5:D$104)/COUNTIF('P131-138'!$B$5:$B$104,$A5) -> 4.018518519 | E5: =SUMIF('P131-138'!$B$5:$B$104,$A5,'P131-138'!E$5:E$104)/COUNTIF('P131-138'!$B$5:$B$104,$A5) -> 3.532407407
A7: Style | B7: Quantity of Skis Tested | C7: Average Friction Test Time | D7: Average Torsion Test Time | E7: Average Cost
A8: ='P138-139'!H2 -> R | B8: =COUNTIF('P139-141'!$B$4:$B$103,A8) -> 52 | C8: =AVERAGEIF('P131-138'!$B$5:$B$104,$A8,'P131-138'!C$5:C$104) -> 1.294117647 | D8: =AVERAGEIF('P131-138'!$B$5:$B$104,$A8,'P131-138'!D$5:D$104) -> 2.598039216 | E8: =AVERAGEIF('P131-138'!$B$5:$B$104,$A8,'P131-138'!E$5:E$104) -> 2.226762821
A9: ='P138-139'!H3 -> E | B9: =COUNTIF('P139-141'!$B$4:$B$103,A9) -> 21 | C9: =AVERAGEIF('P131-138'!$B$5:$B$104,$A9,'P131-138'!C$5:C$104) -> 1.595238095 | D9: =AVERAGEIF('P131-138'!$B$5:$B$104,$A9,'P131-138'!D$5:D$104) -> 3.833333333 | E9: =AVERAGEIF('P131-138'!$B$5:$B$104,$A9,'P131-138'!E$5:E$104) -> 3.166666667
A10: ='P138-139'!H4 -> A | B10: =COUNTIF('P139-141'!$B$4:$B$103,A10) -> 27 | C10: =AVERAGEIF('P131-138'!$B$5:$B$104,$A10,'P131-138'!C$5:C$104) -> 2.037037037 | D10: =AVERAGEIF('P131-138'!$B$5:$B$104,$A10,'P131-138'!D$5:D$104) -> 4.018518519 | E10: =AVERAGEIF('P131-138'!$B$5:$B$104,$A10,'P131-138'!E$5:E$104) -> 3.532407407

Sheet P144-149
A1: Ski Return Cost Simulation | F1: Costs of not inspecting
A2: Style | B2: Return Cost | C2: Probability of Failure | D2: Probable Cost | F2: Handling and returning the defective ski
A3: =RANDBETWEEN(H$11,H$13) -> 3 | B3: =RANDBETWEEN(G$4,H$4)+ROUND(RAND(),2) -> 176.96 | C3: =G$5+RAND()*(H$5-G$5) -> 0.04982075407 | D3: =ROUND(B3*C3,2) -> 8.82 | F3: Getting new ski to customer
A4: =RANDBETWEEN(H$11,H$13) -> 2 | B4: =RANDBETWEEN(G$4,H$4)+ROUND(RAND(),2) -> 87.56 | C4: =G$5+RAND()*(H$5-G$5) -> 0.03815889106 | D4: =ROUND(B4*C4,2) -> 3.34 | F4: Costs vary between | G4: 25 | H4: 200
A5: 3 | B5: 132.87 | C5: 0.03746545787 | D5: 4.98 | F5: Ski Failure rate varies between | G5: 0.03 | H5: 0.05
A6: 3 | B6: 57.02 | C6: 0.03525722645 | D6: 2.01 | F6: Number of Skis | G6: 100
A7: 3 | B7: 200 | C7: 0.04546950073 | D7: 9.09 | F7: Estimation of Cost of not inspecting = | G7: =AVERAGE(G4:H4)*AVERAGE(G5:H5)*G6 -> 450
A8: 2 | B8: 150.71 | C8: 0.03367593461 | D8: 5.08 | F8: ='P131-138'!A2&" "&'P131-138'!B106 -> Time Data for Quality Control Testing - Per Ski Total | G8: ='P131-138'!E106 -> 277.6666667
A9: 3 | B9: 179.6 | C9: 0.03985219267 | D9: 7.16
A10: 2 | B10: 98 | C10: 0.04613497643 | D10: 4.52 | F10: Simulated probable Costs for by Ski Type | G10: Style
A11: 3 | B11: 106.12 | C11: 0.03457770176 | D11: 3.67 | F11: =SUMIF(A$3:A$102,H11,D$3:D$102) -> 150.6 | G11: A | H11: 1
A12: 1 | B12: 40.65 | C12: 0.03094106278 | D12: 1.26 | F12: =SUMIF(A$3:A$102,H12,D$3:D$102) -> 123.22 | G12: E | H12: 2
A13: 2 | B13: 44.48 | C13: 0.04883558513 | D13: 2.17 | F13: =SUMIF(A$3:A$102,H13,D$3:D$102) -> 171.02 | G13: R | H13: 3
A14: 1 | B14: 71.96 | C14: 0.04963812777 | D14: 3.57 | F14: =SUM(F11:F13) -> 444.84
A15: 2 | B15: 88.99 | C15: 0.04725559332 | D15: 4.21
A16: 2 | B16: 152.58 | C16: 0.03121626176 | D16: 4.76 | F16: Can costs be improved given the large variation in Quality Inspection Costs?
A17: 3 | B17: 151.58 | C17: 0.04700338769 | D17: 7.12 | F17: Can the 3% to 5% defect rate be reduced?
A18: 1 | B18: 112.1 | C18: 0.04397815848 | D18: 4.93
A19: 1 | B19: 86.32 | C19: 0.04046154786 | D19: 3.49
A20: 3 | B20: 104.79 | C20: 0.03723140632 | D20: 3.9
A21: 3 | B21: 35.03 | C21: 0.04096761631 | D21: 1.44
A22: 3 | B22: 89.68 | C22: 0.0393025998 | D22: 3.52
A23: 2 | B23: 139.58 | C23: 0.04835535293 | D23: 6.75
A24: 2 | B24: 36.97 | C24: 0.04263335108 | D24: 1.58
A25: 3 | B25: 144.19 | C25: 0.03053380608 | D25: 4.4
A26: 2 | B26: 32.12 | C26: 0.04580123272 | D26: 1.47
A27: 3 | B27: 114.35 | C27: 0.04854000567 | D27: 5.55
A28: 3 | B28: 94.38 | C28: 0.0320438345 | D28: 3.02
A29: 2 | B29: 119.39 | C29: 0.04661806275 | D29: 5.57
A30: 1 | B30: 179.81 | C30: 0.03434197421 | D30: 6.18
A31: 1 | B31: 200.68 | C31: 0.03988669983 | D31: 8
A32: 3 | B32: 156.17 | C32: 0.03753130877 | D32: 5.86
A33: 3 | B33: 108.88 | C33: 0.04040688399 | D33: 4.4
A34: 2 | B34: 67.27 | C34: 0.04309219838 | D34: 2.9
A35: 3 | B35: 80.02 | C35: 0.03388283047 | D35: 2.71
A36: 1 | B36: 95.28 | C36: 0.04456841008 | D36: 4.25
A37: 2 | B37: 72.16 | C37: 0.03529531787 | D37: 2.55
A38: 1 | B38: 131.23 | C38: 0.03961811873 | D38: 5.2
A39: 3 | B39: 124.93 | C39: 0.0416197215 | D39: 5.2
A40: 3 | B40: 165.91 | C40: 0.04457020928 | D40: 7.39
A41: 1 | B41: 85.38 | C41: 0.04212963615 | D41: 3.6
A42: 2 | B42: 49.37 | C42: 0.04935532587 | D42: 2.44
A43: 1 | B43: 54.46 | C43: 0.04032158984 | D43: 2.2
A44: 3 | B44: 90.61 | C44: 0.04014984026 | D44: 3.64
A45: 1 | B45: 56.59 | C45: 0.03058446029 | D45: 1.73
A46: 1 | B46: 60.47 | C46: 0.04680486831 | D46: 2.83
A47: 1 | B47: 78.2 | C47: 0.04879377994 | D47: 3.82
A48: 1 | B48: 172.82 | C48: 0.03894323605 | D48: 6.73
A49: 3 | B49: 188.06 | C49: 0.03895413066 | D49: 7.33
A50: 1 | B50: 185.89 | C50: 0.04680675851 | D50: 8.7
A51: 1 | B51: 110.96 | C51: 0.03261674032 | D51: 3.62
A52: 3 | B52: 32.57 | C52: 0.0497672463 | D52: 1.62
A53: 1 | B53: 103.18 | C53: 0.04146262177 | D53: 4.28
A54: 1 | B54: 165.66 | C54: 0.04163761973 | D54: 6.9
A55: 2 | B55: 177.87 | C55: 0.03726917639 | D55: 6.63
A56: 3 | B56: 165.99 | C56: 0.04210995834 | D56: 6.99
A57: 3 | B57: 122.16 | C57: 0.04441788142 | D57: 5.43
A58: 3 | B58: 177.36 | C58: 0.03978570644 | D58: 7.06
A59: 1 | B59: 92.16 | C59: 0.04253485892 | D59: 3.92
A60: 2 | B60: 137.07 | C60: 0.04132023974 | D60: 5.66
A61: 3 | B61: 82.63 | C61: 0.0417435486 | D61: 3.45
A62: 2 | B62: 93.04 | C62: 0.03835294525 | D62: 3.57
A63: 3 | B63: 82.21 | C63: 0.03185726616 | D63: 2.62
A64: 1 | B64: 30.36 | C64: 0.03937856711 | D64: 1.2
A65: 1 | B65: 70.49 | C65: 0.04471942214 | D65: 3.15
A66: 2 | B66: 151.32 | C66: 0.03760775787 | D66: 5.69
A67: 1 | B67: 156.22 | C67: 0.04958645835 | D67: 7.75
A68: =RANDBETWEEN(H$11,H$13) -> 3 | B68: =RANDBETWEEN(G$4,H$4)+ROUND(RAND(),2) -> 57.83 | C68: =G$5+RAND()*(H$5-G$5) -> 0.04120238329 | D68: =ROUND(B68*C68,2) -> 2.38
A69: 2 | B69: 86.13 | C69: 0.03125831149 | D69: 2.69
A70: 3 | B70: 83.01 | C70: 0.03630326164 | D70: 3.01
A71: 2 | B71: 184.31 | C71: 0.03487409803 | D71: 6.43
A72: 1 | B72: 179.15 | C72: 0.04603614966 | D72: 8.25
A73: 1 | B73: 183.23 | C73: 0.04048965431 | D73: 7.42
A74: 2 | B74: 160.27 | C74: 0.03010123756 | D74: 4.82
A75: 1 | B75: 78.08 | C75: 0.03512795267 | D75: 2.74
A76: 2 | B76: 128.54 | C76: 0.04092018084 | D76: 5.26
A77: 1 | B77: 183.31 | C77: 0.03582806547 | D77: 6.57
A78: 1 | B78: 173.31 | C78: 0.03987538088 | D78: 6.91
A79: 3 | B79: 186.32 | C79: 0.03193546386 | D79: 5.95
A80: 2 | B80: 55.83 | C80: 0.04692587911 | D80: 2.62
A81: 3 | B81: 98.88 | C81: 0.03311587869 | D81: 3.27
A82: 2 | B82: 34.84 | C82: 0.04284395716 | D82: 1.49
A83: 1 | B83: 90.48 | C83: 0.04263570922 | D83: 3.86
A84: 2 | B84: 144.08 | C84: 0.03691430823 | D84: 5.32
A85: 1 | B85: 53.13 | C85: 0.03419429892 | D85: 1.82
A86: 3 | B86: 196.23 | C86: 0.03664094449 | D86: 7.19
A87: 3 | B87: 135.13 | C87: 0.04289691154 | D87: 5.8
A88: 1 | B88: 27.36 | C88: 0.04885535503 | D88: 1.34
A89: 1 | B89: 166.81 | C89: 0.04639056394 | D89: 7.74
A90: 2 | B90: 200.58 | C90: 0.04664688433 | D90: 9.36
A91: 3 | B91: 79.7 | C91: 0.04620472128 | D91: 3.68
A92: 3 | B92: 151.71 | C92: 0.03628282823 | D92: 5.5
A93: 3 | B93: 41.5 | C93: 0.03085451056 | D93: 1.28
A94: 2 | B94: 70.76 | C94: 0.03838176424 | D94: 2.72
A95: 1 | B95: 77.72 | C95: 0.03687984761 | D95: 2.87
A96: 3 | B96: 77.12 | C96: 0.04425117489 | D96: 3.41
A97: 3 | B97: 28.32 | C97: 0.04134884351 | D97: 1.17
A98: 2 | B98: 38.89 | C98: 0.04278454786 | D98: 1.66
A99: 1 | B99: 77.14 | C99: 0.04891057278 | D99: 3.77
A100: 2 | B100: 25.01 | C100: 0.0497783793 | D100: 1.24
A101: 2 | B101: 139.25 | C101: 0.03994912858 | D101: 5.56
A102: 2 | B102: 103.8 | C102: 0.04970579272 | D102: 5.16

Sheet P149
A1: Ski Bindings Labor Cost Analysis | E1: Quality Inspection Wage
C2: Time in Minutes | E2: 38
A3: item# | B3: Type | C3: Pressure-Test | D3: Temperature-Test | E3: Quality Inspection Cost
A4: 1635 | B4: 2 | C4: 1.4 | D4: 0.9 | E4: =SUM(C4:D4)/60*E$2 -> 1.456666667
A5: 1636 | B5: 5 | C5: 0.6 | D5: 1.5 | E5: =SUM(C5:D5)/60*E$2 -> 1.33
A6: 1637 | B6: 1 | C6: 1 | D6: 2.9 | E6: 2.47
A7: 1638 | B7: 5 | C7: 2 | D7: 1.15 | E7: 1.995
A8: 1639 | B8: 4 | C8: 1.4 | D8: 2.9 | E8: 2.723333333
A9: 1640 | B9: 1 | C9: 1.5 | D9: 0.35 | E9: 1.171666667
A10: 1641 | B10: 2 | C10: 1.4 | D10: 1.35 | E10: 1.741666667
A11: 1642 | B11: 1 | C11: 2.1 | D11: 2 | E11: 2.596666667
A12: 1643 | B12: 4 | C12: 1 | D12: 0.1 | E12: 0.6966666667
A13: 1644 | B13: 4 | C13: 2.4 | D13: 1.15 | E13: 2.248333333
A14: 1645 | B14: 5 | C14: 1.9 | D14: 3.5 | E14: 3.42
A15: 1646 | B15: 4 | C15: 1.4 | D15: 2.15 | E15: 2.248333333
A16: 1647 | B16: 2 | C16: 2.4 | D16: 2.65 | E16: 3.198333333
A17: 1648 | B17: 3 | C17: 1 | D17: 1 | E17: 1.266666667
A18: 1649 | B18: 2 | C18: 2.6 | D18: 1.1 | E18: 2.343333333
A19: 1650 | B19: 2 | C19: 3.5 | D19: 2.65 | E19: 3.895
A20: 1651 | B20: 1 | C20: 2 | D20: 0.5 | E20: 1.583333333
A21: 1652 | B21: 2 | C21: 0.6 | D21: 3.4 | E21: 2.533333333
A22: 1653 | B22: 4 | C22: 1.9 | D22: 2.65 | E22: 2.881666667
A23: 1654 | B23: 1 | C23: 1 | D23: 2.65 | E23: 2.311666667
A24: 1655 | B24: 1 | C24: 1.6 | D24: 0.5 | E24: 1.33
A25: 1656 | B25: 5 | C25: 0.6 | D25: 0.75 | E25: 0.855
A26: 1657 | B26: 5 | C26: 0.6 | D26: 3.35 | E26: 2.501666667
A27: 1658 | B27: 2 | C27: 0.6 | D27: 1.1 | E27: 1.076666667
A28: 1659 | B28: 3 | C28: 1.4 | D28: 2.5 | E28: 2.47
A29: 1660 | B29: 4 | C29: 1 | D29: 2.85 | E29: 2.438333333
A30: 1661 | B30: 5 | C30: 1.6 | D30: 2.6 | E30: 2.66
A31: 1662 | B31: 5 | C31: 1.1 | D31: 2.65 | E31: 2.375
A32: 1663 | B32: 1 | C32: 1.5 | D32: 1 | E32: 1.583333333
A33: 1664 | B33: 3 | C33: 0.6 | D33: 0.85 | E33: 0.9183333333
A34: 1665 | B34: 5 | C34: 1.5 | D34: 0.1 | E34: 1.013333333
A35: 1666 | B35: 4 | C35: 1.4 | D35: 0.85 | E35: 1.425
A36: 1667 | B36: 2 | C36: 2.9 | D36: 1.35 | E36: 2.691666667
A37: 1668 | B37: 3 | C37: 0.6 | D37: 0.9 | E37: 0.95
A38: 1669 | B38: 2 | C38: 2 | D38: 0.85 | E38: 1.805
A39: 1670 | B39: 2 | C39: 1 | D39: 2.9 | E39: 2.47
A40: 1671 | B40: 4 | C40: 1.5 | D40: 2.15 | E40: 2.311666667
A41: 1672 | B41: 5 | C41: 1.6 | D41: 2 | E41: 2.28
A42: 1673 | B42: 2 | C42: 1.9 | D42: 3.9 | E42: 3.673333333
A43: 1674 | B43: 2 | C43: 2.9 | D43: 1.25 | E43: 2.628333333
A44: 1675 | B44: 2 | C44: 0.6 | D44: 1.35 | E44: 1.235
A45: 1676 | B45: 3 | C45: 3 | D45: 2.35 | E45: 3.388333333
A46: 1677 | B46: 3 | C46: 1.5 | D46: 2 | E46: 2.216666667
A47: 1678 | B47: 3 | C47: 1.5 | D47: 0.85 | E47: 1.488333333
A48: 1679 | B48: 4 | C48: 1.9 | D48: 3 | E48: 3.103333333
A49: 1680 | B49: 1 | C49: 2.5 | D49: 0.5 | E49: 1.9
A50: 1681 | B50: 3 | C50: 0.6 | D50: 0.35 | E50: 0.6016666667
A51: 1682 | B51: 4 | C51: 1.4 | D51: 3.15 | E51: 2.881666667
A52: 1683 | B52: 4 | C52: 1.9 | D52: 0.6 | E52: 1.583333333
A53: 1684 | B53: 1 | C53: 1.6 | D53: 1.15 | E53: 1.741666667
A54: 1685 | B54: 1 | C54: 3.9 | D54: 0.1 | E54: 2.533333333
A55: 1686 | B55: 3 | C55: 2.4 | D55: 2.5 | E55: 3.103333333
A56: 1687 | B56: 3 | C56: 1 | D56: 0.9 | E56: 1.203333333
A57: 1688 | B57: 2 | C57: 1.4 | D57: 1.1 | E57: 1.583333333
A58: 1689 | B58: 1 | C58: 1.4 | D58: 1.15 | E58: 1.615
A59: 1690 | B59: 2 | C59: 1.4 | D59: 2.25 | E59: 2.311666667
A60: 1691 | B60: 5 | C60: 1.5 | D60: 3.15 | E60: 2.945
A61: 1692 | B61: 1 | C61: 2.9 | D61: 3.1 | E61: 3.8
A62: 1693 | B62: 4 | C62: 0.6 | D62: 0.6 | E62: 0.76
A63: 1694 | B63: 3 | C63: 1 | D63: 2.5 | E63: 2.216666667
A64: 1695 | B64: 5 | C64: 1 | D64: 3.1 | E64: 2.596666667
A65: 1696 | B65: 3 | C65: 4.4 | D65: 2.4 | E65: 4.306666667
A66: 1697 | B66: 1 | C66: 1.9 | D66: 1.35 | E66: 2.058333333
A67: 1698 | B67: 2 | C67: 1 | D67: 0.9 | E67: 1.203333333
A68: 1699 | B68: 2 | C68: 2.4 | D68: 0.1 | E68: 1.583333333
A69: 1700 | B69: 4 | C69: 1.5 | D69: 2.65 | E69: =SUM(C69:D69)/60*E$2 -> 2.628333333
A70: 1701 | B70: 1 | C70: 1.4 | D70: 0.1 | E70: 0.95
A71: 1702 | B71: 2 | C71: 2.6 | D71: 0.9 | E71: 2.216666667
A72: 1703 | B72: 4 | C72: 2.4 | D72: 2.25 | E72: 2.945
A73: 1704 | B73: 5 | C73: 1 | D73: 2.1 | E73: 1.963333333
A74: 1705 | B74: 1 | C74: 1.4 | D74: 1.35 | E74: 1.741666667
A75: 1706 | B75: 3 | C75: 1.4 | D75: 1.65 | E75: 1.931666667
A76: 1707 | B76: 5 | C76: 1.4 | D76: 1.1 | E76: 1.583333333
A77: 1708 | B77: 5 | C77: 1.4 | D77: 0.9 | E77: 1.456666667
A78: 1709 | B78: 4 | C78: 2.4 | D78: 0.9 | E78: 2.09
A79: 1710 | B79: 3 | C79: 1.4 | D79: 3.15 | E79: 2.881666667
A80: 1711 | B80: 1 | C80: 0.6 | D80: 0.5 | E80: 0.6966666667
A81: 1712 | B81: 3 | C81: 1 | D81: 0.5 | E81: 0.95
A82: 1713 | B82: 1 | C82: 1 | D82: 0.5 | E82: 0.95
A83: 1714 | B83: 3 | C83: 1.1 | D83: 1.15 | E83: 1.425
A84: 1715 | B84: 1 | C84: 0.6 | D84: 1.6 | E84: 1.393333333
A85: 1716 | B85: 4 | C85: 1.4 | D85: 2.15 | E85: 2.248333333
A86: 1717 | B86: 2 | C86: 2.4 | D86: 1.15 | E86: 2.248333333
A87: 1718 | B87: 4 | C87: 3.5 | D87: 0.85 | E87: 2.755
A88: 1719 | B88: 2 | C88: 1.9 | D88: 3.4 | E88: 3.356666667
A89: 1720 | B89: 2 | C89: 2.9 | D89: 1.35 | E89: 2.691666667
A90: 1721 | B90: 5 | C90: 2.5 | D90: 1.4 | E90: 2.47
A91: 1722 | B91: 4 | C91: 1 | D91: 1.4 | E91: 1.52
A92: 1723 | B92: 4 | C92: 0.6 | D92: 1.6 | E92: 1.393333333
A93: 1724 | B93: 4 | C93: 1.4 | D93: 1.4 | E93: 1.773333333
A94: 1725 | B94: 5 | C94: 1.1 | D94: 1.85 | E94: 1.868333333
A95: 1726 | B95: 2 | C95: 2.1 | D95: 0.1 | E95: 1.393333333
A96: 1727 | B96: 3 | C96: 1.1 | D96: 0.1 | E96: 0.76
A97: 1728 | B97: 3 | C97: 1.1 | D97: 2.75 | E97: 2.438333333
A98: 1729 | B98: 3 | C98: 0.6 | D98: 2.5 | E98: 1.963333333
A99: 1730 | B99: 2 | C99: 1 | D99: 0.6 | E99: 1.013333333
A100: 1731 | B100: 3 | C100: 0.6 | D100: 2.1 | E100: =SUM(C100:D100)/60*E$2 -> 1.71
A101: 1732 | B101: 1 | C101: 3.1 | D101: 1.6 | E101: =SUM(C101:D101)/60*E$2 -> 2.976666667
A102: 1733 | B102: 4 | C102: 1.4 | D102: 0.9 | E102: =SUM(C102:D102)/60*E$2 -> 1.456666667
A103: 1734 | B103: 5 | C103: 1.1 | D103: 0.5 | E103: =SUM(C103:D103)/60*E$2 -> 1.013333333
A107: Total | C107: =SUM(C4:C103) -> 159.1 | D107: =SUM(D4:D103) -> 160.45 | E107: =SUM(E4:E103) -> 202.3816667
A108: Average | C108: =AVERAGE(C4:C103) -> 1.591 | D108: =AVERAGE(D4:D103) -> 1.6045 | E108: =AVERAGE(E4:E103) -> 2.023816667
A109: Median | C109: =MEDIAN(C4:C103) -> 1.4 | D109: 1.35 | E109: 1.979166667
A110: Standard Deviation | C110: =STDEV(C4:C103) -> 0.8025332367 | D110: =STDEV(D4:D103) -> 0.9861693823 | E110: =STDEV(E4:E103) -> 0.8073835857

Sheet P150
A1: Binding Type Average Analysis
A3: Type | B3: Count | C3: ="Average "&'P149'!C3 -> Average Pressure-Test | D3: ="Average "&'P149'!D3 -> Average Temperature-Test | E3: ="Average "&'P149'!E3 -> Average Quality Inspection Cost
A4: 1 | B4: =COUNTIF('P149'!B$4:B$103,A4) -> 19 | C4: =AVERAGEIF('P149'!$B$4:$B$103,$A4,'P149'!C$4:C$103) -> 1.736842105 | D4: =AVERAGEIF('P149'!$B$4:$B$103,$A4,'P149'!D$4:D$103) -> 1.205263158 | E4: =AVERAGEIF('P149'!$B$4:$B$103,$A4,'P149'!E$4:E$103) -> 1.863333333
A5: 2 | B5: =COUNTIF('P149'!B$4:B$103,A5) -> 23 | C5: =AVERAGEIF('P149'!$B$4:$B$103,$A5,'P149'!C$4:C$103) -> 1.865217391 | D5: =AVERAGEIF('P149'!$B$4:$B$103,$A5,'P149'!D$4:D$103) -> 1.591304348 | E5: =AVERAGEIF('P149'!$B$4:$B$103,$A5,'P149'!E$4:E$103) -> 2.189130435
A6: 3 | B6: =COUNTIF('P149'!B$4:B$103,A6) -> 20 | C6: =AVERAGEIF('P149'!$B$4:$B$103,$A6,'P149'!C$4:C$103) -> 1.365 | D6: =AVERAGEIF('P149'!$B$4:$B$103,$A6,'P149'!D$4:D$103) -> 1.65 | E6: =AVERAGEIF('P149'!$B$4:$B$103,$A6,'P149'!E$4:E$103) -> 1.9095
A7: 4 | B7: =COUNTIF('P149'!B$4:B$103,A7) -> 21 | C7: =AVERAGEIF('P149'!$B$4:$B$103,$A7,'P149'!C$4:C$103) -> 1.59047619 | D7: =AVERAGEIF('P149'!$B$4:$B$103,$A7,'P149'!D$4:D$103) -> 1.726190476 | E7: =AVERAGEIF('P149'!$B$4:$B$103,$A7,'P149'!E$4:E$103) -> 2.100555556
A8: 5 | B8: =COUNTIF('P149'!B$4:B$103,A8) -> 17 | C8: =AVERAGEIF('P149'!$B$4:$B$103,$A8,'P149'!C$4:C$103) -> 1.323529412 | D8: =AVERAGEIF('P149'!$B$4:$B$103,$A8,'P149'!D$4:D$103) -> 1.864705882 | E8: =AVERAGEIF('P149'!$B$4:$B$103,$A8,'P149'!E$4:E$103) -> 2.019215686
A10: Total counted | B10: =SUM(B4:B8) -> 100
A11: Total Costs for all inspections | B11: =SUM('P149'!E4:E103) -> 202.3816667

Sheet P150-151
A1: Ski Return Cost Simulation | F1: Costs of not inspecting
A2: Style | B2: Return Cost (between 20 and 75) | C2: Probability of Failure (between 1% and 3% | D2: Probable Cost | F2: Handling and returning the defective binding
A3: =RANDBETWEEN(G$11,G$15) -> 3 | B3: =RANDBETWEEN(G$4,H$4)+ROUND(RAND(),2) -> 59.56 | C3: =G$5+RAND()*(H$5-G$5) -> 0.02024774891 | D3: =ROUND(B3*C3,2) -> 1.21 | F3: Getting new binding to customer
A4: 3 | B4: 67.46 | C4: =G$5+RAND()*(H$5-G$5) -> 0.02257583257 | D4: =ROUND(B4*C4,2) -> 1.52 | F4: Costs vary between | G4: 20 | H4: 75
A5: 4 | B5: 29.29 | C5: 0.01763389511 | D5: 0.52 | F5: binding Failure rate varies between | G5: 0.01 | H5: 0.03
A6: 4 | B6: 64.53 | C6: 0.01932339029 | D6: 1.25 | F6: Number of bindings | G6: 100
A7: 5 | B7: 24.13 | C7: 0.01493858305 | D7: 0.36 | F7: Estimation of Cost of not inspecting = | G7: =AVERAGE(G4:H4)*AVERAGE(G5:H5)*G6 -> 95
A8: 2 | B8: 58.17 | C8: 0.0187429894 | D8: 1.09 | F8: Time Data for Quality Control Testing - Per binding Total | G8: ='P149'!E107 -> 202.3816667
A9: 5 | B9: 55.52 | C9: 0.02425668635 | D9: 1.35
A10: 4 | B10: 56.25 | C10: 0.01605463604 | D10: 0.9 | F10: Simulated probable Costs for by Ski Type | G10: Style
A11: 1 | B11: 65.15 | C11: 0.02606756435 | D11: 1.7 | F11: =SUMIF(A$3:A$102,G11,D$3:D$102) -> 23.3 | G11: 1
A12: 3 | B12: 56.85 | C12: 0.02872213432 | D12: 1.63 | F12: =SUMIF(A$3:A$102,G12,D$3:D$102) -> 14.44 | G12: 2
A13: 5 | B13: 42.67 | C13: 0.01270216848 | D13: 0.54 | F13: =SUMIF(A$3:A$102,G13,D$3:D$102) -> 23.94 | G13: 3
A14: 3 | B14: 67.06 | C14: 0.02564745999 | D14: 1.72 | F14: =SUMIF(A$3:A$102,G14,D$3:D$102) -> 23.31 | G14: 4
A15: 5 | B15: 59.05 | C15: 0.01759830491 | D15: 1.04 | F15: =SUMIF(A$3:A$102,G15,D$3:D$102) -> 18.47 | G15: 5
A16: 3 | B16: 74.11 | C16: 0.02497837309 | D16: 1.85
A17: 4 | B17: 71.2 | C17: 0.01838830983 | D17: 1.31 | F17: =SUM(F11:F15) -> 103.46 | G17: Simulated
A18: 3 | B18: 63.82 | C18: 0.02944203668 | D18: 1.88 | F18: ='P149'!E107 -> 202.3816667 | G18: Actual from batch
A19: 4 | B19: 67.58 | C19: 0.02568936012 | D19: 1.74
A20: 1 | B20: 72.14 | C20: 0.02066262833 | D20: 1.49 | F20: It seems because the defect rate is lower than the 3% to 5% we saw before, not inspecting costs less than inspecting
A21: 1 | B21: 75.45 | C21: 0.01525580613 | D21: 1.15 | F21: Is it better to not inspect?
A22: 4 | B22: 45.99 | C22: 0.02273648768 | D22: 1.05 | F22: How will customer satisfcatiob change?
A23: 3 | B23: 74.22 | C23: 0.01251839803 | D23: 0.93 | F23: What are the liabilities?
A24: 4 | B24: 58.68 | C24: 0.01016999371 | D24: 0.6 | F24: Will people get hurt?
A25: 1 | B25: 57.43 | C25: 0.0196297312 | D25: 1.13 | F25: If we change the hourly inspection rate to $30, not inspecting still is less 95 ave , 159.78.
A26: 1 | B26: 66.97 | C26: 0.02571830232 | D26: 1.72 | F26: For total inspection to be $100, the hourly rate would have to be $18.78
A27: 3 | B27: 30.93 | C27: 0.02580528352 | D27: 0.8
A28: 1 | B28: 66.55 | C28: 0.01650866744 | D28: 1.1
A29: 3 | B29: 45.18 | C29: 0.01770294536 | D29: 0.8
A30: 3 | B30: 40.55 | C30: 0.02169749497 | D30: 0.88
A31: 5 | B31: 68.82 | C31: 0.02149216222 | D31: 1.48
A32: 1 | B32: 62.08 | C32: 0.02599793922 | D32: 1.61
A33: 4 | B33: 54.56 | C33: 0.02314365217 | D33: 1.26
A34: 2 | B34: 35.49 | C34: 0.01873687169 | D34: 0.66
A35: 2 | B35: 39.31 | C35: 0.01718780456 | D35: 0.68
A36: 4 | B36: 62.16 | C36: 0.01083291113 | D36: 0.67
A37: 4 | B37: 50.71 | C37: 0.01080401237 | D37: 0.55
A38: 4 | B38: 37.97 | C38: 0.0202527606 | D38: 0.77
A39: 2 | B39: 43.61 | C39: 0.01177726378 | D39: 0.51
A40: 2 | B40: 75.64 | C40: 0.01098668822 | D40: 0.83
A41: 5 | B41: 37.1 | C41: 0.01068386299 | D41: 0.4
A42: 5 | B42: 36.72 | C42: 0.02372565531 | D42: 0.87
A43: 1 | B43: 63.51 | C43: 0.02504517576 | D43: 1.59
A44: 3 | B44: 50.62 | C44: 0.01659355091 | D44: 0.84
A45: 5 | B45: 51.11 | C45: 0.01047315879 | D45: 0.54
A46: 3 | B46: 33.22 | C46: 0.01755020378 | D46: 0.58
A47: 4 | B47: 21.82 | C47: 0.02327130976 | D47: 0.51
A48: 3 | B48: 56.02 | C48: 0.01950878681 | D48: 1.09
A49: 5 | B49: 71.31 | C49: 0.02819174015 | D49: 2.01
A50: 3 | B50: 73.27 | C50: 0.0242069268 | D50: 1.77
A51: 4 | B51: 30.89 | C51: 0.02535295712 | D51: 0.78
A52: 3 | B52: 57.64 | C52: 0.02218700062 | D52: 1.28
A53: 5 | B53: 27.12 | C53: 0.02850920031 | D53: 0.77
A54: 5 | B54: 69.13 | C54: 0.01453615291 | D54: 1
A55: 1 | B55: 54.71 | C55: 0.01955437286 | D55: 1.07
A56: 4 | B56: 38.96 | C56: 0.02724898772 | D56: 1.06
A57: 1 | B57: 61.49 | C57: 0.02947907933 | D57: 1.81
A58: 5 | B58: 64.49 | C58: 0.01919616886 | D58: 1.24
A59: 2 | B59: 56.86 | C59: 0.02039427468 | D59: 1.16
A60: 4 | B60: 23.02 | C60: 0.02758727083 | D60: 0.64
A61: 4 | B61: 33.5 | C61: 0.02122691294 | D61: 0.71
A62: 1 | B62: 52.57 | C62: 0.01648321963 | D62: 0.87
A63: 1 | B63: 21.71 | C63: 0.01651747969 | D63: 0.36
A64: 4 | B64: 57.07 | C64: 0.01788080714 | D64: 1.02
A65: 4 | B65: 45.43 | C65: 0.02099751091 | D65: 0.95
A66: 2 | B66: 38.44 | C66: 0.02108587334 | D66: 0.81
A67: =RANDBETWEEN(G$11,G$15) -> 5 | B67: =RANDBETWEEN(G$4,H$4)+ROUND(RAND(),2) -> 43.85 | C67: 0.01798422886 | D67: 0.79
A68: 3 | B68: 55.78 | C68: =G$5+RAND()*(H$5-G$5) -> 0.01661642509 | D68: =ROUND(B68*C68,2) -> 0.93
A69: 5 | B69: 28.11 | C69: 0.01885408899 | D69: 0.53
A70: 4 | B70: 51.3 | C70: 0.02701216324 | D70: 1.39
A71: 4 | B71: 40.5 | C71: 0.01628485017 | D71: 0.66
A72: 1 | B72: 69.42 | C72: 0.02730730639 | D72: 1.9
A73: 1 | B73: 49.93 | C73: 0.02207719052 | D73: 1.1
A74: 5 | B74: 66.79 | C74: 0.02182621758 | D74: 1.46
A75: 2 | B75: 68.02 | C75: 0.01386056622 | D75: 0.94
A76: 1 | B76: 52.02 | C76: 0.02873744249 | D76: 1.49
A77: 4 | B77: 63.18 | C77: 0.01248087911 | D77: 0.79
A78: 5 | B78: 45.5 | C78: 0.02794277933 | D78: 1.27
A79: 4 | B79: 54.26 | C79: 0.01644227643 | D79: 0.89
A80: 5 | B80: 28.55 | C80: 0.02700851201 | D80: 0.77
A81: 3 | B81: 35.52 | C81: 0.01551730768 | D81: 0.55
A82: 3 | B82: 45.93 | C82: 0.02820844702 | D82: 1.3
A83: 2 | B83: 63.72 | C83: 0.0260765006 | D83: 1.66
A84: 4 | B84: 31.34 | C84: 0.01013955909 | D84: 0.32
A85: 4 | B85: 32.09 | C85: 0.02516314408 | D85: 0.81
A86: 3 | B86: 22.47 | C86: 0.01514763615 | D86: 0.34
A87: 1 | B87: 49.15 | C87: 0.02733921965 | D87: 1.34
A88: 3 | B88: 44.56 | C88: 0.01156611599 | D88: 0.52
A89: 2 | B89: 72.94 | C89: 0.01443209727 | D89: 1.05
A90: 2 | B90: 72.9 | C90: 0.01025351799 | D90: 0.75
A91: 4 | B91: 44.97 | C91: 0.01339562795 | D91: 0.6
A92: 5 | B92: 62.59 | C92: 0.0120783505 | D92: 0.76
A93: 1 | B93: 71.97 | C93: 0.0260373121 | D93: 1.87
A94: 3 | B94: 66.73 | C94: 0.02282696857 | D94: 1.52
A95: 2 | B95: 52.22 | C95: 0.01456817156 | D95: 0.76
A96: 4 | B96: 47.06 | C96: 0.02339425642 | D96: 1.1
A97: 4 | B97: 20.07 | C97: 0.02306169376 | D97: 0.46
A98: 2 | B98: 36.76 | C98: 0.02457642216 | D98: 0.9
A99: 2 | B99: 54.79 | C99: 0.01846821181 | D99: 1.01
A100: 2 | B100: 59.59 | C100: 0.01231399408 | D100: 0.73
A101: 2 | B101: 37.52 | C101: 0.02392446741 | D101: 0.9
A102: 5 | B102: 51.82 | C102: 0.02492580052 | D102: 1.29

Sheet P153-155
A1: Flavor | B1: # Pints Sold Current Quarter | C1: # Gallons Sold Current Quarter | D1: # Tubs Used Current Quarter | E1: Total Sold Current Quarter in Gallons | F1: Current Flavor Gallons as a % of Total | G1: Total Sold Same Quarter Last Year in Gallons | H1: Historical Flavor Gallons as a % of Total | I1: Total Sold Amount Change | J1: Total Sold % Change
A2: Vanilla | B2: 154957 | C2: 6832 | D2: 1013.37 | E2: =B2/A$40+C2+ROUNDDOWN(D2*C$41,0) -> 36334.625 | F2: =E2/E$25 -> 0.0738621796 | G2: 55343 | H2: =G2/G$25 -> 0.1274306411 | I2: =IF(AND(E2="",G2=""),"",E2-G2) -> -19008.375 | J2: =IF(AND(OR(G2="",G2=0),OR(E2="",E2=0)),"",IF(AND(OR(G2=0,G2=""),E2<>0),1,I2/G2)) -> -0.3434648465
A3: Chocolate | B3: 215191 | C3: 17424 | D3: 5954.88 | E3: 103870.875 | F3: 0.2111520134 | G3: 76855 | H3: 0.1769633363 | I3: 27015.875 | J3: 0.351517468
A4: Strawberry | B4: 27503 | C4: 3365 | D4: 1780.98 | E4: 24611.875 | F4: 0.05003180111 | G4: 22436 | H4: 0.05166026171 | I4: 2175.875 | J4: 0.0969814138
A5: Maple Walnut | B5: 57513 | C5: 2701 | D5: 571.6 | E5: 15606.125 | F5: 0.03172462651 | G5: 11432 | H5: 0.02632287894 | I5: 4174.125 | J5: 0.3651263996
A6: Praline | B6: 76236 | C6: 2692 | D6: 730.46 | E6: 19525.5 | F6: 0.03969205648 | G6: 14609 | H6: 0.03363811568 | I6: 4916.5 | J6: 0.3365391197
A7: Butter Pecan | B7: 38361 | C7: 2705 | D7: 136.45 | E7: 8864.125 | F7: 0.0180192748 | G7: 16253 | H7: 0.03742352619 | I7: -7388.875 | J7: -0.4546160709
A8: Chocolate Chip | B8: 99103 | C8: 5309 | D8: 1834.26 | E8: 36038.875 | F8: 0.0732609696 | G8: 35395 | H8: 0.08149915151 | I8: 643.875 | J8: 0.01819112869
A9: Mint Chocolate Chip | B9: 91186 | C9: 1469 | D9: 333.97 | E9: 16206.25 | F9: 0.03294457967 | G9: 18935 | H9: 0.04359899516 | I9: -2728.75 | J9: -0.1441114339
A10: Cookie Dough | B10: 91233 | C10: 3516 | D10: 956.68 | E10: 24486.125 | F10: 0.04977617252 | G10: 23443 | H10: 0.05397894078 | I10: 1043.125 | J10: 0.04449622489
A11: Rocky Road | B11: 46187 | C11: 3889 | D11: 824.78 | E11: 17909.375 | F11: 0.03640674626 | G11: 16496 | H11: 0.03798304854 | I11: 1413.375 | J11: 0.08567986178
A12: Fudge Swirl | B12: 51974 | C12: 2857 | D12: 1122.23 | E12: 20575.75 | F12: 0.04182703803 | G12: 18394 | H12: 0.04235330959 | I12: 2181.75 | J12: 0.1186120474
A13: Peach | B13: 65808 | C13: 1595 | D13: 1175.15 | E13: 21572 | F13: 0.04385224667 | G13: 23504 | H13: 0.05411939701 | I13: -1932 | J13: -0.08219877468
A14: Pumpkin | B14: 0 | C14: 0 | D14: 0 | E14: 0 | F14: 0 | G14: 0 | H14: 0 | I14: =IF(AND(E14="",G14=""),"",E14-G14) -> 0 | J14: =IF(AND(OR(G14="",G14=0),OR(E14="",E14=0)),"",IF(AND(OR(G14=0,G14=""),E14<>0),1,I14/G14)) -> 
A15: Marshmallow Fudge | B15: 8467 | C15: 809 | D15: 239.19 | E15: 4258.375 | F15: 0.008656559935 | G15: 5392 | H15: 0.01241540966 | I15: -1133.625 | J15: -0.2102420252
A16: Coffee | B16: 228592 | C16: 6485 | D16: 2161.73 | E16: 56676 | F16: 0.1152127727 | G16: 43235 | H16: 0.09955123083 | I16: 13441 | J16: 0.310882387
A17: Mocha Chip | B17: 130943 | C17: 4985 | D17: 168.85 | E17: 23040.875 | F17: 0.04683822242 | G17: 33235 | H17: 0.07652561945 | I17: -10194.125 | J17: -0.3067285994
A18: Raspberry | B18: 0 | C18: 0 | D18: 0 | E18: 0 | F18: 0 | G18: 0 | H18: 0 | I18: 0
A19: Watermelon | B19: 54154 | C19: 3181 | D19: 1395.27 | E19: 23902.25 | F19: 0.04858925288 | G19: 19342 | H19: 0.04453613755 | I19: 4560.25 | J19: 0.2357693103
A20: Cinnamon Spice | B20: 0 | C20: 0 | D20: 0 | E20: 0 | F20: 0 | G20: 0 | H20: 0 | I20: 0
A21: Chocolate Fudge | B21: 47952 | C21: 3381 | D21: 170.56 | E21: 11080 | F21: 0.02252377587 | H21: 0 | I21: 11080 | J21: =IF(AND(OR(G21="",G21=0),OR(E21="",E21=0)),"",IF(AND(OR(G21=0,G21=""),E21<>0),1,I21/G21)) -> 1
A22: Cherry Vanilla | B22: 69125 | C22: 3800 | D22: 1492.56 | E22: 27365.625 | F22: 0.05562971156 | H22: 0 | I22: 27365.625 | J22: =IF(AND(OR(G22="",G22=0),OR(E22="",E22=0)),"",IF(AND(OR(G22=0,G22=""),E22<>0),1,I22/G22)) -> 1
H24: % change
D25: Total | E25: =SUM(E2:E22) -> 491924.625 | G25: =SUM(G2:G22) -> 434299 | H25: =E25/G25-1 -> 0.1326865247
D26: Mean | E26: =AVERAGE(E2:E22) -> 23424.98214 | G26: =AVERAGE(G2:G22) -> 22857.84211
D27: Median | E27: =MEDIAN(E2:E22) -> 20575.75 | G27: =MEDIAN(G2:G22) -> 18935
D28: Mode | E28: =MODE(E2:E22) -> 0 | G28: =MODE(G2:G22) -> 0
D29: Stdev | E29: =STDEV(E2:E22) -> 22879.87027 | G29: =STDEV(G2:G22) -> 19514.77383
D30: Skew | E30: =SKEW(E2:E22) -> 2.352722992 | G30: =SKEW(G2:G22) -> 1.331121864
A32: Assumptions/Inputs, Information, and Directions
A33: Compare quarterly ice cream sales volumes (gallons) from all regional locations for this quarter and same quarter last year
A34: Pints and gallons sold to public
A35: 10 gallon tubs sold in store for cones and the like
A36: To eliminate price changes or promotions, volume is used for analysis instead of dollar value of flavors
A37: 1 workbook for this quarter
A38: 1 workbook for historical data
A39: New flavors this year at bottom
A40: 8 | B40: = | C40: 1
A41: 1 | B41: = | C41: 10
A42: When making calculations for Tubs, ROUNDDOWN to the nearest Tub.

Sheet P155
A1: Assumptions/Inputs, Information, and Directions | D1: Current Total | E1: =SUM(B14:B214) -> 1903250 | H1: Amount Change | I1: % Change
A2: Summarizes Sales in Dollars by Store | D2: Current Mean | E2: =AVERAGE(B14:B214) -> 9468.905473 | F2: Historical Mean | G2: 8817 | H2: =E2-G2 -> 651.9054726 | I2: =H2/G2 -> 0.07393733386
A3: Compare summary to previous year | D3: Current Median | E3: =MEDIAN(B14:B214) -> 9250 | F3: Historical Median | G3: 8000 | H3: =E3-G3 -> 1250 | I3: =H3/G3 -> 0.15625
A4: Numbers are rounded to the thousands position | D4: Current Mode | E4: =MODE(B14:B214) -> 5500 | F4: Historical Mode | G4: 5500 | H4: =E4-G4 -> 0 | I4: =H4/G4 -> 0
A5: Compare sales by store with SUM, MEAN, MEDIAN, MODE, STDEV | D5: Current Stdev | E5: =STDEV(B14:B214) -> 5347.776715 | F5: Historical Standard Deviation | G5: 6920 | H5: =E5-G5 -> -1572.223285 | I5: =H5/G5 -> -0.2271998966
A6: Historical Mean | B6: 8817 | D6: Current Skew | E6: =SKEW(B14:B214) -> 0.02133641057
A7: Historical Median | B7: 8000
A8: Historical Mode | B8: 5500 | D8: The Average Sales have jumped by 7.39% and the variation in sales per store has dropped. Average sales are up and this is good; matched with the reduction is sales variation per store (means less variation between sales at store or more consistent sales). In particular more consistent sales reduced future uncertainty and helps managers plan with more ease. For these reasons, things are better for this quarter as compared to the same quarter last year.
A9: Historical Standard Deviation | B9: 6920
D10: Total Sales/Total Gallons = Ave. Sales/1 gal = | E10: =E1/'P153-155'!E25 -> 3.868987042
A13: Store# | B13: Sales (Rounded to the Thousands Position
A14: 101 | B14: 2250
A15: 102 | B15: 10500
A16: 103 | B16: 8500
A17: 104 | B17: 12250
A18: 105 | B18: 1500
A19: 106 | B19: 2000
A20: 107 | B20: 11000
A21: 108 | B21: 17750
A22: 109 | B22: 5500
A23: 110 | B23: 13250
A24: 111 | B24: 14500
A25: 112 | B25: 11500
A26: 113 | B26: 8250
A27: 114 | B27: 12000
A28: 115 | B28: 16500
A29: 116 | B29: 17000
A30: 117 | B30: 1750
A31: 118 | B31: 8000
A32: 119 | B32: 9500
A33: 120 | B33: 2000
A34: 121 | B34: 750
A35: 122 | B35: 18500
A36: 123 | B36: 14750
A37: 124 | B37: 2250
A38: 125 | B38: 16500
A39: 126 | B39: 15000
A40: 127 | B40: 1750
A41: 128 | B41: 2500
A42: 129 | B42: 5750
A43: 130 | B43: 7500
A44: 131 | B44: 4250
A45: 132 | B45: 7000
A46: 133 | B46: 6000
A47: 134 | B47: 13500
A48: 135 | B48: 8750
A49: 136 | B49: 10500
A50: 137 | B50: 16750
A51: 138 | B51: 6500
A52: 139 | B52: 4000
A53: 140 | B53: 17500
A54: 141 | B54: 12750
A55: 142 | B55: 6750
A56: 143 | B56: 9000
A57: 144 | B57: 12500
A58: 145 | B58: 2250
A59: 146 | B59: 7000
A60: 147 | B60: 14750
A61: 148 | B61: 10250
A62: 149 | B62: 7250
A63: 150 | B63: 11250
A64: 151 | B64: 7750
A65: 152 | B65: 14750
A66: 153 | B66: 1750
A67: 154 | B67: 5500
A68: 155 | B68: 17250
A69: 156 | B69: 6500
A70: 157 | B70: 5000
A71: 158 | B71: 12250
A72: 159 | B72: 16500
A73: 160 | B73: 4250
A74: 161 | B74: 16000
A75: 162 | B75: 3500
A76: 163 | B76: 1000
A77: 164 | B77: 14000
A78: 165 | B78: 15250
A79: 166 | B79: 5750
A80: 167 | B80: 5500
A81: 168 | B81: 10750
A82: 169 | B82: 16000
A83: 170 | B83: 2250
A84: 171 | B84: 15250
A85: 172 | B85: 16250
A86: 173 | B86: 3500
A87: 174 | B87: 13750
A88: 175 | B88: 9000
A89: 176 | B89: 4000
A90: 177 | B90: 17250
A91: 178 | B91: 10750
A92: 179 | B92: 17750
A93: 180 | B93: 7250
A94: 181 | B94: 16000
A95: 182 | B95: 15500
A96: 183 | B96: 12250
A97: 184 | B97: 18250
A98: 185 | B98: 11000
A99: 186 | B99: 8000
A100: 187 | B100: 18250
A101: 188 | B101: 11000
A102: 189 | B102: 1500
A103: 190 | B103: 8000
A104: 191 | B104: 0
A105: 192 | B105: 12750
A106: 193 | B106: 10500
A107: 194 | B107: 15750
A108: 195 | B108: 12500
A109: 196 | B109: 9250
A110: 197 | B110: 18250
A111: 198 | B111: 17750
A112: 199 | B112: 18250
A113: 200 | B113: 4750
A114: 201 | B114: 11750
A115: 202 | B115: 9250
A116: 203 | B116: 5500
A117: 204 | B117: 17250
A118: 205 | B118: 8250
A119: 206 | B119: 5500
A120: 207 | B120: 1250
A121: 208 | B121: 9500
A122: 209 | B122: 11750
A123: 210 | B123: 2500
A124: 211 | B124: 18000
A125: 212 | B125: 9500
A126: 213 | B126: 9250
A127: 214 | B127: 1500
A128: 215 | B128: 5000
A129: 216 | B129: 12250
A130: 217 | B130: 14500
A131: 218 | B131: 15000
A132: 219 | B132: 13250
A133: 220 | B133: 16250
A134: 221 | B134: 14500
A135: 222 | B135: 17250
A136: 223 | B136: 15250
A137: 224 | B137: 18000
A138: 225 | B138: 6250
A139: 226 | B139: 3750
A140: 227 | B140: 9250
A141: 228 | B141: 14750
A142: 229 | B142: 750
A143: 230 | B143: 3000
A144: 231 | B144: 13750
A145: 232 | B145: 250
A146: 233 | B146: 18250
A147: 234 | B147: 14250
A148: 235 | B148: 14750
A149: 236 | B149: 15000
A150: 237 | B150: 8500
A151: 238 | B151: 3500
A152: 239 | B152: 6750
A153: 240 | B153: 3750
A154: 241 | B154: 1250
A155: 242 | B155: 2500
A156: 243 | B156: 10500
A157: 244 | B157: 3750
A158: 245 | B158: 5750
A159: 246 | B159: 15250
A160: 247 | B160: 9250
A161: 248 | B161: 18000
A162: 249 | B162: 4000
A163: 250 | B163: 8250
A164: 251 | B164: 7750
A165: 252 | B165: 10500
A166: 253 | B166: 6250
A167: 254 | B167: 9500
A168: 255 | B168: 1500
A169: 256 | B169: 3500
A170: 257 | B170: 10500
A171: 258 | B171: 9000
A172: 259 | B172: 13000
A173: 260 | B173: 9500
A174: 261 | B174: 16000
A175: 262 | B175: 3250
A176: 263 | B176: 6500
A177: 264 | B177: 4250
A178: 265 | B178: 8000
A179: 266 | B179: 10000
A180: 267 | B180: 12750
A181: 268 | B181: 10000
A182: 269 | B182: 14000
A183: 270 | B183: 9750
A184: 271 | B184: 7500
A185: 272 | B185: 2000
A186: 273 | B186: 9750
A187: 274 | B187: 16500
A188: 275 | B188: 17000
A189: 276 | B189: 1750
A190: 277 | B190: 1250
A191: 278 | B191: 1250
A192: 279 | B192: 4500
A193: 280 | B193: 13250
A194: 281 | B194: 8000
A195: 282 | B195: 18000
A196: 283 | B196: 2250
A197: 284 | B197: 1500
A198: 285 | B198: 15750
A199: 286 | B199: 13750
A200: 287 | B200: 10250
A201: 288 | B201: 3750
A202: 289 | B202: 4000
... 12 more rows

Sheet P155(2)
A1: Assumptions/Inputs, Information, Directions
A2: Open resturant that specializes in fine cuisine and specialty deserts
A3: We must decide where to located: Location, Location, Location!
A4: Location 1: | B4: Near large retail area
B5: Fringe of affluent suburbs
A6: Location 2: | B6: Downtaown district
A7: Highered Local Market Resecrh Firm to find out: | B7: Demogarphics
B8: Specific dining habits
A10: Age Category | B10: Income
A11: 18-21 | B11: 5000
A12: 22-25 | B12: 10000
A13: 26-30 | B13: 20000
A14: 30-35 | B14: 30000
A15: over 35 | B15: 40000
B16: 50000
B17: 75000
B18: 100000

Sheet P155(3)
A1: SiteX
A2: Respondent# | B2: Age Category | C2: Income | D2: #Desserts Out per Month | E2: ="Rank "&D2 -> Rank #Desserts Out per Month | F2: # Meals out per Month | G2: ="Rank "&F2 -> Rank # Meals out per Month
A3: 100 | B3: 22-25 | C3: 5000 | D3: 4 | E3: =RANK(D3,D$3:D$109) -> 50 | F3: 4 | G3: =RANK(F3,F$3:F$109) -> 59
A4: 101 | B4: 30-35 | C4: 100000 | D4: 5 | E4: 45 | F4: 15 | G4: 13
A5: 102 | B5: 26-30 | C5: 75000 | D5: 3 | E5: 57 | F5: 24 | G5: 1
A6: 103 | B6: 18-21 | C6: 40000 | D6: 0 | E6: 74 | F6: 15 | G6: 13
A7: 104 | B7: 30-35 | C7: 100000 | D7: 12 | E7: 23 | F7: 3 | G7: 65
A8: 105 | B8: 26-30 | C8: 50000 | D8: 8 | E8: 34 | F8: 19 | G8: 7
A9: 106 | B9: 30-35 | C9: 20000 | D9: 1 | E9: 67 | F9: 8 | G9: 38
A10: 107 | B10: 30-35 | C10: 100000 | D10: 18 | E10: 8 | F10: 12 | G10: 20
A11: 108 | B11: 30-35 | C11: 20000 | D11: 14 | E11: 15 | F11: 6 | G11: 49
A12: 109 | B12: 30-35 | C12: 100000 | D12: 4 | E12: 50 | F12: 20 | G12: 4
A13: 110 | B13: 30-35 | C13: 75000 | D13: 0 | E13: 74 | F13: 0 | G13: 103
A14: 111 | B14: 18-21 | C14: 30000 | D14: 0 | E14: 74 | F14: 6 | G14: 49
A15: 112 | B15: 22-25 | C15: 30000 | D15: 4 | E15: 50 | F15: 12 | G15: 20
A16: 113 | B16: 18-21 | C16: 30000 | D16: 0 | E16: 74 | F16: 3 | G16: 65
A17: 114 | B17: 18-21 | C17: 5000 | D17: 0 | E17: 74 | F17: 5 | G17: 55
A18: 115 | B18: over 35 | C18: 50000 | D18: 1 | E18: 67 | F18: 7 | G18: 42
A19: 116 | B19: 30-35 | C19: 40000 | D19: 1 | E19: 67 | F19: 1 | G19: 93
A20: 117 | B20: 26-30 | C20: 20000 | D20: 10 | E20: 29 | F20: 3 | G20: 65
A21: 118 | B21: 30-35 | C21: 100000 | D21: 11 | E21: 26 | F21: 13 | G21: 18
A22: 119 | B22: 18-21 | C22: 30000 | D22: 0 | E22: 74 | F22: 3 | G22: 65
A23: 120 | B23: 30-35 | C23: 30000 | D23: 3 | E23: 57 | F23: 12 | G23: 20
A24: 121 | B24: 26-30 | C24: 75000 | D24: 1 | E24: 67 | F24: 20 | G24: 4
A25: 122 | B25: 18-21 | C25: 5000 | D25: 0 | E25: 74 | F25: 10 | G25: 29
A26: 123 | B26: 22-25 | C26: 20000 | D26: 0 | E26: 74 | F26: 2 | G26: 79
A27: 124 | B27: 18-21 | C27: 10000 | D27: 0 | E27: 74 | F27: 0 | G27: 103
A28: 125 | B28: 22-25 | C28: 5000 | D28: 13 | E28: 19 | F28: 20 | G28: 4
A29: 126 | B29: 26-30 | C29: 75000 | D29: 5 | E29: 45 | F29: 11 | G29: 26
A30: 127 | B30: over 35 | C30: 20000 | D30: 4 | E30: 50 | F30: 1 | G30: 93
A31: 128 | B31: 22-25 | C31: 5000 | D31: 14 | E31: 15 | F31: 6 | G31: 49
A32: 129 | B32: over 35 | C32: 100000 | D32: 12 | E32: 23 | F32: 13 | G32: 18
A33: 130 | B33: 18-21 | C33: 10000 | D33: 0 | E33: 74 | F33: 2 | G33: 79
A34: 131 | B34: 18-21 | C34: 10000 | D34: 0 | E34: 74 | F34: 7 | G34: 42
A35: 132 | B35: 26-30 | C35: 100000 | D35: 11 | E35: 26 | F35: 6 | G35: 49
A36: 133 | B36: 22-25 | C36: 10000 | D36: 3 | E36: 57 | F36: 5 | G36: 55
A37: 134 | B37: 22-25 | C37: 50000 | D37: 13 | E37: 19 | F37: 8 | G37: 38
A38: 135 | B38: 22-25 | C38: 20000 | D38: 6 | E38: 42 | F38: 3 | G38: 65
A39: 136 | B39: 26-30 | C39: 20000 | D39: 6 | E39: 42 | F39: 11 | G39: 26
A40: 137 | B40: 18-21 | C40: 10000 | D40: 0 | E40: 74 | F40: 2 | G40: 79
A41: 138 | B41: 30-35 | C41: 75000 | D41: 1 | E41: 67 | F41: 3 | G41: 65
A42: 139 | B42: 22-25 | C42: 30000 | D42: 20 | E42: 3 | F42: 9 | G42: 32
A43: 140 | B43: 30-35 | C43: 100000 | D43: 2 | E43: 64 | F43: 7 | G43: 42
A44: 141 | B44: 18-21 | C44: 5000 | D44: 0 | E44: 74 | F44: 4 | G44: 59
A45: 142 | B45: 22-25 | C45: 10000 | D45: 8 | E45: 34 | F45: 0 | G45: 103
A46: 143 | B46: 22-25 | C46: 20000 | D46: 20 | E46: 3 | F46: 2 | G46: 79
A47: 144 | B47: 30-35 | C47: 20000 | D47: 9 | E47: 32 | F47: 3 | G47: 65
A48: 145 | B48: 18-21 | C48: 20000 | D48: 0 | E48: 74 | F48: 18 | G48: 8
A49: 146 | B49: 18-21 | C49: 5000 | D49: 0 | E49: 74 | F49: 2 | G49: 79
A50: 147 | B50: 26-30 | C50: 5000 | D50: 10 | E50: 29 | F50: 3 | G50: 65
A51: 148 | B51: 22-25 | C51: 5000 | D51: 15 | E51: 14 | F51: 5 | G51: 55
A52: 149 | B52: 22-25 | C52: 50000 | D52: 14 | E52: 15 | F52: 14 | G52: 17
A53: 150 | B53: 22-25 | C53: 40000 | D53: 20 | E53: 3 | F53: 23 | G53: 2
A54: 151 | B54: 22-25 | C54: 50000 | D54: 13 | E54: 19 | F54: 9 | G54: 32
A55: 152 | B55: 22-25 | C55: 5000 | D55: 3 | E55: 57 | F55: 4 | G55: 59
A56: 153 | B56: 18-21 | C56: 40000 | D56: 0 | E56: 74 | F56: 9 | G56: 32
A57: 154 | B57: 30-35 | C57: 100000 | D57: 3 | E57: 57 | F57: 16 | G57: 11
A58: 155 | B58: 26-30 | C58: 50000 | D58: 20 | E58: 3 | F58: 12 | G58: 20
A59: 156 | B59: 18-21 | C59: 30000 | D59: 0 | E59: 74 | F59: 2 | G59: 79
A60: 157 | B60: 18-21 | C60: 30000 | D60: 0 | E60: 74 | F60: 7 | G60: 42
A61: 158 | B61: 30-35 | C61: 100000 | D61: 7 | E61: 38 | F61: 17 | G61: 9
A62: 159 | B62: 26-30 | C62: 30000 | D62: 5 | E62: 45 | F62: 11 | G62: 26
A63: 160 | B63: 18-21 | C63: 10000 | D63: 0 | E63: 74 | F63: 1 | G63: 93
A64: 161 | B64: 26-30 | C64: 75000 | D64: 18 | E64: 8 | F64: 0 | G64: 103
A65: 162 | B65: over 35 | C65: 100000 | D65: 8 | E65: 34 | F65: 10 | G65: 29
A66: 163 | B66: 30-35 | C66: 5000 | D66: 0 | E66: 74 | F66: 3 | G66: 65
A67: 164 | B67: 18-21 | C67: 30000 | D67: 0 | E67: =RANK(D67,D$3:D$109) -> 74 | F67: 10 | G67: =RANK(F67,F$3:F$109) -> 29
A68: 165 | B68: 22-25 | C68: 100000 | D68: 7 | E68: 38 | F68: 12 | G68: 20
A69: 166 | B69: 30-35 | C69: 5000 | D69: 2 | E69: 64 | F69: 2 | G69: 79
A70: 167 | B70: over 35 | C70: 50000 | D70: 6 | E70: 42 | F70: 7 | G70: 42
A71: 168 | B71: 26-30 | C71: 20000 | D71: 1 | E71: 67 | F71: 2 | G71: 79
A72: 169 | B72: 26-30 | C72: 50000 | D72: 7 | E72: 38 | F72: 3 | G72: 65
A73: 170 | B73: 26-30 | C73: 30000 | D73: 3 | E73: 57 | F73: 8 | G73: 38
A74: 171 | B74: 18-21 | C74: 20000 | D74: 0 | E74: 74 | F74: 3 | G74: 65
A75: 172 | B75: 30-35 | C75: 40000 | D75: 10 | E75: 29 | F75: 17 | G75: 9
A76: 173 | B76: 26-30 | C76: 30000 | D76: 3 | E76: 57 | F76: 4 | G76: 59
A77: 174 | B77: 18-21 | C77: 5000 | D77: 0 | E77: 74 | F77: 12 | G77: 20
A78: 175 | B78: over 35 | C78: 10000 | D78: 20 | E78: 3 | F78: 2 | G78: 79
A79: 176 | B79: 26-30 | C79: 20000 | D79: 25 | E79: 1 | F79: 1 | G79: 93
A80: 177 | B80: 18-21 | C80: 5000 | D80: 0 | E80: 74 | F80: 1 | G80: 93
A81: 178 | B81: 22-25 | C81: 50000 | D81: 5 | E81: 45 | F81: 8 | G81: 38
A82: 179 | B82: over 35 | C82: 20000 | D82: 1 | E82: 67 | F82: 7 | G82: 42
A83: 180 | B83: 18-21 | C83: 30000 | D83: 0 | E83: 74 | F83: 9 | G83: 32
A84: 181 | B84: 30-35 | C84: 100000 | D84: 14 | E84: 15 | F84: 15 | G84: 13
A85: 182 | B85: 26-30 | C85: 5000 | D85: 2 | E85: 64 | F85: 2 | G85: 79
A86: 183 | B86: 30-35 | C86: 100000 | D86: 9 | E86: 32 | F86: 16 | G86: 11
A87: 184 | B87: 26-30 | C87: 20000 | D87: 17 | E87: 11 | F87: 2 | G87: 79
A88: 185 | B88: 18-21 | C88: 40000 | D88: 0 | E88: 74 | F88: 1 | G88: 93
A89: 186 | B89: 18-21 | C89: 30000 | D89: 0 | E89: 74 | F89: 3 | G89: 65
A90: 187 | B90: 18-21 | C90: 30000 | D90: 0 | E90: 74 | F90: 6 | G90: 49
A91: 188 | B91: 26-30 | C91: 5000 | D91: 18 | E91: 8 | F91: 1 | G91: 93
A92: 189 | B92: over 35 | C92: 10000 | D92: 8 | E92: 34 | F92: 3 | G92: 65
A93: 190 | B93: 22-25 | C93: 75000 | D93: 13 | E93: 19 | F93: 6 | G93: 49
A94: 191 | B94: 18-21 | C94: 10000 | D94: 0 | E94: 74 | F94: 4 | G94: 59
A95: 192 | B95: 26-30 | C95: 20000 | D95: 11 | E95: 26 | F95: 2 | G95: 79
A96: 193 | B96: 26-30 | C96: 40000 | D96: 22 | E96: 2 | F96: 15 | G96: 13
A97: 194 | B97: 18-21 | C97: 10000 | D97: 0 | E97: 74 | F97: 5 | G97: 55
A98: 195 | B98: 22-25 | C98: 75000 | D98: 17 | E98: 11 | F98: 1 | G98: 93
A99: 196 | B99: 18-21 | C99: 30000 | D99: 0 | E99: 74 | F99: 3 | G99: 65
A100: 197 | B100: 22-25 | C100: 75000 | D100: 12 | E100: 23 | F100: 4 | G100: 59
A101: 198 | B101: 22-25 | C101: 100000 | D101: 16 | E101: 13 | F101: 21 | G101: 3
A102: 199 | B102: 18-21 | C102: 5000 | D102: 0 | E102: 74 | F102: 9 | G102: 32
A103: 200 | B103: 18-21 | C103: 40000 | D103: 0 | E103: 74 | F103: 9 | G103: 32
A104: 201 | B104: over 35 | C104: 100000 | D104: 7 | E104: 38 | F104: 2 | G104: 79
A105: 202 | B105: 22-25 | C105: 5000 | D105: 4 | E105: 50 | F105: 1 | G105: 93
A106: 203 | B106: 26-30 | C106: 10000 | D106: 5 | E106: 45 | F106: 0 | G106: 103
A107: 204 | B107: 26-30 | C107: 75000 | D107: 4 | E107: 50 | F107: 7 | G107: 42
A108: 205 | B108: 26-30 | C108: 30000 | D108: 4 | E108: 50 | F108: 2 | G108: 79
A109: 206 | B109: over 35 | C109: 100000 | D109: 0 | E109: 74 | F109: 1 | G109: 93

Sheet P155(4)
A1: SiteY
A2: Respondent# | B2: Age Category | C2: Income | D2: #Desserts Out per Month | E2: ="Rank "&D2 -> Rank #Desserts Out per Month | F2: # Meals out per Month | G2: ="Rank "&F2 -> Rank # Meals out per Month
A3: 100 | B3: 30-35 | C3: 75000 | D3: 0 | E3: =RANK(D3,D$3:D$109) -> 95 | F3: 15 | G3: =RANK(F3,F$3:F$109) -> 34
A4: 101 | B4: 30-35 | C4: 30000 | D4: 13 | E4: 22 | F4: 10 | G4: 54
A5: 102 | B5: 26-30 | C5: 5000 | D5: 3 | E5: 70 | F5: 24 | G5: 7
A6: 103 | B6: 18-21 | C6: 20000 | D6: 0 | E6: 95 | F6: 5 | G6: 78
A7: 104 | B7: 30-35 | C7: 100000 | D7: 4 | E7: 62 | F7: 16 | G7: 27
A8: 105 | B8: 26-30 | C8: 20000 | D8: 10 | E8: 31 | F8: 21 | G8: 14
A9: 106 | B9: 30-35 | C9: 75000 | D9: 8 | E9: 41 | F9: 8 | G9: 63
A10: 107 | B10: 30-35 | C10: 100000 | D10: 9 | E10: 34 | F10: 5 | G10: 78
A11: 108 | B11: 30-35 | C11: 30000 | D11: 4 | E11: 62 | F11: 8 | G11: 63
A12: 109 | B12: 30-35 | C12: 75000 | D12: 4 | E12: 62 | F12: 15 | G12: 34
A13: 110 | B13: 30-35 | C13: 100000 | D13: 5 | E13: 57 | F13: 4 | G13: 82
A14: 111 | B14: 18-21 | C14: 30000 | D14: 10 | E14: 31 | F14: 16 | G14: 27
A15: 112 | B15: 22-25 | C15: 5000 | D15: 9 | E15: 34 | F15: 16 | G15: 27
A16: 113 | B16: 18-21 | C16: 30000 | D16: 0 | E16: 95 | F16: 2 | G16: 94
A17: 114 | B17: 18-21 | C17: 30000 | D17: 0 | E17: 95 | F17: 12 | G17: 45
A18: 115 | B18: over 35 | C18: 100000 | D18: 1 | E18: 87 | F18: 19 | G18: 20
A19: 116 | B19: 30-35 | C19: 100000 | D19: 7 | E19: 45 | F19: 3 | G19: 88
A20: 117 | B20: 26-30 | C20: 50000 | D20: 5 | E20: 57 | F20: 4 | G20: 82
A21: 118 | B21: 30-35 | C21: 100000 | D21: 16 | E21: 13 | F21: 1 | G21: 101
A22: 119 | B22: 18-21 | C22: 20000 | D22: 9 | E22: 34 | F22: 9 | G22: 58
A23: 120 | B23: 30-35 | C23: 75000 | D23: 12 | E23: 25 | F23: 1 | G23: 101
A24: 121 | B24: 26-30 | C24: 10000 | D24: 1 | E24: 87 | F24: 24 | G24: 7
A25: 122 | B25: 18-21 | C25: 5000 | D25: 11 | E25: 26 | F25: 9 | G25: 58
A26: 123 | B26: 30-35 | C26: 40000 | D26: 0 | E26: 95 | F26: 7 | G26: 69
A27: 124 | B27: 30-35 | C27: 30000 | D27: 15 | E27: 17 | F27: 12 | G27: 45
A28: 125 | B28: 22-25 | C28: 50000 | D28: 2 | E28: 75 | F28: 16 | G28: 27
A29: 126 | B29: over 35 | C29: 10000 | D29: 4 | E29: 62 | F29: 2 | G29: 94
A30: 127 | B30: over 35 | C30: 40000 | D30: 11 | E30: 26 | F30: 3 | G30: 88
A31: 128 | B31: 22-25 | C31: 30000 | D31: 14 | E31: 19 | F31: 16 | G31: 27
A32: 129 | B32: over 35 | C32: 40000 | D32: 9 | E32: 34 | F32: 14 | G32: 38
A33: 130 | B33: 18-21 | C33: 10000 | D33: 0 | E33: 95 | F33: 0 | G33: 106
A34: 131 | B34: 18-21 | C34: 10000 | D34: 8 | E34: 41 | F34: 12 | G34: 45
A35: 132 | B35: 26-30 | C35: 40000 | D35: 0 | E35: 95 | F35: 7 | G35: 69
A36: 133 | B36: 22-25 | C36: 30000 | D36: 16 | E36: 13 | F36: 23 | G36: 11
A37: 134 | B37: 22-25 | C37: 30000 | D37: 3 | E37: 70 | F37: 28 | G37: 1
A38: 135 | B38: 22-25 | C38: 20000 | D38: 6 | E38: 51 | F38: 6 | G38: 74
A39: 136 | B39: 26-30 | C39: 5000 | D39: 7 | E39: 45 | F39: 20 | G39: 16
A40: 137 | B40: 18-21 | C40: 20000 | D40: 20 | E40: 3 | F40: 8 | G40: 63
A41: 138 | B41: 30-35 | C41: 5000 | D41: 7 | E41: 45 | F41: 15 | G41: 34
A42: 139 | B42: 22-25 | C42: 5000 | D42: 6 | E42: 51 | F42: 6 | G42: 74
A43: 140 | B43: 30-35 | C43: 40000 | D43: 2 | E43: 75 | F43: 14 | G43: 38
A44: 141 | B44: 18-21 | C44: 40000 | D44: 7 | E44: 45 | F44: 21 | G44: 14
A45: 142 | B45: over 35 | C45: 10000 | D45: 5 | E45: 57 | F45: 2 | G45: 94
A46: 143 | B46: 22-25 | C46: 100000 | D46: 2 | E46: 75 | F46: 27 | G46: 2
A47: 144 | B47: over 35 | C47: 50000 | D47: 23 | E47: 1 | F47: 10 | G47: 54
A48: 145 | B48: 18-21 | C48: 10000 | D48: 6 | E48: 51 | F48: 8 | G48: 63
A49: 146 | B49: 18-21 | C49: 10000 | D49: 18 | E49: 8 | F49: 15 | G49: 34
A50: 147 | B50: 26-30 | C50: 5000 | D50: 1 | E50: 87 | F50: 17 | G50: 24
A51: 148 | B51: 22-25 | C51: 10000 | D51: 2 | E51: 75 | F51: 4 | G51: 82
A52: 149 | B52: 22-25 | C52: 100000 | D52: 3 | E52: 70 | F52: 18 | G52: 23
A53: 150 | B53: 22-25 | C53: 30000 | D53: 4 | E53: 62 | F53: 14 | G53: 38
A54: 151 | B54: 22-25 | C54: 30000 | D54: 11 | E54: 26 | F54: 27 | G54: 2
A55: 152 | B55: 22-25 | C55: 20000 | D55: 2 | E55: 75 | F55: 11 | G55: 51
A56: 153 | B56: 18-21 | C56: 30000 | D56: 19 | E56: 5 | F56: 19 | G56: 20
A57: 154 | B57: over 35 | C57: 20000 | D57: 18 | E57: 8 | F57: 4 | G57: 82
A58: 155 | B58: 26-30 | C58: 30000 | D58: 19 | E58: 5 | F58: 10 | G58: 54
A59: 156 | B59: 18-21 | C59: 10000 | D59: 5 | E59: 57 | F59: 19 | G59: 20
A60: 157 | B60: 18-21 | C60: 40000 | D60: 11 | E60: 26 | F60: 4 | G60: 82
A61: 158 | B61: 30-35 | C61: 100000 | D61: 2 | E61: 75 | F61: 3 | G61: 88
A62: 159 | B62: 26-30 | C62: 20000 | D62: 0 | E62: 95 | F62: 12 | G62: 45
A63: 160 | B63: 18-21 | C63: 20000 | D63: 13 | E63: 22 | F63: 6 | G63: 74
A64: 161 | B64: 26-30 | C64: 40000 | D64: 4 | E64: 62 | F64: 2 | G64: 94
A65: 162 | B65: over 35 | C65: 50000 | D65: 2 | E65: 75 | F65: 2 | G65: 94
A66: 163 | B66: 30-35 | C66: 30000 | D66: 9 | E66: 34 | F66: 3 | G66: 88
A67: 164 | B67: 18-21 | C67: 10000 | D67: 8 | E67: =RANK(D67,D$3:D$109) -> 41 | F67: 1 | G67: =RANK(F67,F$3:F$109) -> 101
A68: 165 | B68: 22-25 | C68: 75000 | D68: 9 | E68: 34 | F68: 10 | G68: 54
A69: 166 | B69: 30-35 | C69: 100000 | D69: 7 | E69: 45 | F69: 4 | G69: 82
A70: 167 | B70: over 35 | C70: 100000 | D70: 14 | E70: 19 | F70: 13 | G70: 42
A71: 168 | B71: over 35 | C71: 20000 | D71: 0 | E71: 95 | F71: 2 | G71: 94
A72: 169 | B72: over 35 | C72: 50000 | D72: 1 | E72: 87 | F72: 12 | G72: 45
A73: 170 | B73: 26-30 | C73: 100000 | D73: 2 | E73: 75 | F73: 25 | G73: 5
A74: 171 | B74: 18-21 | C74: 20000 | D74: 23 | E74: 1 | F74: 14 | G74: 38
A75: 172 | B75: 30-35 | C75: 75000 | D75: 17 | E75: 10 | F75: 1 | G75: 101
A76: 173 | B76: 26-30 | C76: 10000 | D76: 4 | E76: 62 | F76: 8 | G76: 63
A77: 174 | B77: 18-21 | C77: 5000 | D77: 16 | E77: 13 | F77: 20 | G77: 16
A78: 175 | B78: over 35 | C78: 10000 | D78: 2 | E78: 75 | F78: 1 | G78: 101
A79: 176 | B79: 26-30 | C79: 30000 | D79: 8 | E79: 41 | F79: 3 | G79: 88
A80: 177 | B80: 18-21 | C80: 5000 | D80: 19 | E80: 5 | F80: 13 | G80: 42
A81: 178 | B81: 22-25 | C81: 5000 | D81: 0 | E81: 95 | F81: 5 | G81: 78
A82: 179 | B82: over 35 | C82: 100000 | D82: 7 | E82: 45 | F82: 17 | G82: 24
A83: 180 | B83: 18-21 | C83: 40000 | D83: 14 | E83: 19 | F83: 25 | G83: 5
A84: 181 | B84: 30-35 | C84: 40000 | D84: 1 | E84: 87 | F84: 12 | G84: 45
A85: 182 | B85: 26-30 | C85: 30000 | D85: 17 | E85: 10 | F85: 11 | G85: 51
A86: 183 | B86: 30-35 | C86: 100000 | D86: 2 | E86: 75 | F86: 17 | G86: 24
A87: 184 | B87: 30-35 | C87: 30000 | D87: 16 | E87: 13 | F87: 20 | G87: 16
A88: 185 | B88: 18-21 | C88: 5000 | D88: 9 | E88: 34 | F88: 0 | G88: 106
A89: 186 | B89: 18-21 | C89: 20000 | D89: 1 | E89: 87 | F89: 7 | G89: 69
A90: 187 | B90: 18-21 | C90: 30000 | D90: 4 | E90: 62 | F90: 22 | G90: 12
A91: 188 | B91: 26-30 | C91: 100000 | D91: 1 | E91: 87 | F91: 26 | G91: 4
A92: 189 | B92: over 35 | C92: 100000 | D92: 20 | E92: 3 | F92: 9 | G92: 58
A93: 190 | B93: 22-25 | C93: 20000 | D93: 5 | E93: 57 | F93: 16 | G93: 27
A94: 191 | B94: 18-21 | C94: 30000 | D94: 2 | E94: 75 | F94: 24 | G94: 7
A95: 192 | B95: 26-30 | C95: 100000 | D95: 13 | E95: 22 | F95: 24 | G95: 7
A96: 193 | B96: 26-30 | C96: 20000 | D96: 0 | E96: 95 | F96: 9 | G96: 58
A97: 194 | B97: 18-21 | C97: 10000 | D97: 6 | E97: 51 | F97: 9 | G97: 58
A98: 195 | B98: 22-25 | C98: 5000 | D98: 17 | E98: 10 | F98: 20 | G98: 16
A99: 196 | B99: 18-21 | C99: 10000 | D99: 0 | E99: 95 | F99: 22 | G99: 12
A100: 197 | B100: 22-25 | C100: 20000 | D100: 3 | E100: 70 | F100: 13 | G100: 42
A101: 198 | B101: 22-25 | C101: 100000 | D101: 0 | E101: 95 | F101: 5 | G101: 78
A102: 199 | B102: 18-21 | C102: 10000 | D102: 6 | E102: 51 | F102: 6 | G102: 74
A103: 200 | B103: 18-21 | C103: 10000 | D103: 10 | E103: 31 | F103: 3 | G103: 88
A104: 201 | B104: over 35 | C104: 40000 | D104: 15 | E104: 17 | F104: 2 | G104: 94
A105: 202 | B105: 22-25 | C105: 75000 | D105: 2 | E105: 75 | F105: 7 | G105: 69
A106: 203 | B106: 30-35 | C106: 30000 | D106: 6 | E106: 51 | F106: 16 | G106: 27
A107: 204 | B107: 26-30 | C107: 5000 | D107: 3 | E107: 70 | F107: 11 | G107: 51
A108: 205 | B108: 30-35 | C108: 100000 | D108: 1 | E108: 87 | F108: 8 | G108: 63
A109: 206 | B109: over 35 | C109: 10000 | D109: 11 | E109: 26 | F109: 7 | G109: 69
A112: Assumption for Condistions Formatting
C113: ='P155(2)'!B17 -> 75000 | D113: =RIGHT('P156(2)'!A4,1)+0 -> 5

Sheet P156(1)
A1: Mean and Standard Deviation Analysis
A2: ='P155(3)'!A$1&" Mean for "&'P155(3)'!D$2 -> SiteX Mean for #Desserts Out per Month | B2: ='P155(4)'!A$1&" Mean for "&'P155(4)'!D$2 -> SiteY Mean for #Desserts Out per Month | C2: Difference (Y - X) | D2: % Difference | E2: ='P155(3)'!A$1&" Mean for "&'P155(3)'!F$2 -> SiteX Mean for # Meals out per Month | F2: ='P155(4)'!A$1&" Mean for "&'P155(4)'!F$2 -> SiteY Mean for # Meals out per Month | G2: Difference (Y - X) | H2: % Difference
A3: =AVERAGE(xd) ->  | B3: =AVERAGE(yd) ->  | C3: =B3-A3 ->  | D3: =C3/A3 ->  | E3: =AVERAGE(xm) ->  | F3: =AVERAGE(ym) ->  | G3: =F3-E3 ->  | H3: =G3/E3 -> 
A4: ='P155(3)'!A$1&" Standard Deviation for "&'P155(3)'!D$2 -> SiteX Standard Deviation for #Desserts Out per Month | B4: ='P155(4)'!A$1&" Standard Deviation for "&'P155(4)'!D$2 -> SiteY Standard Deviation for #Desserts Out per Month | C4: Difference (Y - X) | D4: % Difference | E4: ='P155(3)'!A$1&" Standard Deviation for "&'P155(3)'!F$2 -> SiteX Standard Deviation for # Meals out per Month | F4: ='P155(4)'!A$1&" Standard Deviation for "&'P155(4)'!F$2 -> SiteY Standard Deviation for # Meals out per Month | G4: Difference (Y - X) | H4: % Difference
A5: =STDEV(xd) ->  | B5: =STDEV(yd) ->  | C5: =B5-A5 ->  | D5: =C5/A5 ->  | E5: =STDEV(xm) ->  | F5: =STDEV(ym) ->  | G5: =F5-E5 ->  | H5: =G5/E5 -> 
A7: ="Four Highest "&'P155(3)'!D2 -> Four Highest #Desserts Out per Month | E7: From the market research data and our analysis, site Y has a large average for both # of deserts per month and # of meals per month. Although the variation (standard deviation) for the # of meals per month for the Y site is slight higher than it is for the X site, the reverse is true for the # of deserts per month. Lower variation is a great benifit becasue it reduced future uncertainty and helps with planning, but in this case each site has a lower variation and so this statistic will not be used to determine which site should be slected. Thre same trade off can be seen in the low and high analysis. In the end, the dramatic difference in the larger average # of meals per month and larger averange # of deserts per month for the Y site points toward selecting the Y site. A dollar sales per # of deserts and meals might be a next step in the analysis.
B8: SiteX | C8: SiteY
A9: 1 | B9: =LARGE(xd,$A9) ->  | C9: =LARGE(yd,$A9) -> 
A10: 2 | B10: =LARGE(xd,$A10) ->  | C10: =LARGE(yd,$A10) -> 
A11: 3 | B11: =LARGE(xd,$A11) ->  | C11: =LARGE(yd,$A11) -> 
A12: 4 | B12: =LARGE(xd,$A12) ->  | C12: =LARGE(yd,$A12) -> 
A14: ="Ten Lowest "&'P155(3)'!F2 -> Ten Lowest # Meals out per Month
B15: SiteX | C15: SiteY
A16: 1 | B16: =SMALL(xm,$A16) ->  | C16: =SMALL(ym,$A16) -> 
A17: 2
A18: 3
A19: 4
A20: 5
A21: 6
A22: 7
A23: 8
A24: 9
A25: 10

Sheet P156(2)
A1: Site Y Demographic Analysis
B2: Total number of respondents = | C2: =COUNT('P155(4)'!A3:A109) -> 107
A3: =">="&'P155(2)'!B17 -> >=75000 | B3: ="Total number of respondents with incomes at or above "&DOLLAR('P155(2)'!B17)&" =" -> Total number of respondents with incomes at or above $75,000.00 = | C3: =COUNTIF('P155(4)'!C3:C109,A3) -> 26
A4: <5 | B4: Total number of respondents who eat less than 5 desserts out each month = | C4: =COUNTIF(yd,A4) -> 
A5: ="<"&'P155(2)'!B17 -> <75000 | B5: ="Total number of meals eaten out per month reported by respondents who earn below "&DOLLAR('P155(2)'!B17)&" =" -> Total number of meals eaten out per month reported by respondents who earn below $75,000.00 = | C5: =SUMIF('P155(4)'!C3:C109,A5,ym) -> 
A6: ='P155(2)'!A13 -> 26-30 | B6: ="Total number of desserts eaten out per month reported by respondents who are in the "&A6&" age category or in the "&A7&" age category =" -> Total number of desserts eaten out per month reported by respondents who are in the 26-30 age category or in the 30-35 age category = | C6: =SUMIF('P155(4)'!B3:B109,A6,yd)+SUMIF('P155(4)'!B3:B109,A7,yd) -> 
A7: ='P155(2)'!A14 -> 30-35

Sheet Case 3==>

Sheet Assumptions
A1: CKG Auto Parts Supply
A3: Assumptions/Inputs, Information, Directions
B4: Each warehousing distribution center serves a different set of customers and thus has different needs and demands
B5: Each distribution Center has a 5 day lead time for ordering parts | C5: 5
B6: # of Standard Deviations to add to the mean when determining target inventory levels | C6: 2
B7: Reducing inventory cost is important but must balanced with having enough parts to supply auto repair shops and keep customers happy
B8: Bearings are a part that is particularly problematic
B9: They are large and take up space
B10: They are high volume
B11: They are expensive and use up working capital
B12: We will analyzing bearings in the New Jersey warehouse (which serves 10 major customers)
B13: We will simulate bearing inventory demand based on 30-day historical extremes
B14: The key to maximizing profits is to:
A15: 1 | B15: Key component for Auto Supply is to have enough of the right parts for same-day delivery to repair shops
A16: 2 | B16: Lower Inventory costs by not warehousing: 1) Parts for too long and 2) Too many of the same parts
B17: Goals:
A18: 1 | B18: Determine target inventory levels based on the simulation
A19: 2 | B19: Compare simulated values to actual values from the past five days
B20: Determine target inventory levels based on the simulation
B21: Costs of inventory warehousing:
A22: 1 | B22: Working Capital (cost of each part)
A23: 2 | B23: Space to store part

Sheet BearingData
A1: Orders for a sample 30-Day Period
B2: Customer#
A3: Day | B3: 1234 | C3: 3093 | D3: 1780 | E3: 2121 | F3: 4537 | G3: 1141 | H3: 5292 | I3: 1330 | J3: 3390 | K3: 8540
A4: 1 | B4: 8 | C4: 5 | D4: 9 | E4: 3 | F4: 4 | G4: 12 | H4: 5 | I4: 7 | J4: 13 | K4: 8
A5: 2 | B5: 5 | C5: 5 | D5: 10 | E5: 3 | F5: 4 | G5: 0 | H5: 1 | I5: 10 | J5: 6 | K5: 4
A6: 3 | B6: 2 | C6: 6 | D6: 6 | E6: 4 | F6: 16 | G6: 4 | H6: 10 | I6: 2 | J6: 7 | K6: 2
A7: 4 | B7: 3 | C7: 0 | D7: 2 | E7: 4 | F7: 5 | G7: 11 | H7: 10 | I7: 10 | J7: 12 | K7: 8
A8: 5 | B8: 3 | C8: 8 | D8: 7 | E8: 4 | F8: 11 | G8: 3 | H8: 1 | I8: 9 | J8: 8 | K8: 8
A9: 6 | B9: 14 | C9: 8 | D9: 3 | E9: 1 | F9: 12 | G9: 11 | H9: 2 | I9: 8 | J9: 13 | K9: 6
A10: 7 | B10: 5 | C10: 4 | D10: 5 | E10: 3 | F10: 10 | G10: 2 | H10: 2 | I10: 5 | J10: 9 | K10: 5
A11: 8 | B11: 11 | C11: 9 | D11: 9 | E11: 6 | F11: 5 | G11: 10 | H11: 5 | I11: 10 | J11: 12 | K11: 2
A12: 9 | B12: 9 | C12: 4 | D12: 7 | E12: 2 | F12: 10 | G12: 9 | H12: 4 | I12: 3 | J12: 8 | K12: 2
A13: 10 | B13: 11 | C13: 9 | D13: 4 | E13: 3 | F13: 8 | G13: 0 | H13: 0 | I13: 9 | J13: 6 | K13: 2
A14: 11 | B14: 10 | C14: 0 | D14: 8 | E14: 0 | F14: 9 | G14: 12 | H14: 9 | I14: 1 | J14: 13 | K14: 7
A15: 12 | B15: 2 | C15: 3 | D15: 9 | E15: 6 | F15: 13 | G15: 3 | H15: 9 | I15: 5 | J15: 7 | K15: 5
A16: 13 | B16: 5 | C16: 1 | D16: 9 | E16: 6 | F16: 14 | G16: 8 | H16: 3 | I16: 1 | J16: 8 | K16: 8
A17: 14 | B17: 7 | C17: 6 | D17: 3 | E17: 2 | F17: 15 | G17: 9 | H17: 0 | I17: 7 | J17: 2 | K17: 3
A18: 15 | B18: 3 | C18: 4 | D18: 4 | E18: 6 | F18: 13 | G18: 8 | H18: 1 | I18: 2 | J18: 13 | K18: 3
A19: 16 | B19: 6 | C19: 7 | D19: 2 | E19: 6 | F19: 9 | G19: 3 | H19: 3 | I19: 10 | J19: 10 | K19: 6
A20: 17 | B20: 2 | C20: 5 | D20: 9 | E20: 3 | F20: 10 | G20: 0 | H20: 5 | I20: 5 | J20: 9 | K20: 7
A21: 18 | B21: 2 | C21: 1 | D21: 4 | E21: 5 | F21: 7 | G21: 12 | H21: 10 | I21: 9 | J21: 6 | K21: 4
A22: 19 | B22: 13 | C22: 6 | D22: 5 | E22: 6 | F22: 6 | G22: 12 | H22: 1 | I22: 0 | J22: 7 | K22: 8
A23: 20 | B23: 4 | C23: 5 | D23: 7 | E23: 2 | F23: 8 | G23: 3 | H23: 0 | I23: 9 | J23: 8 | K23: 5
A24: 21 | B24: 14 | C24: 0 | D24: 3 | E24: 2 | F24: 12 | G24: 10 | H24: 7 | I24: 7 | J24: 4 | K24: 8
A25: 22 | B25: 4 | C25: 9 | D25: 4 | E25: 4 | F25: 12 | G25: 5 | H25: 10 | I25: 4 | J25: 7 | K25: 2
A26: 23 | B26: 13 | C26: 4 | D26: 8 | E26: 0 | F26: 7 | G26: 1 | H26: 0 | I26: 9 | J26: 12 | K26: 5
A27: 24 | B27: 5 | C27: 1 | D27: 2 | E27: 6 | F27: 6 | G27: 4 | H27: 7 | I27: 4 | J27: 13 | K27: 5
A28: 25 | B28: 10 | C28: 0 | D28: 2 | E28: 2 | F28: 7 | G28: 1 | H28: 6 | I28: 7 | J28: 4 | K28: 2
A29: 26 | B29: 11 | C29: 9 | D29: 3 | E29: 0 | F29: 13 | G29: 2 | H29: 5 | I29: 6 | J29: 2 | K29: 3
A30: 27 | B30: 14 | C30: 9 | D30: 9 | E30: 3 | F30: 11 | G30: 10 | H30: 0 | I30: 4 | J30: 13 | K30: 2
A31: 28 | B31: 12 | C31: 9 | D31: 3 | E31: 2 | F31: 12 | G31: 9 | H31: 0 | I31: 7 | J31: 13 | K31: 2
A32: 29 | B32: 14 | C32: 1 | D32: 3 | E32: 0 | F32: 12 | G32: 7 | H32: 0 | I32: 2 | J32: 7 | K32: 8
A33: 30 | B33: 10 | C33: 1 | D33: 8 | E33: 1 | F33: 14 | G33: 5 | H33: 7 | I33: 3 | J33: 2 | K33: 2
A35: Max | B35: =MAX(B4:B33) -> 14 | C35: =MAX(C4:C33) -> 9 | D35: 10 | E35: 6 | F35: 16 | G35: 12 | H35: 10 | I35: 10 | J35: 13 | K35: 8
A36: Min | B36: =MIN(B4:B33) -> 2 | C36: =MIN(C4:C33) -> 0 | D36: 2 | E36: 0 | F36: 4 | G36: 0 | H36: 0 | I36: 0 | J36: 2 | K36: 2

Sheet Simulation (2)
A1: Simulation based on max and min from "Orders for a sample 30-Day Period"
B2: Customer#
A3: Day | B3: 1234 | C3: 3093 | D3: 1780 | E3: 2121 | F3: 4537 | G3: 1141 | H3: 5292 | I3: 1330 | J3: 3390 | K3: 8540
A4: =ROW()-ROWS($A$1:$A$3) -> 1 | B4: =ROUND(B$107+RAND()*(B$106-B$107),0) -> 4 | C4: 5 | D4: 9 | E4: 4 | F4: 14 | G4: 8 | H4: 9 | I4: 4 | J4: 3 | K4: 6
A5: 2 | B5: 12 | C5: 3 | D5: 7 | E5: 3 | F5: 11 | G5: 2 | H5: 0 | I5: 4 | J5: 5 | K5: 7
A6: 3 | B6: 13 | C6: 9 | D6: 8 | E6: 2 | F6: 9 | G6: 10 | H6: 2 | I6: 6 | J6: 9 | K6: 4
A7: 4 | B7: 9 | C7: 2 | D7: 5 | E7: 2 | F7: 10 | G7: 1 | H7: 0 | I7: 5 | J7: 5 | K7: 6
A8: 5 | B8: 4 | C8: 2 | D8: 4 | E8: 1 | F8: 10 | G8: 11 | H8: 10 | I8: 4 | J8: 12 | K8: 3
A9: 6 | B9: 7 | C9: 7 | D9: 6 | E9: 5 | F9: 5 | G9: 8 | H9: 9 | I9: 7 | J9: 3 | K9: 8
A10: 7 | B10: 5 | C10: 7 | D10: 9 | E10: 3 | F10: 15 | G10: 3 | H10: 0 | I10: 5 | J10: 5 | K10: 4
A11: 8 | B11: 6 | C11: 3 | D11: 8 | E11: 3 | F11: 5 | G11: 4 | H11: 7 | I11: 3 | J11: 10 | K11: 8
A12: 9 | B12: 8 | C12: 3 | D12: 7 | E12: 0 | F12: 5 | G12: 10 | H12: 7 | I12: 6 | J12: 10 | K12: 6
A13: 10 | B13: 8 | C13: 0 | D13: 9 | E13: 6 | F13: 9 | G13: 12 | H13: 10 | I13: 6 | J13: 4 | K13: 4
A14: 11 | B14: 11 | C14: 6 | D14: 6 | E14: 2 | F14: 15 | G14: 10 | H14: 4 | I14: 1 | J14: 3 | K14: 8
A15: 12 | B15: 8 | C15: 8 | D15: 9 | E15: 3 | F15: 9 | G15: 6 | H15: 7 | I15: 10 | J15: 12 | K15: 7
A16: 13 | B16: 11 | C16: 0 | D16: 8 | E16: 4 | F16: 4 | G16: 7 | H16: 2 | I16: 5 | J16: 7 | K16: 5
A17: 14 | B17: 4 | C17: 2 | D17: 10 | E17: 0 | F17: 12 | G17: 5 | H17: 3 | I17: 6 | J17: 7 | K17: 5
A18: 15 | B18: 3 | C18: 7 | D18: 4 | E18: 1 | F18: 11 | G18: 8 | H18: 8 | I18: 5 | J18: 6 | K18: 3
A19: 16 | B19: 4 | C19: 3 | D19: 9 | E19: 2 | F19: 9 | G19: 2 | H19: 9 | I19: 5 | J19: 2 | K19: 6
A20: 17 | B20: =ROUND(B$107+RAND()*(B$106-B$107),0) -> 13 | C20: 4 | D20: 10 | E20: 3 | F20: 8 | G20: 8 | H20: 2 | I20: 3 | J20: 4 | K20: 4
A21: 18 | B21: 2 | C21: 3 | D21: 8 | E21: 1 | F21: 5 | G21: 4 | H21: 8 | I21: 7 | J21: 12 | K21: 4
A22: 19 | B22: 13 | C22: 1 | D22: 3 | E22: 1 | F22: 12 | G22: 6 | H22: 3 | I22: 2 | J22: 4 | K22: 3
A23: 20 | B23: 14 | C23: 1 | D23: 8 | E23: 2 | F23: 16 | G23: 6 | H23: 4 | I23: 6 | J23: 4 | K23: 5
A24: 21 | B24: 7 | C24: 8 | D24: 9 | E24: 2 | F24: 7 | G24: 9 | H24: 7 | I24: 6 | J24: 12 | K24: 6
A25: 22 | B25: 14 | C25: 6 | D25: 4 | E25: 2 | F25: 6 | G25: 8 | H25: 9 | I25: 10 | J25: 5 | K25: 8
A26: 23 | B26: 8 | C26: 4 | D26: 7 | E26: 5 | F26: 7 | G26: 3 | H26: 7 | I26: 6 | J26: 3 | K26: 6
A27: 24 | B27: 11 | C27: 8 | D27: 9 | E27: 1 | F27: 10 | G27: 4 | H27: 2 | I27: 5 | J27: 11 | K27: 6
A28: 25 | B28: 5 | C28: 1 | D28: 5 | E28: 3 | F28: 5 | G28: 0 | H28: 3 | I28: 8 | J28: 3 | K28: 3
A29: 26 | B29: 7 | C29: 1 | D29: 9 | E29: 3 | F29: 9 | G29: 3 | H29: 6 | I29: 7 | J29: 3 | K29: 2
A30: 27 | B30: 11 | C30: 6 | D30: 9 | E30: 2 | F30: 11 | G30: 4 | H30: 10 | I30: 9 | J30: 8 | K30: 6
A31: 28 | B31: 9 | C31: 5 | D31: 10 | E31: 2 | F31: 11 | G31: 5 | H31: 9 | I31: 4 | J31: 9 | K31: 5
A32: 29 | B32: 3 | C32: 0 | D32: 5 | E32: 4 | F32: 16 | G32: 0 | H32: 8 | I32: 7 | J32: 12 | K32: 5
A33: 30 | B33: 5 | C33: 8 | D33: 6 | E33: 5 | F33: 12 | G33: 7 | H33: 2 | I33: 9 | J33: 3 | K33: 6
A34: 31 | B34: 10 | C34: 5 | D34: 8 | E34: 3 | F34: 13 | G34: 3 | H34: 7 | I34: 10 | J34: 9 | K34: 5
A35: 32 | B35: 6 | C35: 2 | D35: 10 | E35: 5 | F35: 11 | G35: 11 | H35: 4 | I35: 5 | J35: 10 | K35: 7
A36: 33 | B36: =ROUND(B$107+RAND()*(B$106-B$107),0) -> 9 | C36: 3 | D36: 8 | E36: 2 | F36: 10 | G36: 0 | H36: 7 | I36: 4 | J36: 4 | K36: 3
A37: 34 | B37: 13 | C37: 4 | D37: 6 | E37: 6 | F37: 13 | G37: 4 | H37: 3 | I37: 4 | J37: 4 | K37: 5
A38: 35 | B38: 11 | C38: 1 | D38: 7 | E38: 3 | F38: 14 | G38: 5 | H38: 6 | I38: 6 | J38: 7 | K38: 4
A39: 36 | B39: 11 | C39: 2 | D39: 3 | E39: 1 | F39: 7 | G39: 3 | H39: 7 | I39: 6 | J39: 4 | K39: 6
A40: 37 | B40: 6 | C40: 6 | D40: 7 | E40: 4 | F40: 9 | G40: 3 | H40: 3 | I40: 8 | J40: 5 | K40: 2
A41: 38 | B41: 8 | C41: 8 | D41: 7 | E41: 2 | F41: 7 | G41: 1 | H41: 9 | I41: 3 | J41: 6 | K41: 2
A42: 39 | B42: 10 | C42: 0 | D42: 7 | E42: 6 | F42: 14 | G42: 0 | H42: 2 | I42: 4 | J42: 11 | K42: 3
A43: 40 | B43: 8 | C43: 6 | D43: 9 | E43: 2 | F43: 9 | G43: 4 | H43: 4 | I43: 1 | J43: 12 | K43: 3
A44: 41 | B44: 13 | C44: 9 | D44: 7 | E44: 5 | F44: 8 | G44: 10 | H44: 5 | I44: 9 | J44: 10 | K44: 6
A45: 42 | B45: 11 | C45: 4 | D45: 8 | E45: 5 | F45: 12 | G45: 12 | H45: 7 | I45: 5 | J45: 13 | K45: 7
A46: 43 | B46: 8 | C46: 6 | D46: 3 | E46: 3 | F46: 5 | G46: 2 | H46: 4 | I46: 7 | J46: 11 | K46: 7
A47: 44 | B47: 6 | C47: 4 | D47: 10 | E47: 4 | F47: 10 | G47: 2 | H47: 4 | I47: 3 | J47: 7 | K47: 3
A48: 45 | B48: 12 | C48: 8 | D48: 5 | E48: 6 | F48: 8 | G48: 12 | H48: 2 | I48: 10 | J48: 5 | K48: 5
A49: 46 | B49: 5 | C49: 2 | D49: 3 | E49: 4 | F49: 8 | G49: 10 | H49: 8 | I49: 3 | J49: 8 | K49: 8
A50: 47 | B50: 2 | C50: 2 | D50: 9 | E50: 6 | F50: 7 | G50: 8 | H50: 9 | I50: 3 | J50: 9 | K50: 7
A51: 48 | B51: 6 | C51: 7 | D51: 9 | E51: 2 | F51: 7 | G51: 1 | H51: 2 | I51: 8 | J51: 8 | K51: 3
A52: 49 | B52: =ROUND(B$107+RAND()*(B$106-B$107),0) -> 10 | C52: 7 | D52: 9 | E52: 3 | F52: 15 | G52: 1 | H52: 10 | I52: 5 | J52: 7 | K52: 4
A53: 50 | B53: 7 | C53: 5 | D53: 8 | E53: 2 | F53: 14 | G53: 10 | H53: 1 | I53: 5 | J53: 3 | K53: 3
A54: 51 | B54: 6 | C54: 7 | D54: 8 | E54: 4 | F54: 14 | G54: 4 | H54: 1 | I54: 8 | J54: 6 | K54: 7
A55: 52 | B55: 5 | C55: 6 | D55: 7 | E55: 6 | F55: 11 | G55: 4 | H55: 6 | I55: 7 | J55: 7 | K55: 5
A56: 53 | B56: 14 | C56: 3 | D56: 9 | E56: 3 | F56: 11 | G56: 6 | H56: 7 | I56: 9 | J56: 3 | K56: 5
A57: 54 | B57: 2 | C57: 1 | D57: 5 | E57: 5 | F57: 14 | G57: 8 | H57: 6 | I57: 9 | J57: 13 | K57: 2
A58: 55 | B58: 4 | C58: 6 | D58: 2 | E58: 1 | F58: 12 | G58: 7 | H58: 2 | I58: 8 | J58: 10 | K58: 6
A59: 56 | B59: 11 | C59: 1 | D59: 7 | E59: 1 | F59: 6 | G59: 1 | H59: 4 | I59: 9 | J59: 7 | K59: 3
A60: 57 | B60: 12 | C60: 7 | D60: 6 | E60: 4 | F60: 15 | G60: 0 | H60: 10 | I60: 2 | J60: 13 | K60: 3
A61: 58 | B61: 12 | C61: 5 | D61: 5 | E61: 2 | F61: 9 | G61: 7 | H61: 5 | I61: 3 | J61: 5 | K61: 4
A62: 59 | B62: 6 | C62: 1 | D62: 3 | E62: 5 | F62: 6 | G62: 0 | H62: 5 | I62: 5 | J62: 2 | K62: 4
A63: 60 | B63: 13 | C63: 8 | D63: 7 | E63: 5 | F63: 14 | G63: 4 | H63: 7 | I63: 2 | J63: 3 | K63: 7
A64: 61 | B64: 4 | C64: 7 | D64: 4 | E64: 1 | F64: 7 | G64: 0 | H64: 5 | I64: 9 | J64: 13 | K64: 2
A65: 62 | B65: 9 | C65: 3 | D65: 7 | E65: 0 | F65: 13 | G65: 11 | H65: 5 | I65: 4 | J65: 10 | K65: 3
A66: 63 | B66: 11 | C66: 8 | D66: 4 | E66: 4 | F66: 10 | G66: 8 | H66: 8 | I66: 4 | J66: 8 | K66: 3
A67: 64 | B67: 6 | C67: 7 | D67: 4 | E67: 3 | F67: 10 | G67: 0 | H67: 7 | I67: 2 | J67: 10 | K67: 2
A68: =ROW()-ROWS($A$1:$A$3) -> 65 | B68: =ROUND(B$107+RAND()*(B$106-B$107),0) -> 12 | C68: 1 | D68: 9 | E68: 1 | F68: 10 | G68: 2 | H68: 5 | I68: 9 | J68: 5 | K68: 6
A69: 66 | B69: 11 | C69: 7 | D69: 3 | E69: 3 | F69: 5 | G69: 4 | H69: 1 | I69: 9 | J69: 5 | K69: 4
A70: 67 | B70: 4 | C70: 6 | D70: 2 | E70: 2 | F70: 10 | G70: 8 | H70: 6 | I70: 0 | J70: 10 | K70: 7
A71: 68 | B71: 12 | C71: 1 | D71: 4 | E71: 5 | F71: 6 | G71: 7 | H71: 2 | I71: 2 | J71: 12 | K71: 3
A72: 69 | B72: 11 | C72: 0 | D72: 3 | E72: 6 | F72: 7 | G72: 11 | H72: 4 | I72: 6 | J72: 6 | K72: 6
A73: 70 | B73: 8 | C73: 7 | D73: 3 | E73: 4 | F73: 13 | G73: 7 | H73: 3 | I73: 3 | J73: 8 | K73: 4
A74: 71 | B74: 11 | C74: 5 | D74: 2 | E74: 4 | F74: 4 | G74: 3 | H74: 8 | I74: 7 | J74: 7 | K74: 3
A75: 72 | B75: 8 | C75: 7 | D75: 2 | E75: 4 | F75: 13 | G75: 7 | H75: 3 | I75: 10 | J75: 8 | K75: 6
A76: 73 | B76: 13 | C76: 7 | D76: 6 | E76: 3 | F76: 5 | G76: 7 | H76: 9 | I76: 2 | J76: 8 | K76: 5
A77: 74 | B77: 14 | C77: 1 | D77: 3 | E77: 3 | F77: 5 | G77: 12 | H77: 3 | I77: 9 | J77: 11 | K77: 6
A78: 75 | B78: 2 | C78: 5 | D78: 9 | E78: 2 | F78: 16 | G78: 1 | H78: 4 | I78: 4 | J78: 2 | K78: 6
A79: 76 | B79: 4 | C79: 0 | D79: 7 | E79: 3 | F79: 15 | G79: 8 | H79: 3 | I79: 8 | J79: 11 | K79: 7
A80: 77 | B80: 3 | C80: 4 | D80: 7 | E80: 2 | F80: 5 | G80: 2 | H80: 5 | I80: 9 | J80: 4 | K80: 6
A81: 78 | B81: 5 | C81: 2 | D81: 4 | E81: 3 | F81: 11 | G81: 8 | H81: 8 | I81: 10 | J81: 11 | K81: 5
A82: 79 | B82: 3 | C82: 6 | D82: 9 | E82: 3 | F82: 5 | G82: 10 | H82: 4 | I82: 9 | J82: 6 | K82: 7
A83: 80 | B83: 3 | C83: 0 | D83: 9 | E83: 6 | F83: 13 | G83: 10 | H83: 0 | I83: 3 | J83: 7 | K83: 3
A84: 81 | B84: =ROUND(B$107+RAND()*(B$106-B$107),0) -> 11 | C84: 0 | D84: 7 | E84: 4 | F84: 8 | G84: 7 | H84: 9 | I84: 6 | J84: 9 | K84: 3
A85: 82 | B85: 13 | C85: 6 | D85: 8 | E85: 4 | F85: 16 | G85: 2 | H85: 5 | I85: 0 | J85: 10 | K85: 4
A86: 83 | B86: 11 | C86: 3 | D86: 8 | E86: 3 | F86: 13 | G86: 0 | H86: 10 | I86: 9 | J86: 13 | K86: 7
A87: 84 | B87: 6 | C87: 9 | D87: 5 | E87: 6 | F87: 12 | G87: 6 | H87: 3 | I87: 8 | J87: 6 | K87: 8
A88: 85 | B88: 6 | C88: 3 | D88: 5 | E88: 6 | F88: 5 | G88: 6 | H88: 6 | I88: 8 | J88: 3 | K88: 7
A89: 86 | B89: 8 | C89: 2 | D89: 4 | E89: 2 | F89: 6 | G89: 12 | H89: 8 | I89: 3 | J89: 3 | K89: 7
A90: 87 | B90: 13 | C90: 1 | D90: 5 | E90: 3 | F90: 11 | G90: 3 | H90: 6 | I90: 1 | J90: 9 | K90: 4
A91: 88 | B91: 9 | C91: 7 | D91: 8 | E91: 4 | F91: 11 | G91: 6 | H91: 7 | I91: 6 | J91: 5 | K91: 5
A92: 89 | B92: 13 | C92: 4 | D92: 8 | E92: 3 | F92: 16 | G92: 2 | H92: 8 | I92: 2 | J92: 3 | K92: 5
A93: 90 | B93: 8 | C93: 5 | D93: 7 | E93: 4 | F93: 10 | G93: 7 | H93: 9 | I93: 7 | J93: 12 | K93: 7
A94: 91 | B94: 5 | C94: 2 | D94: 9 | E94: 4 | F94: 7 | G94: 10 | H94: 4 | I94: 7 | J94: 10 | K94: 5
A95: 92 | B95: 5 | C95: 4 | D95: 9 | E95: 3 | F95: 7 | G95: 5 | H95: 5 | I95: 7 | J95: 7 | K95: 4
A96: 93 | B96: 11 | C96: 6 | D96: 3 | E96: 4 | F96: 8 | G96: 7 | H96: 5 | I96: 7 | J96: 3 | K96: 8
A97: 94 | B97: 4 | C97: 5 | D97: 4 | E97: 0 | F97: 11 | G97: 12 | H97: 8 | I97: 8 | J97: 6 | K97: 6
A98: 95 | B98: 8 | C98: 2 | D98: 6 | E98: 0 | F98: 6 | G98: 10 | H98: 6 | I98: 5 | J98: 11 | K98: 3
A99: 96 | B99: 14 | C99: 6 | D99: 5 | E99: 1 | F99: 15 | G99: 9 | H99: 7 | I99: 6 | J99: 7 | K99: 2
A100: 97 | B100: =ROUND(B$107+RAND()*(B$106-B$107),0) -> 7 | C100: 8 | D100: 7 | E100: 5 | F100: 15 | G100: 6 | H100: 8 | I100: 0 | J100: 8 | K100: 6
A101: 98 | B101: 7 | C101: 2 | D101: 5 | E101: 4 | F101: 9 | G101: 7 | H101: 10 | I101: 5 | J101: 6 | K101: 7
A102: 99 | B102: 4 | C102: 2 | D102: 7 | E102: 1 | F102: 8 | G102: 6 | H102: 5 | I102: 6 | J102: 2 | K102: 2
A103: 100 | B103: 5 | C103: 9 | D103: 5 | E103: 4 | F103: 14 | G103: 4 | H103: 3 | I103: 3 | J103: 5 | K103: 8
A106: Max | B106: =BearingData!B35 -> 14 | C106: =BearingData!C35 -> 9 | D106: =BearingData!D35 -> 10 | E106: =BearingData!E35 -> 6 | F106: =BearingData!F35 -> 16 | G106: =BearingData!G35 -> 12 | H106: =BearingData!H35 -> 10 | I106: =BearingData!I35 -> 10 | J106: =BearingData!J35 -> 13 | K106: =BearingData!K35 -> 8
A107: Min | B107: =BearingData!B36 -> 2 | C107: =BearingData!C36 -> 0 | D107: =BearingData!D36 -> 2 | E107: =BearingData!E36 -> 0 | F107: =BearingData!F36 -> 4 | G107: =BearingData!G36 -> 0 | H107: =BearingData!H36 -> 0 | I107: =BearingData!I36 -> 0 | J107: =BearingData!J36 -> 2 | K107: =BearingData!K36 -> 2

Sheet Simulation Data 1
A1: (Values Not Randomizable numbers) Simulation based on max and min from "Orders for a sample 30-Day Period"
B2: Customer#
A3: Day | B3: 1234 | C3: 3093 | D3: 1780 | E3: 2121 | F3: 4537 | G3: 1141 | H3: 5292 | I3: 1330 | J3: 3390 | K3: 8540 | L3: Totals | M3: Mean | N3: Median | O3: Mode | P3: StDev | Q3: Skew | R3: Rank
A4: 1 | B4: 11 | C4: 6 | D4: 6 | E4: 2 | F4: 4 | G4: 0 | H4: 1 | I4: 2 | J4: 12 | K4: 3 | L4: =SUM(B4:K4) -> 47 | M4: =AVERAGE(B4:K4) -> 4.7 | N4: =MEDIAN(B4:K4) -> 3.5 | O4: =MODE(B4:K4) -> 6 | P4: =STDEV(B4:K4) -> 4.083843506 | Q4: =SKEW(B4:K4) -> 0.906139761 | R4: =RANK(L4,L$4:L$103,1) -> 10
A5: 2 | B5: 3 | C5: 2 | D5: 6 | E5: 2 | F5: 5 | G5: 2 | H5: 5 | I5: 4 | J5: 5 | K5: 5 | L5: =SUM(B5:K5) -> 39 | M5: 3.9 | N5: 4.5 | O5: 5 | P5: 1.523883927 | Q5: -0.2637431031 | R5: 3
A6: 3 | B6: 12 | C6: 3 | D6: 6 | E6: 5 | F6: 5 | G6: 6 | H6: 2 | I6: 3 | J6: 13 | K6: 7 | L6: =SUM(B6:K6) -> 62 | M6: 6.2 | N6: 5.5 | O6: 3 | P6: 3.675746334 | Q6: 1.02624164 | R6: 59
A7: 4 | B7: 13 | C7: 5 | D7: 8 | E7: 0 | F7: 11 | G7: 1 | H7: 2 | I7: 0 | J7: 5 | K7: 4 | L7: 49 | M7: 4.9 | N7: 4.5 | O7: 5 | P7: 4.53259798 | Q7: 0.6987421728 | R7: 15
A8: 5 | B8: 10 | C8: 7 | D8: 2 | E8: 1 | F8: 4 | G8: 10 | H8: 6 | I8: 2 | J8: 5 | K8: 7 | L8: 54 | M8: 5.4 | N8: 5.5 | O8: 10 | P8: 3.204163958 | Q8: 0.1540203623 | R8: 29
A9: 6 | B9: 3 | C9: 5 | D9: 7 | E9: 3 | F9: 11 | G9: 3 | H9: 4 | I9: 4 | J9: 6 | K9: 8 | L9: 54 | M9: 5.4 | N9: 4.5 | O9: 3 | P9: 2.633122354 | Q9: 1.144809345 | R9: 29
A10: 7 | B10: 9 | C10: 4 | D10: 8 | E10: 2 | F10: 10 | G10: 9 | H10: 9 | I10: 9 | J10: 12 | K10: 6 | L10: 78 | M10: 7.8 | N10: 9 | O10: 9 | P10: 2.97396107 | Q10: -0.8668201724 | R10: 98
A11: 8 | B11: 6 | C11: 3 | D11: 6 | E11: 0 | F11: 14 | G11: 5 | H11: 4 | I11: 4 | J11: 6 | K11: 6 | L11: =SUM(B11:K11) -> 54 | M11: 5.4 | N11: 5.5 | O11: 6 | P11: 3.565264522 | Q11: 1.410021016 | R11: 29
A12: 9 | B12: 3 | C12: 3 | D12: 2 | E12: 4 | F12: 8 | G12: 1 | H12: 6 | I12: 10 | J12: 10 | K12: 7 | L12: 54 | M12: 5.4 | N12: 5 | O12: 3 | P12: 3.272783389 | Q12: 0.2443768609 | R12: 29
A13: 10 | B13: 12 | C13: 5 | D13: 9 | E13: 4 | F13: 10 | G13: 9 | H13: 4 | I13: 10 | J13: 8 | K13: 8 | L13: 79 | M13: 7.9 | N13: 8.5 | O13: 9 | P13: 2.726414006 | Q13: -0.3626702458 | R13: 99
A14: 11 | B14: 13 | C14: 1 | D14: 5 | E14: 1 | F14: 12 | G14: 11 | H14: 3 | I14: 1 | J14: 7 | K14: 5 | L14: 59 | M14: 5.9 | N14: 5 | O14: 1 | P14: 4.677368681 | Q14: 0.4615766018 | R14: 45
A15: 12 | B15: 11 | C15: 2 | D15: 5 | E15: 2 | F15: 11 | G15: 2 | H15: 7 | I15: 2 | J15: 6 | K15: 8 | L15: 56 | M15: 5.6 | N15: 5.5 | O15: 2 | P15: 3.627058802 | Q15: 0.4212425838 | R15: 35
A16: 13 | B16: 14 | C16: 6 | D16: 8 | E16: 5 | F16: 7 | G16: 10 | H16: 6 | I16: 8 | J16: 7 | K16: 3 | L16: 74 | M16: 7.4 | N16: 7 | O16: 6 | P16: 2.988868236 | Q16: 1.044922051 | R16: 93
A17: 14 | B17: 6 | C17: 5 | D17: 5 | E17: 2 | F17: 9 | G17: 5 | H17: 9 | I17: 2 | J17: 9 | K17: 6 | L17: 58 | M17: 5.8 | N17: 5.5 | O17: 5 | P17: 2.616188916 | Q17: -0.1005229444 | R17: 43
A18: 15 | B18: 13 | C18: 3 | D18: 8 | E18: 1 | F18: 5 | G18: 10 | H18: 2 | I18: 5 | J18: 11 | K18: 7 | L18: 65 | M18: 6.5 | N18: 6 | O18: 5 | P18: 4.006938427 | Q18: 0.2266829189 | R18: 65
A19: 16 | B19: 14 | C19: 5 | D19: 4 | E19: 3 | F19: 12 | G19: 11 | H19: 0 | I19: 6 | J19: 5 | K19: 5 | L19: 65 | M19: 6.5 | N19: 5 | O19: 5 | P19: 4.403281605 | Q19: 0.5466097804 | R19: 65
A20: 17 | B20: 11 | C20: 3 | D20: 3 | E20: 4 | F20: 14 | G20: 6 | H20: 4 | I20: 8 | J20: 5 | K20: 5 | L20: 63 | M20: 6.3 | N20: 5 | O20: 3 | P20: 3.653004851 | Q20: 1.323833453 | R20: 61
A21: 18 | B21: 9 | C21: 9 | D21: 4 | E21: 4 | F21: 9 | G21: 11 | H21: 2 | I21: 5 | J21: 6 | K21: 7 | L21: 66 | M21: 6.6 | N21: 6.5 | O21: 9 | P21: 2.875181154 | Q21: -0.05890231942 | R21: 73
A22: 19 | B22: 12 | C22: 5 | D22: 5 | E22: 1 | F22: 5 | G22: 10 | H22: 8 | I22: 3 | J22: 4 | K22: 4 | L22: 57 | M22: 5.7 | N22: 5 | O22: 5 | P22: 3.334999584 | Q22: 0.7764350563 | R22: 39
A23: 20 | B23: 4 | C23: 0 | D23: 5 | E23: 3 | F23: 4 | G23: 8 | H23: 4 | I23: 1 | J23: 5 | K23: 8 | L23: 42 | M23: 4.2 | N23: 4 | O23: 4 | P23: 2.573367875 | Q23: 0.01760417306 | R23: 5
A24: 21 | B24: 11 | C24: 0 | D24: 5 | E24: 5 | F24: 9 | G24: 4 | H24: 3 | I24: 8 | J24: 5 | K24: 7 | L24: 57 | M24: 5.7 | N24: 5 | O24: 5 | P24: 3.164033993 | Q24: -0.05103840121 | R24: 39
A25: 22 | B25: 4 | C25: 3 | D25: 10 | E25: 1 | F25: 7 | G25: 4 | H25: 2 | I25: 5 | J25: 6 | K25: 7 | L25: 49 | M25: 4.9 | N25: 4.5 | O25: 4 | P25: 2.685351208 | Q25: 0.433786473 | R25: 15
A26: 23 | B26: 7 | C26: 0 | D26: 3 | E26: 4 | F26: 4 | G26: 7 | H26: 7 | I26: 7 | J26: 3 | K26: 5 | L26: 47 | M26: 4.7 | N26: 4.5 | O26: 7 | P26: 2.359378449 | Q26: -0.6941338942 | R26: 10
A27: 24 | B27: 12 | C27: 7 | D27: 4 | E27: 1 | F27: 11 | G27: 11 | H27: 5 | I27: 3 | J27: 3 | K27: 3 | L27: 60 | M27: 6 | N27: 4.5 | O27: 3 | P27: 4 | Q27: 0.546875 | R27: 50
A28: 25 | B28: 9 | C28: 2 | D28: 2 | E28: 2 | F28: 13 | G28: 5 | H28: 2 | I28: 5 | J28: 11 | K28: 2 | L28: 53 | M28: 5.3 | N28: 3.5 | O28: 2 | P28: 4.217687623 | Q28: 0.948979345 | R28: 26
A29: 26 | B29: 2 | C29: 4 | D29: 5 | E29: 2 | F29: 14 | G29: 7 | H29: 9 | I29: 6 | J29: 5 | K29: 5 | L29: 59 | M29: 5.9 | N29: 5 | O29: 5 | P29: 3.541813722 | Q29: 1.359439203 | R29: 45
A30: 27 | B30: 9 | C30: 9 | D30: 7 | E30: 5 | F30: 9 | G30: 2 | H30: 8 | I30: 1 | J30: 8 | K30: 7 | L30: 65 | M30: 6.5 | N30: 7.5 | O30: 9 | P30: 2.915475947 | Q30: -1.160137488 | R30: 65
A31: 28 | B31: 3 | C31: 2 | D31: 10 | E31: 4 | F31: 12 | G31: 8 | H31: 6 | I31: 2 | J31: 12 | K31: 6 | L31: 65 | M31: 6.5 | N31: 6 | O31: 2 | P31: 3.865804502 | Q31: 0.3317622194 | R31: 65
A32: 29 | B32: 2 | C32: 6 | D32: 8 | E32: 5 | F32: 13 | G32: 10 | H32: 1 | I32: 5 | J32: 5 | K32: 7 | L32: 62 | M32: 6.2 | N32: 5.5 | O32: 5 | P32: 3.552776692 | Q32: 0.4824137849 | R32: 59
A33: 30 | B33: 4 | C33: 6 | D33: 4 | E33: 0 | F33: 15 | G33: 3 | H33: 7 | I33: 1 | J33: 13 | K33: 6 | L33: 59 | M33: 5.9 | N33: 5 | O33: 4 | P33: 4.817791103 | Q33: 0.933590885 | R33: 45
A34: 31 | B34: 13 | C34: 5 | D34: 2 | E34: 4 | F34: 11 | G34: 11 | H34: 8 | I34: 9 | J34: 10 | K34: 2 | L34: 75 | M34: 7.5 | N34: 8.5 | O34: 2 | P34: 3.979112129 | Q34: -0.2645393105 | R34: 94
A35: 32 | B35: 7 | C35: 4 | D35: 2 | E35: 4 | F35: 9 | G35: 2 | H35: 8 | I35: 7 | J35: 4 | K35: 3 | L35: 50 | M35: 5 | N35: 4 | O35: 4 | P35: 2.538591035 | Q35: 0.3565648823 | R35: 17
A36: 33 | B36: 9 | C36: 1 | D36: 7 | E36: 4 | F36: 10 | G36: 3 | H36: 9 | I36: 6 | J36: 13 | K36: 5 | L36: 67 | M36: 6.7 | N36: 6.5 | O36: 9 | P36: 3.622460797 | Q36: 0.1448063874 | R36: 75
A37: 34 | B37: 6 | C37: 5 | D37: 7 | E37: 1 | F37: 8 | G37: 11 | H37: 2 | I37: 4 | J37: 6 | K37: 6 | L37: 56 | M37: 5.6 | N37: 6 | O37: 6 | P37: 2.875181154 | Q37: 0.1514631071 | R37: 35
A38: 35 | B38: 8 | C38: 3 | D38: 8 | E38: 4 | F38: 8 | G38: 7 | H38: 6 | I38: 3 | J38: 10 | K38: 8 | L38: 65 | M38: 6.5 | N38: 7.5 | O38: 8 | P38: 2.415229458 | Q38: -0.4436135739 | R38: 65
A39: 36 | B39: 7 | C39: 5 | D39: 6 | E39: 6 | F39: 15 | G39: 8 | H39: 2 | I39: 5 | J39: 5 | K39: 2 | L39: 61 | M39: 6.1 | N39: 5.5 | O39: 5 | P39: 3.665151202 | Q39: 1.609959342 | R39: 53
A40: 37 | B40: 6 | C40: 4 | D40: 3 | E40: 1 | F40: 11 | G40: 3 | H40: 9 | I40: 7 | J40: 11 | K40: 4 | L40: 59 | M40: 5.9 | N40: 5 | O40: 4 | P40: 3.510302298 | Q40: 0.3733696147 | R40: 45
A41: 38 | B41: 11 | C41: 8 | D41: 4 | E41: 2 | F41: 14 | G41: 8 | H41: 3 | I41: 6 | J41: 7 | K41: 6 | L41: 69 | M41: 6.9 | N41: 6.5 | O41: 8 | P41: 3.63470922 | Q41: 0.6556494327 | R41: 81
A42: 39 | B42: 5 | C42: 8 | D42: 3 | E42: 4 | F42: 9 | G42: 7 | H42: 0 | I42: 0 | J42: 7 | K42: 2 | L42: 45 | M42: 4.5 | N42: 4.5 | O42: 7 | P42: 3.240370349 | Q42: -0.1469555714 | R42: 6
A43: 40 | B43: 6 | C43: 5 | D43: 3 | E43: 4 | F43: 7 | G43: 7 | H43: 2 | I43: 2 | J43: 11 | K43: 8 | L43: 55 | M43: 5.5 | N43: 5.5 | O43: 7 | P43: 2.87711275 | Q43: 0.4898646996 | R43: 33
A44: 41 | B44: 11 | C44: 3 | D44: 9 | E44: 5 | F44: 11 | G44: 11 | H44: 8 | I44: 6 | J44: 3 | K44: 8 | L44: 75 | M44: 7.5 | N44: 8 | O44: 11 | P44: 3.13581462 | Q44: -0.3107888664 | R44: 94
A45: 42 | B45: 6 | C45: 6 | D45: 5 | E45: 1 | F45: 15 | G45: 9 | H45: 8 | I45: 8 | J45: 4 | K45: 7 | L45: 69 | M45: 6.9 | N45: 6.5 | O45: 6 | P45: 3.665151202 | Q45: 0.8611725327 | R45: 81
A46: 43 | B46: 12 | C46: 0 | D46: 6 | E46: 1 | F46: 9 | G46: 4 | H46: 4 | I46: 6 | J46: 5 | K46: 4 | L46: 51 | M46: 5.1 | N46: 4.5 | O46: 4 | P46: 3.510302298 | Q46: 0.5899162849 | R46: 21
A47: 44 | B47: 7 | C47: 6 | D47: 8 | E47: 2 | F47: 8 | G47: 1 | H47: 8 | I47: 8 | J47: 7 | K47: 5 | L47: 60 | M47: 6 | N47: 7 | O47: 8 | P47: 2.581988897 | Q47: -1.258719588 | R47: 50
A48: 45 | B48: 11 | C48: 1 | D48: 6 | E48: 2 | F48: 14 | G48: 3 | H48: 8 | I48: 6 | J48: 2 | K48: 5 | L48: =SUM(B48:K48) -> 58 | M48: 5.8 | N48: 5.5 | O48: 6 | P48: 4.211096453 | Q48: 0.8552413368 | R48: 43
A49: 46 | B49: 13 | C49: 7 | D49: 5 | E49: 3 | F49: 13 | G49: 10 | H49: 10 | I49: 2 | J49: 6 | K49: 6 | L49: 75 | M49: 7.5 | N49: 6.5 | O49: 13 | P49: 3.865804502 | Q49: 0.2019422205 | R49: 94
A50: 47 | B50: 2 | C50: 1 | D50: 5 | E50: 4 | F50: 8 | G50: 4 | H50: 9 | I50: 4 | J50: 8 | K50: 8 | L50: 53 | M50: 5.3 | N50: 4.5 | O50: 4 | P50: 2.790858092 | Q50: -0.07897192266 | R50: 26
A51: 48 | B51: 7 | C51: 1 | D51: 3 | E51: 1 | F51: 8 | G51: 0 | H51: 5 | I51: 3 | J51: 4 | K51: 5 | L51: 37 | M51: 3.7 | N51: 3.5 | O51: 1 | P51: 2.626785107 | Q51: 0.223450529 | R51: 1
A52: 49 | B52: 4 | C52: 0 | D52: 5 | E52: 4 | F52: 4 | G52: 12 | H52: 1 | I52: 3 | J52: 9 | K52: 8 | L52: 50 | M52: 5 | N52: 4 | O52: 4 | P52: 3.681787006 | Q52: 0.6511894849 | R52: 17
A53: 50 | B53: 4 | C53: 1 | D53: 4 | E53: 6 | F53: 5 | G53: 4 | H53: 1 | I53: 8 | J53: 8 | K53: 6 | L53: 47 | M53: 4.7 | N53: 4.5 | O53: 4 | P53: 2.45175674 | Q53: -0.2454010123 | R53: 10
A54: 51 | B54: 6 | C54: 2 | D54: 8 | E54: 0 | F54: 15 | G54: 9 | H54: 2 | I54: 6 | J54: 4 | K54: 5 | L54: 57 | M54: 5.7 | N54: 5.5 | O54: 6 | P54: 4.295992965 | Q54: 0.9823219447 | R54: 39
A55: 52 | B55: 9 | C55: 5 | D55: 5 | E55: 1 | F55: 10 | G55: 3 | H55: 1 | I55: 9 | J55: 5 | K55: 3 | L55: 51 | M55: 5.1 | N55: 5 | O55: 5 | P55: 3.281259921 | Q55: 0.3141963079 | R55: 21
A56: 53 | B56: 5 | C56: 1 | D56: 6 | E56: 2 | F56: 8 | G56: 10 | H56: 8 | I56: 4 | J56: 5 | K56: 3 | L56: 52 | M56: 5.2 | N56: 5 | O56: 5 | P56: 2.859681412 | Q56: 0.2123792371 | R56: 25
A57: 54 | B57: 11 | C57: 8 | D57: 8 | E57: 4 | F57: 11 | G57: 5 | H57: 9 | I57: 7 | J57: 12 | K57: 6 | L57: 81 | M57: 8.1 | N57: 8 | O57: 11 | P57: 2.685351208 | Q57: -0.003442749785 | R57: 100
A58: 55 | B58: 8 | C58: 0 | D58: 7 | E58: 3 | F58: 13 | G58: 4 | H58: 0 | I58: 2 | J58: 6 | K58: 5 | L58: 48 | M58: 4.8 | N58: 4.5 | O58: 0 | P58: 3.966526608 | Q58: 0.7723531504 | R58: 13
A59: 56 | B59: 6 | C59: 3 | D59: 3 | E59: 2 | F59: 8 | G59: 2 | H59: 9 | I59: 5 | J59: 4 | K59: 3 | L59: 45 | M59: 4.5 | N59: 3.5 | O59: 3 | P59: 2.460803843 | Q59: 0.8947624445 | R59: 6
A60: 57 | B60: 4 | C60: 5 | D60: 3 | E60: 4 | F60: 7 | G60: 4 | H60: 9 | I60: 1 | J60: 12 | K60: 4 | L60: 53 | M60: 5.3 | N60: 4 | O60: 4 | P60: 3.198958164 | Q60: 1.085451114 | R60: 26
A61: 58 | B61: 4 | C61: 3 | D61: 3 | E61: 4 | F61: 4 | G61: 2 | H61: 4 | I61: 10 | J61: 5 | K61: 6 | L61: 45 | M61: 4.5 | N61: 4 | O61: 4 | P61: 2.223610677 | Q61: 1.856985814 | R61: 6
A62: 59 | B62: 3 | C62: 5 | D62: 4 | E62: 1 | F62: 8 | G62: 10 | H62: 3 | I62: 4 | J62: 11 | K62: 8 | L62: 57 | M62: 5.7 | N62: 4.5 | O62: 3 | P62: 3.334999584 | Q62: 0.3720417978 | R62: 39
A63: 60 | B63: 3 | C63: 2 | D63: 6 | E63: 4 | F63: 4 | G63: 2 | H63: 2 | I63: 2 | J63: 4 | K63: 8 | L63: 37 | M63: 3.7 | N63: 3.5 | O63: 2 | P63: 2.002775851 | Q63: 1.240660327 | R63: 1
A64: 61 | B64: 13 | C64: 6 | D64: 5 | E64: 5 | F64: 4 | G64: 0 | H64: 9 | I64: 9 | J64: 11 | K64: 7 | L64: 69 | M64: 6.9 | N64: 6.5 | O64: 5 | P64: 3.754996671 | Q64: -0.1388221193 | R64: 81
A65: 62 | B65: 9 | C65: 6 | D65: 7 | E65: 1 | F65: 16 | G65: 1 | H65: 7 | I65: 1 | J65: 4 | K65: 4 | L65: 56 | M65: 5.6 | N65: 5 | O65: 1 | P65: 4.623610903 | Q65: 1.221808781 | R65: 35
A66: 63 | B66: 8 | C66: 8 | D66: 6 | E66: 1 | F66: 10 | G66: 6 | H66: 1 | I66: 9 | J66: 11 | K66: 8 | L66: 68 | M66: 6.8 | N66: 8 | O66: 8 | P66: 3.425395354 | Q66: -0.9280614189 | R66: 80
A67: 64 | B67: 4 | C67: 1 | D67: 3 | E67: 3 | F67: 9 | G67: 3 | H67: 6 | I67: 9 | J67: 4 | K67: 8 | L67: 50 | M67: 5 | N67: 4 | O67: 3 | P67: 2.828427125 | Q67: 0.4051132601 | R67: 17
A68: 65 | B68: 13 | C68: 4 | D68: 3 | E68: 4 | F68: 11 | G68: 6 | H68: 7 | I68: 5 | J68: 6 | K68: 8 | L68: 67 | M68: =AVERAGE(B68:K68) -> 6.7 | N68: =MEDIAN(B68:K68) -> 6 | O68: =MODE(B68:K68) -> 4 | P68: =STDEV(B68:K68) -> 3.198958164 | Q68: =SKEW(B68:K68) -> 1.001954875 | R68: =RANK(L68,L$4:L$103,1) -> 75
A69: 66 | B69: 3 | C69: 8 | D69: 7 | E69: 2 | F69: 4 | G69: 5 | H69: 7 | I69: 7 | J69: 11 | K69: 7 | L69: 61 | M69: 6.1 | N69: 7 | O69: 7 | P69: 2.643650675 | Q69: 0.1362114114 | R69: 53
A70: 67 | B70: 6 | C70: 5 | D70: 8 | E70: 2 | F70: 14 | G70: 7 | H70: 4 | I70: 3 | J70: 12 | K70: 8 | L70: =SUM(B70:K70) -> 69 | M70: 6.9 | N70: 6.5 | O70: 8 | P70: 3.813717929 | Q70: 0.7118165883 | R70: 81
A71: 68 | B71: 10 | C71: 2 | D71: 8 | E71: 6 | F71: 13 | G71: 6 | H71: 1 | I71: 1 | J71: 6 | K71: 8 | L71: 61 | M71: 6.1 | N71: 6 | O71: 6 | P71: 3.928528138 | Q71: 0.1542133624 | R71: 53
A72: 69 | B72: 13 | C72: 5 | D72: 10 | E72: 1 | F72: 8 | G72: 10 | H72: 4 | I72: 5 | J72: 13 | K72: 3 | L72: =SUM(B72:K72) -> 72 | M72: 7.2 | N72: 6.5 | O72: 13 | P72: 4.211096453 | Q72: 0.1267685489 | R72: 89
A73: 70 | B73: 8 | C73: 7 | D73: 10 | E73: 6 | F73: 7 | G73: 12 | H73: 7 | I73: 4 | J73: 2 | K73: 4 | L73: 67 | M73: 6.7 | N73: 7 | O73: 7 | P73: 2.945806813 | Q73: 0.2366696606 | R73: 75
A74: 71 | B74: 4 | C74: 4 | D74: 8 | E74: 1 | F74: 11 | G74: 5 | H74: 6 | I74: 5 | J74: 5 | K74: 2 | L74: 51 | M74: 5.1 | N74: 5 | O74: 5 | P74: 2.846049894 | Q74: 0.7779174125 | R74: 21
A75: 72 | B75: 3 | C75: 8 | D75: 8 | E75: 3 | F75: 15 | G75: 1 | H75: 4 | I75: 1 | J75: 13 | K75: 5 | L75: 61 | M75: 6.1 | N75: 4.5 | O75: 3 | P75: 4.840798832 | Q75: 0.8714160772 | R75: 53
A76: 73 | B76: 4 | C76: 3 | D76: 7 | E76: 6 | F76: 8 | G76: 1 | H76: 7 | I76: 5 | J76: 8 | K76: 6 | L76: 55 | M76: 5.5 | N76: 6 | O76: 7 | P76: 2.273030283 | Q76: -0.8514993775 | R76: 33
A77: 74 | B77: 9 | C77: 0 | D77: 6 | E77: 2 | F77: 14 | G77: 12 | H77: 2 | I77: 7 | J77: 4 | K77: 5 | L77: 61 | M77: 6.1 | N77: 5.5 | O77: 2 | P77: 4.508017549 | Q77: 0.5277639048 | R77: 53
A78: 75 | B78: 8 | C78: 9 | D78: 4 | E78: 6 | F78: 16 | G78: 11 | H78: 0 | I78: 8 | J78: 4 | K78: 7 | L78: 73 | M78: 7.3 | N78: 7.5 | O78: 8 | P78: 4.347413024 | Q78: 0.4253578712 | R78: 92
A79: 76 | B79: 2 | C79: 4 | D79: 10 | E79: 0 | F79: 13 | G79: 0 | H79: 9 | I79: 2 | J79: 6 | K79: 2 | L79: 48 | M79: 4.8 | N79: 3 | O79: 2 | P79: 4.516635916 | Q79: 0.7239033439 | R79: 13
A80: 77 | B80: 6 | C80: 7 | D80: 7 | E80: 5 | F80: 10 | G80: 3 | H80: 4 | I80: 9 | J80: 12 | K80: 7 | L80: 70 | M80: 7 | N80: 7 | O80: 7 | P80: 2.748737084 | Q80: 0.4012537914 | R80: 86
A81: 78 | B81: 8 | C81: 5 | D81: 5 | E81: 2 | F81: 11 | G81: 8 | H81: 8 | I81: 0 | J81: 12 | K81: 6 | L81: 65 | M81: 6.5 | N81: 7 | O81: 8 | P81: 3.719318934 | Q81: -0.2834435245 | R81: 65
A82: 79 | B82: 10 | C82: 6 | D82: 7 | E82: 2 | F82: 7 | G82: 9 | H82: 7 | I82: 8 | J82: 9 | K82: 2 | L82: 67 | M82: 6.7 | N82: 7 | O82: 7 | P82: 2.750757471 | Q82: -0.9704976 | R82: 75
A83: 80 | B83: 13 | C83: 5 | D83: 7 | E83: 2 | F83: 13 | G83: 5 | H83: 7 | I83: 0 | J83: 10 | K83: 8 | L83: 70 | M83: 7 | N83: 7 | O83: 13 | P83: 4.268749492 | Q83: -0.04285255662 | R83: 86
A84: 81 | B84: 3 | C84: 8 | D84: 4 | E84: 2 | F84: 10 | G84: 2 | H84: 4 | I84: 2 | J84: 2 | K84: 4 | L84: 41 | M84: 4.1 | N84: 3.5 | O84: 2 | P84: 2.766867463 | Q84: 1.483970847 | R84: 4
A85: 82 | B85: 7 | C85: 1 | D85: 8 | E85: 4 | F85: 10 | G85: 10 | H85: 10 | I85: 7 | J85: 11 | K85: 4 | L85: 72 | M85: 7.2 | N85: 7.5 | O85: 10 | P85: 3.293090409 | Q85: -0.7103173777 | R85: 89
A86: 83 | B86: 4 | C86: 7 | D86: 9 | E86: 5 | F86: 8 | G86: 5 | H86: 8 | I86: 10 | J86: 12 | K86: 4 | L86: 72 | M86: 7.2 | N86: 7.5 | O86: 4 | P86: 2.699794231 | Q86: 0.3709632308 | R86: 89
A87: 84 | B87: 7 | C87: 4 | D87: 7 | E87: 6 | F87: 13 | G87: 4 | H87: 5 | I87: 8 | J87: 7 | K87: 6 | L87: 67 | M87: 6.7 | N87: 6.5 | O87: 7 | P87: 2.584139659 | Q87: 1.668954681 | R87: 75
A88: 85 | B88: 4 | C88: 6 | D88: 2 | E88: 6 | F88: 14 | G88: 3 | H88: 9 | I88: 8 | J88: 4 | K88: 4 | L88: 60 | M88: 6 | N88: 5 | O88: 4 | P88: 3.559026084 | Q88: 1.330937732 | R88: 50
A89: 86 | B89: 9 | C89: 5 | D89: 8 | E89: 4 | F89: 13 | G89: 6 | H89: 7 | I89: 7 | J89: 12 | K89: 6 | L89: 77 | M89: 7.7 | N89: 7 | O89: 6 | P89: 2.907843798 | Q89: 0.845960556 | R89: 97
A90: 87 | B90: 4 | C90: 3 | D90: 10 | E90: 1 | F90: 7 | G90: 9 | H90: 3 | I90: 1 | J90: 2 | K90: 6 | L90: 46 | M90: 4.6 | N90: 3.5 | O90: 3 | P90: 3.238655414 | Q90: 0.5720751363 | R90: 9
A91: 88 | B91: 7 | C91: 5 | D91: 6 | E91: 2 | F91: 11 | G91: 8 | H91: 10 | I91: 4 | J91: 9 | K91: 8 | L91: 70 | M91: 7 | N91: 7.5 | O91: 8 | P91: 2.788866755 | Q91: -0.3841806244 | R91: 86
A92: 89 | B92: 5 | C92: 8 | D92: 6 | E92: 4 | F92: 9 | G92: 10 | H92: 6 | I92: 9 | J92: 7 | K92: 2 | L92: 66 | M92: 6.6 | N92: 6.5 | O92: 6 | P92: 2.503331114 | Q92: -0.4398394697 | R92: 73
A93: 90 | B93: 12 | C93: 5 | D93: 7 | E93: 4 | F93: 9 | G93: 3 | H93: 6 | I93: 3 | J93: 3 | K93: 4 | L93: 56 | M93: 5.6 | N93: 4.5 | O93: 3 | P93: 2.988868236 | Q93: 1.264642817 | R93: 35
A94: 91 | B94: 14 | C94: 0 | D94: 10 | E94: 2 | F94: 13 | G94: 1 | H94: 1 | I94: 6 | J94: 11 | K94: 7 | L94: 65 | M94: 6.5 | N94: 6.5 | O94: 1 | P94: 5.317685378 | Q94: 0.1219195971 | R94: 65
A95: 92 | B95: 9 | C95: 5 | D95: 4 | E95: 2 | F95: 14 | G95: 5 | H95: 3 | I95: 10 | J95: 4 | K95: 5 | L95: 61 | M95: 6.1 | N95: 5 | O95: 5 | P95: 3.725288952 | Q95: 1.223756636 | R95: 53
A96: 93 | B96: 9 | C96: 2 | D96: 9 | E96: 1 | F96: 5 | G96: 5 | H96: 9 | I96: 3 | J96: 5 | K96: 3 | L96: 51 | M96: 5.1 | N96: 5 | O96: 9 | P96: 2.998147576 | Q96: 0.3129249908 | R96: 21
A97: 94 | B97: 8 | C97: 5 | D97: 9 | E97: 5 | F97: 16 | G97: 1 | H97: 3 | I97: 9 | J97: 7 | K97: 6 | L97: 69 | M97: 6.9 | N97: 6.5 | O97: 5 | P97: 4.094712037 | Q97: 0.9999319519 | R97: 81
A98: 95 | B98: 6 | C98: 8 | D98: 8 | E98: 4 | F98: 13 | G98: 3 | H98: 0 | I98: 9 | J98: 4 | K98: 8 | L98: 63 | M98: 6.3 | N98: 7 | O98: 8 | P98: 3.683295626 | Q98: 0.06904136408 | R98: 61
A99: 96 | B99: 10 | C99: 6 | D99: 3 | E99: 1 | F99: 14 | G99: 11 | H99: 6 | I99: 5 | J99: 6 | K99: 2 | L99: 64 | M99: 6.4 | N99: 6 | O99: 6 | P99: 4.141926551 | Q99: 0.582630427 | R99: 63
A100: 97 | B100: 3 | C100: 9 | D100: 6 | E100: 5 | F100: 7 | G100: 2 | H100: 9 | I100: 1 | J100: 5 | K100: 3 | L100: =SUM(B100:K100) -> 50 | M100: 5 | N100: 5 | O100: 3 | P100: 2.788866755 | Q100: 0.1920903122 | R100: 17
A101: 98 | B101: 10 | C101: 8 | D101: 5 | E101: 4 | F101: 9 | G101: 4 | H101: 3 | I101: 6 | J101: 9 | K101: 7 | L101: =SUM(B101:K101) -> 65 | M101: 6.5 | N101: 6.5 | O101: 4 | P101: 2.460803843 | Q101: -1.084202172e-17 | R101: 65
A102: 99 | B102: 7 | C102: 7 | D102: 3 | E102: 5 | F102: 9 | G102: 6 | H102: 3 | I102: 8 | J102: 8 | K102: 3 | L102: =SUM(B102:K102) -> 59 | M102: 5.9 | N102: 6.5 | O102: 3 | P102: 2.282785822 | Q102: -0.2676003129 | R102: 45
A103: 100 | B103: 10 | C103: 3 | D103: 6 | E103: 4 | F103: 4 | G103: 5 | H103: 10 | I103: 9 | J103: 8 | K103: 5 | L103: =SUM(B103:K103) -> 64 | M103: 6.4 | N103: 5.5 | O103: 10 | P103: 2.633122354 | Q103: 0.3231758437 | R103: 63
A104: Totals | B104: =SUM(B4:B103) -> 768 | C104: 437 | D104: 590 | E104: 297 | F104: 984 | G104: 581 | H104: 518 | I104: 508 | J104: 725 | K104: =SUM(K4:K103) -> 545 | L104: =SUM(B104:K104) -> 5953
A106: Bearing Recommendation
A107: ="Suggested Target Inventory Level for a "&Assumptions!C5&" day period = ((Mean from simulation + "&Assumptions!C6&" Standard Deviations)*"&Assumptions!C5&" =" -> Suggested Target Inventory Level for a 5 day period = ((Mean from simulation + 2 Standard Deviations)*5 = | F107: =ROUNDUP((L107+Assumptions!C6*L110)*Assumptions!C5,0) -> 396 | K107: Mean | L107: =AVERAGE(L4:L103) -> 59.53
K108: Median | L108: =MEDIAN(L4:L103) -> 60
A109: Top Five Total Demand | C109: Lowest Five Total Demand | K109: Mode | L109: =MODE(L4:L103) -> 65
A110: 1 | B110: =LARGE($L4:$L103,A110) -> 81 | C110: 1 | D110: =SMALL($L4:$L103,C110) -> 37 | K110: StDev | L110: =STDEV(L4:L103) -> 9.821081222
A111: 2 | B111: =LARGE($L5:$L104,A111) -> 81 | C111: 2 | D111: =SMALL($L5:$L104,C111) -> 37 | K111: Skew | L111: =SKEW(L4:L103) -> -0.1166710585
A112: 3 | B112: =LARGE($L6:$L105,A112) -> 79 | C112: 3 | D112: =SMALL($L6:$L105,C112) -> 41
A113: 4 | B113: =LARGE($L7:$L107,A113) -> 78 | C113: 4 | D113: =SMALL($L7:$L107,C113) -> 42
A114: 5 | B114: =LARGE($L8:$L108,A114) -> 77 | C114: 5 | D114: =SMALL($L8:$L108,C114) -> 45

Sheet Actual Demand
A1: Description | B1: Value | C1: #Days in Inventory | E1: Description | F1: # of Items Shipped | G1: Total Dollar Value of Items Shipped | H1: Average # of Days Held In Inventory
A2: Air Filters | B2: 2.25 | C2: 28 | E2: Air Filters | F2: =COUNTIF(item,E2) ->  | G2: =SUMIF(item,E2,cost) ->  | H2: =SUMIF(item,E2,DaysInInv)/COUNTIF(item,E2) -> 
A3: Air Filters | B3: 2.25 | C3: 13 | E3: Bearings | F3: =COUNTIF(item,E3) ->  | G3: =SUMIF(item,E3,cost) ->  | H3: =SUMIF(item,E3,DaysInInv)/COUNTIF(item,E3) -> 
A4: Air Filters | B4: 2.25 | C4: 5 | E4: Electronic Board | F4: =COUNTIF(item,E4) ->  | G4: =SUMIF(item,E4,cost) ->  | H4: =SUMIF(item,E4,DaysInInv)/COUNTIF(item,E4) -> 
A5: Air Filters | B5: 2.25 | C5: 16 | E5: Fan Belt | F5: =COUNTIF(item,E5) ->  | G5: =SUMIF(item,E5,cost) ->  | H5: =SUMIF(item,E5,DaysInInv)/COUNTIF(item,E5) -> 
A6: Air Filters | B6: 2.25 | C6: 36 | E6: Timing Belts | F6: =COUNTIF(item,E6) ->  | G6: =SUMIF(item,E6,cost) ->  | H6: =SUMIF(item,E6,DaysInInv)/COUNTIF(item,E6) -> 
A7: Air Filters | B7: 2.25 | C7: 21
A8: Air Filters | B8: 2.25 | C8: 25 | F8: Data
A9: Air Filters | B9: 2.25 | C9: 5 | E9: Description | F9: Count of Description | G9: Sum of Value | H9: Average of #Days in Inventory
A10: Air Filters | B10: 2.25 | C10: 23 | E10: Air Filters | F10: 232 | G10: 4302.6 | H10: 18.38793103
A11: Air Filters | B11: 2.25 | C11: 31 | E11: Bearings | F11: 322 | G11: 25363.2 | H11: 19.81987578
A12: Air Filters | B12: 34.95 | C12: 22 | E12: Electronic Board | F12: 12 | G12: 1500 | H12: 22.91666667
A13: Air Filters | B13: 2.25 | C13: 1 | E13: Fan Belt | F13: 226 | G13: 3635.13 | H13: 21.65929204
A14: Air Filters | B14: 2.25 | C14: 40 | E14: Timing Belts | F14: 199 | G14: 6955.05 | H14: 19.84924623
A15: Air Filters | B15: 2.25 | C15: 3 | E15: Grand Total | F15: 991 | G15: 41755.98 | H15: 19.94752775
A16: Air Filters | B16: 34.95 | C16: 16
A17: Air Filters | B17: 2.25 | C17: 30 | E17: ='Simulation Data 1'!A106 -> Bearing Recommendation
A18: Air Filters | B18: 34.95 | C18: 23 | E18: ='Simulation Data 1'!A107 -> Suggested Target Inventory Level for a 5 day period = ((Mean from simulation + 2 Standard Deviations)*5 = | J18: ='Simulation Data 1'!F107 -> 396
A19: Air Filters | B19: 125 | C19: 25
A20: Air Filters | B20: 125 | C20: 16 | E20: Actual Data for Last Five Days
A21: Air Filters | B21: 2.25 | C21: 25 | E21: =E3 -> Bearings | J21: =F3 -> 
A22: Air Filters | B22: 2.25 | C22: 9 | E22: Cost of Bearings (Working Capital) | J22: =G3 -> 
A23: Air Filters | B23: 125 | C23: 14 | E23: =H1 -> Average # of Days Held In Inventory | J23: =H3 -> 
A24: Air Filters | B24: 2.25 | C24: 23
A25: Air Filters | B25: 2.25 | C25: 3 | E25: ="Suggested Target Inventory Levels of "&J18&" would have covered the five day inventory Levels of "&J21&"." -> 
A26: Air Filters | B26: 2.25 | C26: 29
A27: Air Filters | B27: 2.25 | C27: 29
A28: Air Filters | B28: 2.25 | C28: 3
A29: Air Filters | B29: 2.25 | C29: 3
A30: Air Filters | B30: 125 | C30: 14
A31: Air Filters | B31: 2.25 | C31: 31
A32: Air Filters | B32: 2.25 | C32: 27
A33: Air Filters | B33: 2.25 | C33: 25
A34: Air Filters | B34: 2.25 | C34: 2
A35: Air Filters | B35: 125 | C35: 14
A36: Air Filters | B36: 2.25 | C36: 2
A37: Air Filters | B37: 2.25 | C37: 39
A38: Air Filters | B38: 2.25 | C38: 6
A39: Air Filters | B39: 125 | C39: 23
A40: Air Filters | B40: 2.25 | C40: 10
A41: Air Filters | B41: 2.25 | C41: 11
A42: Air Filters | B42: 2.25 | C42: 2
A43: Air Filters | B43: 2.25 | C43: 20
A44: Air Filters | B44: 2.25 | C44: 18
A45: Air Filters | B45: 2.25 | C45: 1
A46: Air Filters | B46: 2.25 | C46: 16
A47: Air Filters | B47: 2.25 | C47: 2
A48: Air Filters | B48: 2.25 | C48: 33
A49: Air Filters | B49: 2.25 | C49: 18
A50: Air Filters | B50: 2.25 | C50: 15
A51: Air Filters | B51: 2.25 | C51: 7
A52: Air Filters | B52: 2.25 | C52: 34
A53: Air Filters | B53: 125 | C53: 16
A54: Air Filters | B54: 2.25 | C54: 14
A55: Air Filters | B55: 2.25 | C55: 22
A56: Air Filters | B56: 2.25 | C56: 25
A57: Air Filters | B57: 2.25 | C57: 14
A58: Air Filters | B58: 2.25 | C58: 12
A59: Air Filters | B59: 2.25 | C59: 19
A60: Air Filters | B60: 2.25 | C60: 21
A61: Air Filters | B61: 2.25 | C61: 9
A62: Air Filters | B62: 125 | C62: 11
A63: Air Filters | B63: 2.25 | C63: 17
A64: Air Filters | B64: 2.25 | C64: 17
A65: Air Filters | B65: 2.25 | C65: 15
A66: Air Filters | B66: 2.25 | C66: 23
A67: Air Filters | B67: 2.25 | C67: 31
A68: Air Filters | B68: 2.25 | C68: 15
A69: Air Filters | B69: 2.25 | C69: 19
A70: Air Filters | B70: 2.25 | C70: 16
A71: Air Filters | B71: 2.25 | C71: 3
A72: Air Filters | B72: 2.25 | C72: 13
A73: Air Filters | B73: 2.25 | C73: 32
A74: Air Filters | B74: 2.25 | C74: 37
A75: Air Filters | B75: 2.25 | C75: 11
A76: Air Filters | B76: 2.25 | C76: 35
A77: Air Filters | B77: 2.25 | C77: 8
A78: Air Filters | B78: 2.25 | C78: 18
A79: Air Filters | B79: 2.25 | C79: 27
A80: Air Filters | B80: 2.25 | C80: 16
A81: Air Filters | B81: 2.25 | C81: 1
A82: Air Filters | B82: 2.25 | C82: 6
A83: Air Filters | B83: 125 | C83: 35
A84: Air Filters | B84: 2.25 | C84: 21
A85: Air Filters | B85: 2.25 | C85: 28
A86: Air Filters | B86: 2.25 | C86: 28
A87: Air Filters | B87: 2.25 | C87: 31
A88: Air Filters | B88: 125 | C88: 21
A89: Air Filters | B89: 2.25 | C89: 14
A90: Air Filters | B90: 2.25 | C90: 18
A91: Air Filters | B91: 2.25 | C91: 39
A92: Air Filters | B92: 2.25 | C92: 4
A93: Air Filters | B93: 2.25 | C93: 34
A94: Air Filters | B94: 2.25 | C94: 13
A95: Air Filters | B95: 2.25 | C95: 11
A96: Air Filters | B96: 125 | C96: 10
A97: Air Filters | B97: 2.25 | C97: 28
A98: Air Filters | B98: 2.25 | C98: 6
A99: Air Filters | B99: 2.25 | C99: 28
A100: Air Filters | B100: 2.25 | C100: 14
A101: Air Filters | B101: 2.25 | C101: 4
A102: Air Filters | B102: 2.25 | C102: 24
A103: Air Filters | B103: 2.25 | C103: 4
A104: Air Filters | B104: 125 | C104: 3
A105: Air Filters | B105: 2.25 | C105: 18
A106: Air Filters | B106: 2.25 | C106: 18
A107: Air Filters | B107: 2.25 | C107: 11
A108: Air Filters | B108: 2.25 | C108: 2
A109: Air Filters | B109: 2.25 | C109: 35
A110: Air Filters | B110: 2.25 | C110: 8
A111: Air Filters | B111: 2.25 | C111: 31
A112: Air Filters | B112: 2.25 | C112: 21
A113: Air Filters | B113: 2.25 | C113: 9
A114: Air Filters | B114: 125 | C114: 13
A115: Air Filters | B115: 2.25 | C115: 18
A116: Air Filters | B116: 125 | C116: 40
A117: Air Filters | B117: 2.25 | C117: 5
A118: Air Filters | B118: 2.25 | C118: 22
A119: Air Filters | B119: 2.25 | C119: 6
A120: Air Filters | B120: 2.25 | C120: 33
A121: Air Filters | B121: 2.25 | C121: 8
A122: Air Filters | B122: 2.25 | C122: 34
A123: Air Filters | B123: 2.25 | C123: 1
A124: Air Filters | B124: 2.25 | C124: 24
A125: Air Filters | B125: 2.25 | C125: 5
A126: Air Filters | B126: 2.25 | C126: 12
A127: Air Filters | B127: 2.25 | C127: 18
A128: Air Filters | B128: 125 | C128: 38
A129: Air Filters | B129: 2.25 | C129: 10
A130: Air Filters | B130: 2.25 | C130: 10
A131: Air Filters | B131: 2.25 | C131: 7
A132: Air Filters | B132: 125 | C132: 36
A133: Air Filters | B133: 2.25 | C133: 10
A134: Air Filters | B134: 2.25 | C134: 35
A135: Air Filters | B135: 2.25 | C135: 5
A136: Air Filters | B136: 2.25 | C136: 40
A137: Air Filters | B137: 2.25 | C137: 25
A138: Air Filters | B138: 2.25 | C138: 22
A139: Air Filters | B139: 2.25 | C139: 5
A140: Air Filters | B140: 2.25 | C140: 23
A141: Air Filters | B141: 125 | C141: 30
A142: Air Filters | B142: 2.25 | C142: 32
A143: Air Filters | B143: 2.25 | C143: 33
A144: Air Filters | B144: 2.25 | C144: 6
A145: Air Filters | B145: 2.25 | C145: 28
A146: Air Filters | B146: 2.25 | C146: 9
A147: Air Filters | B147: 2.25 | C147: 28
A148: Air Filters | B148: 2.25 | C148: 1
A149: Air Filters | B149: 2.25 | C149: 19
A150: Air Filters | B150: 2.25 | C150: 2
A151: Air Filters | B151: 125 | C151: 37
A152: Air Filters | B152: 2.25 | C152: 35
A153: Air Filters | B153: 125 | C153: 11
A154: Air Filters | B154: 2.25 | C154: 22
A155: Air Filters | B155: 2.25 | C155: 16
A156: Air Filters | B156: 2.25 | C156: 10
A157: Air Filters | B157: 2.25 | C157: 26
A158: Air Filters | B158: 2.25 | C158: 19
A159: Air Filters | B159: 2.25 | C159: 6
A160: Air Filters | B160: 2.25 | C160: 12
A161: Air Filters | B161: 2.25 | C161: 2
A162: Air Filters | B162: 2.25 | C162: 26
A163: Air Filters | B163: 2.25 | C163: 8
A164: Air Filters | B164: 2.25 | C164: 33
A165: Air Filters | B165: 2.25 | C165: 25
A166: Air Filters | B166: 2.25 | C166: 38
A167: Air Filters | B167: 2.25 | C167: 35
A168: Air Filters | B168: 2.25 | C168: 9
A169: Air Filters | B169: 2.25 | C169: 19
A170: Air Filters | B170: 2.25 | C170: 5
A171: Air Filters | B171: 2.25 | C171: 34
A172: Air Filters | B172: 2.25 | C172: 15
A173: Air Filters | B173: 2.25 | C173: 16
A174: Air Filters | B174: 2.25 | C174: 7
A175: Air Filters | B175: 2.25 | C175: 7
A176: Air Filters | B176: 2.25 | C176: 23
A177: Air Filters | B177: 2.25 | C177: 20
A178: Air Filters | B178: 2.25 | C178: 38
A179: Air Filters | B179: 2.25 | C179: 16
A180: Air Filters | B180: 2.25 | C180: 3
A181: Air Filters | B181: 2.25 | C181: 2
A182: Air Filters | B182: 2.25 | C182: 18
A183: Air Filters | B183: 2.25 | C183: 37
A184: Air Filters | B184: 2.25 | C184: 37
A185: Air Filters | B185: 2.25 | C185: 18
A186: Air Filters | B186: 2.25 | C186: 16
A187: Air Filters | B187: 2.25 | C187: 2
A188: Air Filters | B188: 2.25 | C188: 4
A189: Air Filters | B189: 2.25 | C189: 22
A190: Air Filters | B190: 125 | C190: 8
A191: Air Filters | B191: 2.25 | C191: 25
A192: Air Filters | B192: 2.25 | C192: 38
A193: Air Filters | B193: 2.25 | C193: 5
A194: Air Filters | B194: 125 | C194: 15
A195: Air Filters | B195: 2.25 | C195: 22
A196: Air Filters | B196: 2.25 | C196: 39
A197: Air Filters | B197: 2.25 | C197: 15
A198: Air Filters | B198: 2.25 | C198: 32
A199: Air Filters | B199: 125 | C199: 35
A200: Air Filters | B200: 125 | C200: 4
... 792 more rows
